Workbook

Sheet Cover
A5: Part 4 IM Review 2023
A6: Demonstration model:
A7: Inflation wash-up options to account for the fixed cost of debt
A21: 2023-09-29

Sheet Table of contents
B1: Table of Contents
B3: Sheet name | C3: Link | D3: Description
B4: Description and approach | C4: Description and approach | D4: Description of model, general notes, background and glossary
B5: Simplifying assumptions | C5: Simplifying assumptions | D5: List of simplifying assumptions applied to the model for demonstration purposes
B6: Macro | C6: Macro | D6: Macro to goal seek the forecast revenue for each calculation sheet following any updates of the inputs.
B7: Inputs - forecast | C7: Inputs - forecast | D7: This sheet shows all the forecast inputs and can be updated for opex, capex and CPI scenarios
B8: Inputs - actual | C8: Inputs - actual | D8: This sheet shows the actual assumptions, and can be updated for different outturn inflation scenarios.
B9: Summary tables | C9: Summary tables | D9: This sheets summarises the wash-up accrual and revenue for each of the calculation sheets
B10: 1 Starting point excl. CODW | C10: 1 Starting point excl CODW | D10: Prior to draft decision: No cost of debt adjustment
B11: 2 Incl. CODW | C11: 2 Incl CODW | D11: Cost of debt adjustment
B12: 2b Incl. CODW smoothed | C12: 2b Incl CODW smoothed | D12: Cost of debt adjustment with smoothing
B13: 3 Hybrid RAB | C13: 3 Hybrid RAB | D13: Indexing only the equity portion of the RAB
B14: 4 Debt forecast | C14: 4 Debt forecast | D14: Wash-up only the equity portion of the RAB
B15: 5 Blended CPI | C15: 5 Blended CPI | D15: Revenue and RAB wash-up using blended CPI

Sheet Description and approach
A1: Description
C2: The model is published alongside the "Further consultation on IM Review draft decision on the cost of debt wash-up of EDBs and GTBs [29 September 2023]" document as part of the 2023 IM Review. The purpose of this consultation is to seek feedback on two further changes to the specification of price input methodologies (IMs) for electricity distribution businesses (EDBs) and gas transmission businesses (GTBs). These amendments are intended to better promote the s 52A(1)(a) purpose by mitigating cashflow and revenue volatility concerns about the revenue and cost of debt wash-ups, identified by stakeholders in submissions on our draft decision. The two proposed amendments are: 1) an amendment to clause 3.1.1(5) to ensure all of the most up-to-date CPI forecast information (actual and forecast) is used when determining forecast net allowable revenue at the start of each disclosure year; and 2) an amendment to clause 3.1.4(9) and related provisions to smooth the accumulation of the cost of debt wash-up. The consultation document includes tables to demonstrate the impacts of the first proposed amendment. The purpose of this model is to demonstrate the impacts of the second proposed amendment. It includes the following sub-models: 1) The starting point excluding the CODW, prior to the draft decision with revenue fully washed up for outturn inflation and no cost of debt wash-up adjustment (CODW). 2) Our draft decision which added the CODW to the status quo [Incl. CODW]. 2b) Our draft decision with the CODW impacts spread over 5 years [Incl. CODW smoothed. 3) Hybrid RAB. 4) Debt forecast approach. 5) An alternative where we wash-up the RAB and revenue by a blended CPI, with appropriate adjustments to account for the opex and capex inflators.
C3: Refer to the consultation document "Further consultation on IM Review draft decision on the cost of debt wash-up of EDBs and GTBs [29 September 2023]" for details on each of these alternative models, as well as the text box at the top of each of the calculation sheets (numbered 1-5).
A4: Background
B5: 1 | C5: The regulatory accounting treatment of suppliers should be consistent with the s 52A(1)(a) and (d) limbs of the Part 4 purpose such that suppliers (a) have “incentives to innovate and to invest, including in replacement, upgraded, and new assets" and (d) are “limited in their ability to extract excessive profits”. The principle NPV=0 is consistent with promoting s 52A(1)(a) and (d) and is achieved when the present value of revenue is equal to the present value of efficiently incurred costs.
B6: =B5+1 -> 2 | C6: NPV = 0 is achieved when the present value of revenue is equal to the present value of efficiently-incurred costs, when calculated over the life of the assets. The calculation can be done by either using the building blocks or by using cash flows. If cash flows are used, costs include capital expenditure, operating expenditure and tax and account for the opening and closing values of the asset base.
B7: =B6+1 -> 3 | C7: Inflation should be accounted for in a way that achieves NPV = 0.
B8: =B7+1 -> 4 | C8: Efficiently-incurred costs in this context means costs that reflect the inflation risks that are placed on suppliers. If the regulatory regime does not impose inflation risks on suppliers, the efficiently incurred costs are those that are indexed for inflation. On the other hand, if some inflation risk is placed on suppliers the efficiently incurred costs include some costs that are indexed for inflation and other costs that are not.
B9: =B8+1 -> 5 | C9: We first assume that suppliers face no inflation risks. Therefore, the efficiently incurred costs are costs indexed for inflation.
A10: Model design and structure
C11: The model is designed to calculate the forecast and actual regulatory accounts for each scenario based on the forecast and actual inputs and to make it easy to compare the different scenarios: The top half of each calculation sheet contains the forecast revenue building blocks, regulatory cash flows, RAB and tax calculations based on the forecast inputs. Forecast NPV=0 is demonstrated. The bottom half of each sheet contains the actual revenue building blocks, regulatory cash flows, RAB and tax calculations based on the actual inputs (default is high outturn inflation of 5% p.a. compared to 2% forecast inflation). The Draft IM consultation model published during the main IM consultation showed the returns in terms of actual assets, while this updated model shows returns on the actual RAB to better align with the IM drafting. This change is presentational only and has no impact on the calculated NPV/ IRR. The actual real IRR and NPV of building blocks and regulatory cash flows are calculated to determine if the real IRR equals the expected real WACC and whether the NPV=0 principal is achieved for the actual inflation scenario input.
A12: General notes
B13: 1 | C13: Financial quantities in this model are expressed in NZD $m
B14: =B13+1 -> 2 | C14: Dummy data is used for illustrative purposes.
B15: =B14+1 -> 3 | C15: The macro in the 'Macro' sheet goal seeks revenue for each of the calculation sheets so that NPV of revenue = NPV of expenditure for the two 5-years periods. E.g., goal seeks revenue in '1 Starting point excl. CODW'! Cell K68 and P75 to set cells K69 and P76 to zero.
B16: =B15+1 -> 4 | C16: A lighter font is used for cells containing a formula linking to another sheet. A red font is applied to input cells. Grey shading is used to draw attention to certain cells e.g. where formulas differ for the indexed and non-indexed RAB approach.
B17: =B16+1 -> 5 | C17: Wherever two horizontally adjacent cells contain numerical formulas which differ, an orange vertical border has been placed between the cells to indicate that the cell formulas are different.
B18: =B17+1 -> 6 | C18: This model should not be used for any other purpose than described above.
A20: Glossary
C21: ANAR: Actual net allowable revenue
C22: FNAR: Forecast net allowable revenue
C23: MAR: Maximum allowable revenue per DPP
C24: AR: Actual revenue
C25: DPP: Default price path
C26: CODW: Cost of debt wash-up
C27: CPI: Consumers price index
C28: FCM: Financial capital maintenance
C29: IM: Input methodology
C30: IRR: Internal rate of return
C31: MAR: Maximum allowable revenue
C32: NPV: Net present value
C33: RAB: Regulatory asset base
C34: WA: Wash-up accrual
C35: WD: Wash-up drawdown
C36: WAB: Wash-up account balance
C37: WACC: Weighted average cost of capital

Sheet Simplifying assumptions
A1: Simplifying assumptions
C3: The demonstration models use the following simplifying assumptions:
B5: 1 | C5: The revenue wash-up occurs in the same year as the higher inflation. In practice, there is a delay until the wash-up occurs and we apply a present value adjustment to ensure suppliers are compensated for the delay. The impact of this delay is shown in lines 162-167 of the calculation sheets.
B6: 2 | C6: There is only one deflator, which is CPI. In practice, there are separate deflators used for capital expenditure and operating expenditure.
B7: 3 | C7: The RAB is fully depreciated over the period of the model and we only include capex in the first 9 years. This is to enable full depreciation of the RAB by year 10. In practice, the RAB will either continue to increase or stabilise, depending on whether customer growth exceeds replacement capital expenditure.
B8: 4 | C8: The actual closing RAB at the end of the first regulatory period is calculated by re-basing the RAB based on actual CPI. In practice, the closing RAB value will vary somewhat from this, as changes in capex inflation will not perfectly follow CPI.
B9: 5 | C9: For each of the forecast and actuals, we have used a consistent inflator across the 10 years (2% forecast and 5% actual). Any actual inflation scenario can be entered in the actual inputs (cell E15-25).
B10: 6 | C10: We have assumed all values are end of year values for the NPV=0 calculations.
B11: 7 | C11: We assume MAR as per the DPP model = FNAR. In reality there will be an intermediate step when setting prices (FNAR), updating for updated forecast CPI. We also assume FNAR = AR (no volume differences).
B12: 8 | C12: The wash-ups will, under normal circumstances, be smaller than indicated in this model because prices are set annually (FNAR: forecast net allowable revenue) with updated forecast CPI (2-year updated CPI proposed for decision), while this model only shows forecast revenue as set at the DPP reset.
C14: These assumptions should not affect our findings. They just make it more straightforward to show that NPV=0 is achieved.

Sheet Macro
A1: Macro
B2: The macro needs to be run if any changes are made to the inputs. This goal seeks revenue for each of the calculation sheets so that NPV of revenue = NPV of expenditure for the two 5-years periods. E.g., goal seeks revenue for each calculation sheet Cell K68 and P75 to set cells K69 and P76 to zero.

Sheet Inputs - forecast
A1: Inputs - forecast
E2: 2020-06-30 | F2: 2021-06-30 | G2: 2022-06-30 | H2: 2023-06-30 | I2: 2024-06-30 | J2: 2025-06-30 | K2: 2026-06-30 | L2: 2027-06-30 | M2: 2028-06-30 | N2: 2029-06-30 | O2: 2030-06-30 | P2: Average
A4: Predicted inflation rate | E4: 1 | F4: =E4*(1+F5) -> 1.02 | G4: =F4*(1+G5) -> 1.0404 | H4: 1.061208 | I4: 1.08243216 | J4: 1.104080803 | K4: 1.126162419 | L4: 1.148685668 | M4: 1.171659381 | N4: 1.195092569 | O4: 1.21899442
B5: CPI (end of period) | E5: 0.02 | F5: 0.02 | G5: 0.02 | H5: 0.02 | I5: 0.02 | J5: 0.02 | K5: 0.02 | L5: 0.02 | M5: 0.02 | N5: 0.02 | O5: 0.02 | P5: =(((1+F5)*(1+G5)*(1+H5)*(1+I5)*(1+J5)*(1+K5)*(1+L5)*(1+M5)*(1+N5)*(1+O5))^0.1)-1 -> 0.02
A7: Rebased CPI (end of period) | E7: 1 | F7: =E7*(1+F8) -> 1.02 | G7: =F7*(1+G8) -> 1.0404 | H7: =G7*(1+H8) -> 1.061208 | I7: =H7*(1+I8) -> 1.08243216 | J7: =I7*(1+J8) -> 1.104080803 | K7: ='Inputs - actual'!J5*(1+'Inputs - forecast'!K8) -> 1.301807194 | L7: =K7*(1+L8) -> 1.327843338 | M7: =L7*(1+M8) -> 1.354400204 | N7: =M7*(1+N8) -> 1.381488208 | O7: =N7*(1+O8) -> 1.409117973
B8: Predicted inflation rate | E8: =E5 -> 0.02 | F8: 0.02 | G8: 0.02 | H8: 0.02 | I8: 0.02 | J8: 0.02 | K8: 0.02 | L8: 0.02 | M8: 0.02 | N8: 0.02 | O8: 0.02
A10: Financials ($ of 30 June 2020)
B11: Opex | F11: 100 | G11: 100 | H11: 100 | I11: 100 | J11: 100 | K11: 100 | L11: 100 | M11: 100 | N11: 100 | O11: 100
B12: Capex | F12: 200 | G12: 200 | H12: 200 | I12: 200 | J12: 200 | K12: 100 | L12: 100 | M12: 100 | N12: 100 | O12: 0 | P12: Do not enter capex in last year, as depreciation is calculated on opening RAB value and therefore RAB will not be fully depreciated if capex included in last year.
B13: Opening RAB | E13: 3000
A15: Financials (nominal)
B16: Opex | F16: =F11*F7 -> 102 | G16: 104.04 | H16: 106.1208 | I16: 108.243216 | J16: 110.4080803 | K16: 130.1807194 | L16: 132.7843338 | M16: 135.4400204 | N16: 138.1488208 | O16: 140.9117973
B17: Capex | F17: =F12*F7 -> 204 | G17: 208.08 | H17: 212.2416 | I17: 216.486432 | J17: 220.8161606 | K17: 130.1807194 | L17: 132.7843338 | M17: 135.4400204 | N17: 138.1488208 | O17: 0
B18: Opening RAB | E18: =E13/E4 -> 3000
A20: Asset lives
B21: Initial RAB | D21: 10
B22: Capex | D22: 10
A24: WACC (nominal)
B25: Cost of equity | E25: 0.07 | F25: 0.07 | G25: 0.07 | H25: 0.07 | I25: 0.07 | J25: 0.07 | K25: 0.07 | L25: 0.07 | M25: 0.07 | N25: 0.07 | O25: 0.07
B26: Cost of debt | E26: 0.05 | F26: 0.05 | G26: 0.05 | H26: 0.05 | I26: 0.05 | J26: 0.05 | K26: 0.05 | L26: 0.05 | M26: 0.05 | N26: 0.05 | O26: 0.05
B28: Leverage | E28: 0.41 | F28: 0.41 | G28: 0.41 | H28: 0.41 | I28: 0.41 | J28: 0.41 | K28: 0.41 | L28: 0.41 | M28: 0.41 | N28: 0.41 | O28: 0.41
B29: Tax rate | E29: 0.28 | F29: 0.28 | G29: 0.28 | H29: 0.28 | I29: 0.28 | J29: 0.28 | K29: 0.28 | L29: 0.28 | M29: 0.28 | N29: 0.28 | O29: 0.28
P30: Average
B31: Cost of capital (vanilla, nominal) | E31: =E$26*E$28+E$25*(1-E$28) -> 0.0618 | F31: 0.0618 | G31: 0.0618 | H31: 0.0618 | I31: 0.0618 | J31: 0.0618 | K31: 0.0618 | L31: 0.0618 | M31: 0.0618 | N31: 0.0618 | O31: 0.0618 | P31: =(((1+F31)*(1+G31)*(1+H31)*(1+I31)*(1+J31)*(1+K31)*(1+L31)*(1+M31)*(1+N31)*(1+O31))^0.1)-1 -> 0.0618
B32: Cost of capital (vanilla, real) | E32: =(1+E$31)/(1+E$5)-1 -> 0.04098039216 | F32: 0.04098039216 | G32: 0.04098039216 | H32: 0.04098039216 | I32: 0.04098039216 | J32: 0.04098039216 | K32: 0.04098039216 | L32: 0.04098039216 | M32: 0.04098039216 | N32: 0.04098039216 | O32: 0.04098039216 | P32: =(((1+F32)*(1+G32)*(1+H32)*(1+I32)*(1+J32)*(1+K32)*(1+L32)*(1+M32)*(1+N32)*(1+O32))^0.1)-1 -> 0.04098039216
A34: Vanilla (nominal)
B35: Compounding factor step 1 | E35: =1+E31 -> 1.0618 | F35: 1.0618 | G35: 1.0618 | H35: 1.0618 | I35: 1.0618 | J35: 1.0618 | K35: 1.0618 | L35: 1.0618 | M35: 1.0618 | N35: 1.0618 | O35: 1.0618
B36: Compounding factor step 2 | E36: 1 | F36: =E36*F35 -> 1.0618 | G36: =F36*G35 -> 1.12741924 | H36: 1.197093749 | I36: 1.271074143 | J36: 1.349626525 | K36: 1.433033444 | L36: 1.521594911 | M36: 1.615629476 | N36: 1.715475378 | O36: 1.821491756
A38: Vanilla (real)
B39: Compounding factor step 1 | E39: =1+E32 -> 1.040980392 | F39: 1.040980392 | G39: 1.040980392 | H39: 1.040980392 | I39: 1.040980392 | J39: 1.040980392 | K39: 1.040980392 | L39: 1.040980392 | M39: 1.040980392 | N39: 1.040980392 | O39: 1.040980392
B40: Compounding factor step 2 | E40: 1 | F40: =E40*F39 -> 1.040980392 | G40: 1.083640177 | H40: 1.128048176 | I40: 1.174276033 | J40: 1.222398325 | K40: 1.272492688 | L40: 1.324639937 | M40: 1.378924201 | N40: 1.435433056 | O40: 1.494257666

Sheet Inputs - actual
A1: Inputs - actual
E2: ='Inputs - forecast'!E2 -> 2020-06-30 | F2: ='Inputs - forecast'!F2 -> 2021-06-30 | G2: ='Inputs - forecast'!G2 -> 2022-06-30 | H2: ='Inputs - forecast'!H2 -> 2023-06-30 | I2: ='Inputs - forecast'!I2 -> 2024-06-30 | J2: ='Inputs - forecast'!J2 -> 2025-06-30 | K2: ='Inputs - forecast'!K2 -> 2026-06-30 | L2: ='Inputs - forecast'!L2 -> 2027-06-30 | M2: ='Inputs - forecast'!M2 -> 2028-06-30 | N2: ='Inputs - forecast'!N2 -> 2029-06-30 | O2: ='Inputs - forecast'!O2 -> 2030-06-30 | P2: Average
A4: Actual inflation rate | E4: 0.05 | F4: 0.05 | G4: 0.05 | H4: 0.05 | I4: 0.05 | J4: 0.05 | K4: 0.05 | L4: 0.05 | M4: 0.05 | N4: 0.05 | O4: 0.05 | P4: =(((1+F4)*(1+G4)*(1+H4)*(1+I4)*(1+J4)*(1+K4)*(1+L4)*(1+M4)*(1+N4)*(1+O4))^0.1)-1 -> 0.05
B5: CPI (end of period) | E5: 1 | F5: =E5*(1+F4) -> 1.05 | G5: 1.1025 | H5: 1.157625 | I5: 1.21550625 | J5: 1.276281563 | K5: 1.340095641 | L5: 1.407100423 | M5: 1.477455444 | N5: 1.551328216 | O5: 1.628894627
A7: Financials ($ of 30 June 2020)
B8: Opex | F8: ='Inputs - forecast'!F11 -> 100 | G8: ='Inputs - forecast'!G11 -> 100 | H8: ='Inputs - forecast'!H11 -> 100 | I8: ='Inputs - forecast'!I11 -> 100 | J8: ='Inputs - forecast'!J11 -> 100 | K8: ='Inputs - forecast'!K11 -> 100 | L8: ='Inputs - forecast'!L11 -> 100 | M8: ='Inputs - forecast'!M11 -> 100 | N8: ='Inputs - forecast'!N11 -> 100 | O8: ='Inputs - forecast'!O11 -> 100
B9: Capex | F9: ='Inputs - forecast'!F12 -> 200 | G9: ='Inputs - forecast'!G12 -> 200 | H9: ='Inputs - forecast'!H12 -> 200 | I9: ='Inputs - forecast'!I12 -> 200 | J9: ='Inputs - forecast'!J12 -> 200 | K9: ='Inputs - forecast'!K12 -> 100 | L9: ='Inputs - forecast'!L12 -> 100 | M9: ='Inputs - forecast'!M12 -> 100 | N9: ='Inputs - forecast'!N12 -> 100 | O9: ='Inputs - forecast'!O12 -> 0
B10: Opening RAB | E10: ='Inputs - forecast'!E18 -> 3000
A12: Financials (nominal)
B13: Opex | F13: =F8*F$5 -> 105 | G13: =G8*G$5 -> 110.25 | H13: 115.7625 | I13: 121.550625 | J13: 127.6281563 | K13: 134.0095641 | L13: 140.7100423 | M13: 147.7455444 | N13: 155.1328216 | O13: 162.8894627
B14: Capex | F14: =F9*F5 -> 210 | G14: 220.5 | H14: 231.525 | I14: 243.10125 | J14: 255.2563125 | K14: 134.0095641 | L14: 140.7100423 | M14: 147.7455444 | N14: 155.1328216 | O14: 0
B15: Opening RAB | E15: =E10*E5 -> 3000
A17: WACC (nominal)
B18: Cost of equity | E18: =(1+'Inputs - forecast'!E25)/(1+'Inputs - forecast'!E5)*(1+E4)-1 -> 0.1014705882 | F18: =(1+'Inputs - forecast'!F25)/(1+'Inputs - forecast'!F5)*(1+F4)-1 -> 0.1014705882 | G18: =(1+'Inputs - forecast'!G25)/(1+'Inputs - forecast'!G5)*(1+G4)-1 -> 0.1014705882 | H18: =(1+'Inputs - forecast'!H25)/(1+'Inputs - forecast'!H5)*(1+H4)-1 -> 0.1014705882 | I18: =(1+'Inputs - forecast'!I25)/(1+'Inputs - forecast'!I5)*(1+I4)-1 -> 0.1014705882 | J18: =(1+'Inputs - forecast'!J25)/(1+'Inputs - forecast'!J5)*(1+J4)-1 -> 0.1014705882 | K18: =(1+'Inputs - forecast'!K25)/(1+'Inputs - forecast'!K5)*(1+K4)-1 -> 0.1014705882 | L18: =(1+'Inputs - forecast'!L25)/(1+'Inputs - forecast'!L5)*(1+L4)-1 -> 0.1014705882 | M18: =(1+'Inputs - forecast'!M25)/(1+'Inputs - forecast'!M5)*(1+M4)-1 -> 0.1014705882 | N18: =(1+'Inputs - forecast'!N25)/(1+'Inputs - forecast'!N5)*(1+N4)-1 -> 0.1014705882 | O18: =(1+'Inputs - forecast'!O25)/(1+'Inputs - forecast'!O5)*(1+O4)-1 -> 0.1014705882
B19: Cost of debt | E19: =(1+'Inputs - forecast'!E26)/(1+'Inputs - forecast'!E5)*(1+E4)-1 -> 0.08088235294 | F19: =(1+'Inputs - forecast'!F$26)/(1+'Inputs - forecast'!F$5)*(1+F$4)-1 -> 0.08088235294 | G19: =(1+'Inputs - forecast'!G26)/(1+'Inputs - forecast'!G5)*(1+G4)-1 -> 0.08088235294 | H19: =(1+'Inputs - forecast'!H26)/(1+'Inputs - forecast'!H5)*(1+H4)-1 -> 0.08088235294 | I19: =(1+'Inputs - forecast'!I26)/(1+'Inputs - forecast'!I5)*(1+I4)-1 -> 0.08088235294 | J19: =(1+'Inputs - forecast'!J26)/(1+'Inputs - forecast'!J5)*(1+J4)-1 -> 0.08088235294 | K19: =(1+'Inputs - forecast'!K26)/(1+'Inputs - forecast'!K5)*(1+K4)-1 -> 0.08088235294 | L19: =(1+'Inputs - forecast'!L26)/(1+'Inputs - forecast'!L5)*(1+L4)-1 -> 0.08088235294 | M19: =(1+'Inputs - forecast'!M26)/(1+'Inputs - forecast'!M5)*(1+M4)-1 -> 0.08088235294 | N19: =(1+'Inputs - forecast'!N26)/(1+'Inputs - forecast'!N5)*(1+N4)-1 -> 0.08088235294 | O19: =(1+'Inputs - forecast'!O26)/(1+'Inputs - forecast'!O5)*(1+O4)-1 -> 0.08088235294
B20: Leverage | E20: ='Inputs - forecast'!E28 -> 0.41 | F20: ='Inputs - forecast'!F28 -> 0.41 | G20: ='Inputs - forecast'!G28 -> 0.41 | H20: ='Inputs - forecast'!H28 -> 0.41 | I20: ='Inputs - forecast'!I28 -> 0.41 | J20: ='Inputs - forecast'!J28 -> 0.41 | K20: ='Inputs - forecast'!K28 -> 0.41 | L20: ='Inputs - forecast'!L28 -> 0.41 | M20: ='Inputs - forecast'!M28 -> 0.41 | N20: ='Inputs - forecast'!N28 -> 0.41 | O20: ='Inputs - forecast'!O28 -> 0.41
B21: Tax rate | E21: ='Inputs - forecast'!E29 -> 0.28 | F21: ='Inputs - forecast'!F29 -> 0.28 | G21: ='Inputs - forecast'!G29 -> 0.28 | H21: ='Inputs - forecast'!H29 -> 0.28 | I21: ='Inputs - forecast'!I29 -> 0.28 | J21: ='Inputs - forecast'!J29 -> 0.28 | K21: ='Inputs - forecast'!K29 -> 0.28 | L21: ='Inputs - forecast'!L29 -> 0.28 | M21: ='Inputs - forecast'!M29 -> 0.28 | N21: ='Inputs - forecast'!N29 -> 0.28 | O21: ='Inputs - forecast'!O29 -> 0.28
B23: Cost of capital (vanilla, nominal) | E23: =E$19*E$20+E$18*(1-E$20) -> 0.09302941176 | F23: =F$19*F$20+F$18*(1-F$20) -> 0.09302941176 | G23: 0.09302941176 | H23: 0.09302941176 | I23: 0.09302941176 | J23: 0.09302941176 | K23: 0.09302941176 | L23: 0.09302941176 | M23: 0.09302941176 | N23: 0.09302941176 | O23: 0.09302941176 | P23: =(((1+F23)*(1+G23)*(1+H23)*(1+I23)*(1+J23)*(1+K23)*(1+L23)*(1+M23)*(1+N23)*(1+O23))^0.1)-1 -> 0.09302941176
B24: Cost of capital (vanilla, real) | E24: =(1+E$23)/(1+E$4)-1 -> 0.04098039216 | F24: 0.04098039216 | G24: 0.04098039216 | H24: 0.04098039216 | I24: 0.04098039216 | J24: 0.04098039216 | K24: 0.04098039216 | L24: 0.04098039216 | M24: 0.04098039216 | N24: 0.04098039216 | O24: 0.04098039216 | P24: =(((1+F24)*(1+G24)*(1+H24)*(1+I24)*(1+J24)*(1+K24)*(1+L24)*(1+M24)*(1+N24)*(1+O24))^0.1)-1 -> 0.04098039216
A26: Vanilla (nominal)
B27: Compounding factor step 1 | E27: =1+E23 -> 1.093029412 | F27: 1.093029412 | G27: 1.093029412 | H27: 1.093029412 | I27: 1.093029412 | J27: 1.093029412 | K27: 1.093029412 | L27: 1.093029412 | M27: 1.093029412 | N27: 1.093029412 | O27: 1.093029412
B28: Compounding factor step 2 | E28: 1 | F28: =E28*F27 -> 1.093029412 | G28: =F28*G27 -> 1.194713295 | H28: 1.30585677 | I28: 1.427339857 | J28: 1.560124445 | K28: 1.705261904 | L28: 1.863901416 | M28: 2.037299068 | N28: 2.226827802 | O28: 2.433988282
A30: Vanilla (real)
B31: Compounding factor step 1 | E31: =1+E24 -> 1.040980392 | F31: 1.040980392 | G31: 1.040980392 | H31: 1.040980392 | I31: 1.040980392 | J31: 1.040980392 | K31: 1.040980392 | L31: 1.040980392 | M31: 1.040980392 | N31: 1.040980392 | O31: 1.040980392
B32: Compounding factor step 2 | E32: 1 | F32: =E32*F31 -> 1.040980392 | G32: 1.083640177 | H32: 1.128048176 | I32: 1.174276033 | J32: 1.222398325 | K32: 1.272492688 | L32: 1.324639937 | M32: 1.378924201 | N32: 1.435433056 | O32: 1.494257666
A34: Blended Cost of capital (nominal) | D34: Note on calculation of blended cost of capital | F34: ='Inputs - forecast'!F26*F20+(F18*(1-F20)) -> 0.08036764706 | G34: ='Inputs - forecast'!G26*G20+(G18*(1-G20)) -> 0.08036764706 | H34: ='Inputs - forecast'!H26*H20+(H18*(1-H20)) -> 0.08036764706 | I34: ='Inputs - forecast'!I26*I20+(I18*(1-I20)) -> 0.08036764706 | J34: ='Inputs - forecast'!J26*J20+(J18*(1-J20)) -> 0.08036764706 | K34: ='Inputs - forecast'!K26*K20+(K18*(1-K20)) -> 0.08036764706 | L34: ='Inputs - forecast'!L26*L20+(L18*(1-L20)) -> 0.08036764706 | M34: ='Inputs - forecast'!M26*M20+(M18*(1-M20)) -> 0.08036764706 | N34: ='Inputs - forecast'!N26*N20+(N18*(1-N20)) -> 0.08036764706 | O34: ='Inputs - forecast'!O26*O20+(O18*(1-O20)) -> 0.08036764706
B35: Compounding factor step 1 | E35: 1 | F35: =1+F34 -> 1.080367647 | G35: =1+G34 -> 1.080367647 | H35: 1.080367647 | I35: 1.080367647 | J35: 1.080367647 | K35: 1.080367647 | L35: 1.080367647 | M35: 1.080367647 | N35: 1.080367647 | O35: 1.080367647
B36: Compounding factor step 2 | E36: 1 | F36: =E36*F35 -> 1.080367647 | G36: =F36*G35 -> 1.167194253 | H36: 1.260998909 | I36: 1.362342424 | J36: 1.471830679 | K36: 1.590118247 | L36: 1.71791231 | M36: 1.85597688 | N36: 2.005137374 | O36: 2.166285547
A38: Blended inflation rate | F38: =(1+F34)/(1+F24)-1 -> 0.03783669241 | G38: 0.03783669241 | H38: 0.03783669241 | I38: 0.03783669241 | J38: 0.03783669241 | K38: 0.03783669241 | L38: 0.03783669241 | M38: 0.03783669241 | N38: 0.03783669241 | O38: 0.03783669241
B39: Underlying inflation index | E39: 1 | F39: =E39*(1+F38) -> 1.037836692 | G39: =F39*(1+G38) -> 1.077105 | H39: 1.117859091 | I39: 1.160155181 | J39: 1.204051616 | K39: 1.249608947 | L39: 1.296890016 | M39: 1.345960045 | N39: 1.396886721 | O39: 1.449740294
B40: Rebased forecast index | E40: ='Inputs - forecast'!E7 -> 1 | F40: ='Inputs - forecast'!F7 -> 1.02 | G40: ='Inputs - forecast'!G7 -> 1.0404 | H40: ='Inputs - forecast'!H7 -> 1.061208 | I40: ='Inputs - forecast'!I7 -> 1.08243216 | J40: ='Inputs - forecast'!J7 -> 1.104080803 | K40: =J39*(1+'Inputs - forecast'!K8) -> 1.228132648 | L40: =K40*(1+'Inputs - forecast'!L8) -> 1.252695301 | M40: =L40*(1+'Inputs - forecast'!M8) -> 1.277749207 | N40: =M40*(1+'Inputs - forecast'!N8) -> 1.303304191 | O40: =N40*(1+'Inputs - forecast'!O8) -> 1.329370275
A42: Blended Cost of capital (real) | F42: =(1+F34)/(1+F38)-1 -> 0.04098039216 | G42: 0.04098039216 | H42: 0.04098039216 | I42: 0.04098039216 | J42: 0.04098039216 | K42: 0.04098039216 | L42: 0.04098039216 | M42: 0.04098039216 | N42: 0.04098039216 | O42: 0.04098039216
B43: Compounding factor step 1 | E43: 1 | F43: =1+F42 -> 1.040980392 | G43: 1.040980392 | H43: 1.040980392 | I43: 1.040980392 | J43: 1.040980392 | K43: 1.040980392 | L43: 1.040980392 | M43: 1.040980392 | N43: 1.040980392 | O43: 1.040980392
B44: Compounding factor step 2 | E44: 1 | F44: =E44*F43 -> 1.040980392 | G44: 1.083640177 | H44: 1.128048176 | I44: 1.174276033 | J44: 1.222398325 | K44: 1.272492688 | L44: 1.324639937 | M44: 1.378924201 | N44: 1.435433056 | O44: 1.494257666

Sheet Summary tables
A1: Summary tables
B3: Scenario | C3: Description | D3: NPV=0? | E3: 2021 | F3: =E3+1 -> 2022 | G3: =F3+1 -> 2023 | H3: 2024 | I3: 2025 | J3: 2026 | K3: 2027 | L3: 2028 | M3: 2029 | N3: 2030
B5: Forecast price path | D5: Y | E5: ='1 Starting point excl CODW'!F13 -> 603.4311571 | F5: ='1 Starting point excl CODW'!G13 -> 615.4997802 | G5: ='1 Starting point excl CODW'!H13 -> 627.8097758 | H5: ='1 Starting point excl CODW'!I13 -> 640.3659713 | I5: ='1 Starting point excl CODW'!J13 -> 653.1732908 | J5: ='1 Starting point excl CODW'!K13 -> 967.5871891 | K5: ='1 Starting point excl CODW'!L13 -> 986.9389329 | L5: ='1 Starting point excl CODW'!M13 -> 1006.677712 | M5: ='1 Starting point excl CODW'!N13 -> 1026.811266 | N5: ='1 Starting point excl CODW'!O13 -> 1047.347491
B7: Wash-up accrual
A8: 1 | B8: Starting point excluding the CODW | C8: Prior to draft decision: No cost of debt adjustment | D8: Y | E8: ='1 Starting point excl CODW'!F164 -> 17.74797521 | F8: ='1 Starting point excl CODW'!G164 -> 36.73830868 | G8: ='1 Starting point excl CODW'!H164 -> 57.04021752 | H8: ='1 Starting point excl CODW'!I164 -> 78.72652167 | I8: ='1 Starting point excl CODW'!J164 -> 101.8738269 | J8: ='1 Starting point excl CODW'!K164 -> 28.45844674 | K8: ='1 Starting point excl CODW'!L164 -> 58.90898475 | L8: ='1 Starting point excl CODW'!M164 -> 91.46260197 | M8: ='1 Starting point excl CODW'!N164 -> 126.2360634 | N8: ='1 Starting point excl CODW'!O164 -> 163.3522046
A9: 2 | B9: Draft decision: Incl CODW | C9: Cost of debt adjustment | D9: Y | E9: ='2 Incl CODW'!F163 -> -20.23731891 | F9: ='2 Incl CODW'!G163 -> -1.816764848 | G9: ='2 Incl CODW'!H163 -> 18.26356311 | H9: ='2 Incl CODW'!I163 -> 40.16895536 | I9: ='2 Incl CODW'!J163 -> 64.09392639 | J9: ='2 Incl CODW'!K163 -> -7.830961577 | K9: ='2 Incl CODW'!L163 -> 26.7290842 | L9: ='2 Incl CODW'!M163 -> 64.33929284 | M9: ='2 Incl CODW'!N163 -> 105.3790277 | N9: ='2 Incl CODW'!O163 -> 150.4380055
A10: 2b | B10: Incl CODW with smoothing | C10: Cost of debt adjustment with smoothing | D10: Y | E10: ='2b Incl CODW smoothed'!F175 -> 10.15091638 | F10: ='2b Incl CODW smoothed'!G175 -> 20.81967741 | G10: ='2b Incl CODW smoothed'!H175 -> 32.08691243 | H10: ='2b Incl CODW smoothed'!I175 -> 44.0562649 | I10: ='2b Incl CODW smoothed'!J175 -> 56.86122306 | J10: ='2b Incl CODW smoothed'!K175 -> -16.24801157 | K10: ='2b Incl CODW smoothed'!L175 -> 15.52290147 | L10: ='2b Incl CODW smoothed'!M175 -> 50.57955336 | M10: ='2b Incl CODW smoothed'!N175 -> 89.24597504 | N10: ='2b Incl CODW smoothed'!O175 -> 131.9275933
A11: 3 | B11: Hybrid RAB | C11: Indexing only the equity portion of the RAB | D11: N | E11: ='3 Hybrid RAB'!F166 -> 18.28956091 | F11: ='3 Hybrid RAB'!G166 -> 37.85939108 | G11: ='3 Hybrid RAB'!H166 -> 58.7808198 | H11: ='3 Hybrid RAB'!I166 -> 81.12888914 | I11: ='3 Hybrid RAB'!J166 -> 104.9825425 | J11: ='3 Hybrid RAB'!K166 -> 26.51440808 | K11: ='3 Hybrid RAB'!L166 -> 54.88482472 | L11: ='3 Hybrid RAB'!M166 -> 85.21465613 | M11: ='3 Hybrid RAB'!N166 -> 117.6126909 | N11: ='3 Hybrid RAB'!O166 -> 152.1933735
A12: 4 | B12: Debt forecast | C12: Wash-up only the equity portion of the RAB | D12: N | E12: ='4 Debt forecast'!F164 -> 17.74797521 | F12: ='4 Debt forecast'!G164 -> 36.73830868 | G12: ='4 Debt forecast'!H164 -> 57.04021752 | H12: ='4 Debt forecast'!I164 -> 78.72652167 | I12: ='4 Debt forecast'!J164 -> 101.8738269 | J12: ='4 Debt forecast'!K164 -> 27.27245951 | K12: ='4 Debt forecast'!L164 -> 56.45399118 | L12: ='4 Debt forecast'!M164 -> 87.65095761 | M12: ='4 Debt forecast'!N164 -> 120.9752577 | N12: ='4 Debt forecast'!O164 -> 156.5446078
A13: 5 | B13: Blended CPI | C13: Revenue and RAB wash-up using blended CPI | D13: Y | E13: ='5 Blended CPI'!F164 -> 14.20116477 | F13: ='5 Blended CPI'!G164 -> 29.3331477 | G13: ='5 Blended CPI'!H164 -> 45.44451123 | H13: ='5 Blended CPI'!I164 -> 62.58619577 | I13: ='5 Blended CPI'!J164 -> 80.81163419 | J13: ='5 Blended CPI'!K164 -> 19.32744574 | K13: ='5 Blended CPI'!L164 -> 39.86586985 | L13: ='5 Blended CPI'!M164 -> 61.67534271 | M13: ='5 Blended CPI'!N164 -> 84.81872547 | N13: ='5 Blended CPI'!O164 -> 100.1432227
B15: Revenue + accrual (i.e. no wash-up lag)
A16: 1 | B16: Starting point excluding the CODW | C16: Prior to draft decision: No cost of debt adjustment | D16: Y | E16: ='1 Starting point excl CODW'!F179 -> 621.1791323 | F16: ='1 Starting point excl CODW'!G179 -> 652.2380889 | G16: ='1 Starting point excl CODW'!H179 -> 684.8499933 | H16: ='1 Starting point excl CODW'!I179 -> 719.092493 | I16: ='1 Starting point excl CODW'!J179 -> 755.0471177 | J16: ='1 Starting point excl CODW'!K179 -> 996.0456358 | K16: ='1 Starting point excl CODW'!L179 -> 1045.847918 | L16: ='1 Starting point excl CODW'!M179 -> 1098.140314 | M16: ='1 Starting point excl CODW'!N179 -> 1153.047329 | N16: ='1 Starting point excl CODW'!O179 -> 1210.699696
A17: 2 | B17: Draft decision: Incl CODW | C17: Cost of debt adjustment | D17: Y | E17: ='2 Incl CODW'!F178 -> 583.1938382 | F17: ='2 Incl CODW'!G178 -> 613.6830154 | G17: ='2 Incl CODW'!H178 -> 646.0733389 | H17: ='2 Incl CODW'!I178 -> 680.5349267 | I17: ='2 Incl CODW'!J178 -> 717.2672172 | J17: ='2 Incl CODW'!K178 -> 959.7562275 | K17: ='2 Incl CODW'!L178 -> 1013.668017 | L17: ='2 Incl CODW'!M178 -> 1071.017004 | M17: ='2 Incl CODW'!N178 -> 1132.190293 | N17: ='2 Incl CODW'!O178 -> 1197.785497
A18: 2b | B18: Incl CODW with smoothing | C18: Cost of debt adjustment with smoothing | D18: Y | E18: ='2b Incl CODW smoothed'!F190 -> 613.5820735 | F18: ='2b Incl CODW smoothed'!G190 -> 636.3194576 | G18: ='2b Incl CODW smoothed'!H190 -> 659.8966883 | H18: ='2b Incl CODW smoothed'!I190 -> 684.4222362 | I18: ='2b Incl CODW smoothed'!J190 -> 710.0345138 | J18: ='2b Incl CODW smoothed'!K190 -> 951.3391775 | K18: ='2b Incl CODW smoothed'!L190 -> 1002.461834 | L18: ='2b Incl CODW smoothed'!M190 -> 1057.257265 | M18: ='2b Incl CODW smoothed'!N190 -> 1116.057241 | N18: ='2b Incl CODW smoothed'!O190 -> 1179.275084
A19: 3 | B19: Hybrid RAB | C19: Indexing only the equity portion of the RAB | D19: N | E19: ='3 Hybrid RAB'!F181 -> 640.1346318 | F19: ='3 Hybrid RAB'!G181 -> 672.1413633 | G19: ='3 Hybrid RAB'!H181 -> 705.7484315 | H19: ='3 Hybrid RAB'!I181 -> 741.0358531 | I19: ='3 Hybrid RAB'!J181 -> 778.0876457 | J19: ='3 Hybrid RAB'!K181 -> 928.0042828 | K19: ='3 Hybrid RAB'!L181 -> 974.4044969 | L19: ='3 Hybrid RAB'!M181 -> 1023.124722 | M19: ='3 Hybrid RAB'!N181 -> 1074.280958 | N19: ='3 Hybrid RAB'!O181 -> 1127.995006
A20: 4 | B20: Debt forecast | C20: Wash-up only the equity portion of the RAB | D20: N | E20: ='4 Debt forecast'!F179 -> 621.1791323 | F20: ='4 Debt forecast'!G179 -> 652.2380889 | G20: ='4 Debt forecast'!H179 -> 684.8499933 | H20: ='4 Debt forecast'!I179 -> 719.092493 | I20: ='4 Debt forecast'!J179 -> 755.0471177 | J20: ='4 Debt forecast'!K179 -> 954.5360828 | K20: ='4 Debt forecast'!L179 -> 1002.262887 | L20: ='4 Debt forecast'!M179 -> 1052.376031 | M20: ='4 Debt forecast'!N179 -> 1104.994833 | N20: ='4 Debt forecast'!O179 -> 1160.244574
A21: 5 | B21: Blended CPI | C21: Revenue and RAB wash-up using blended CPI | D21: Y | E21: ='5 Blended CPI'!F179 -> 617.6323218 | F21: ='5 Blended CPI'!G179 -> 644.8329279 | G21: ='5 Blended CPI'!H179 -> 673.2542871 | H21: ='5 Blended CPI'!I179 -> 702.9521671 | I21: ='5 Blended CPI'!J179 -> 733.984925 | J21: ='5 Blended CPI'!K179 -> 947.0296235 | K21: ='5 Blended CPI'!L179 -> 986.1220911 | L21: ='5 Blended CPI'!M179 -> 1026.856688 | M21: ='5 Blended CPI'!N179 -> 1069.303698 | N21: ='5 Blended CPI'!O179 -> 1104.317895

Sheet 1 Starting point excl CODW
A1: Calculation
A3: Analysis
A10: Calculation
A11: Forecast | D11: Return over forecast period | E11: ='Inputs - forecast'!E2 -> 2020-06-30 | F11: ='Inputs - forecast'!F2 -> 2021-06-30 | G11: ='Inputs - forecast'!G2 -> 2022-06-30 | H11: ='Inputs - forecast'!H2 -> 2023-06-30 | I11: ='Inputs - forecast'!I2 -> 2024-06-30 | J11: ='Inputs - forecast'!J2 -> 2025-06-30 | K11: ='Inputs - forecast'!K2 -> 2026-06-30 | L11: ='Inputs - forecast'!L2 -> 2027-06-30 | M11: ='Inputs - forecast'!M2 -> 2028-06-30 | N11: ='Inputs - forecast'!N2 -> 2029-06-30 | O11: ='Inputs - forecast'!O2 -> 2030-06-30
A12: Building blocks
B13: Revenue | F13: =K69 -> 603.4311571 | G13: =F13*(1+'Inputs - forecast'!G5) -> 615.4997802 | H13: =G13*(1+'Inputs - forecast'!H5) -> 627.8097758 | I13: =H13*(1+'Inputs - forecast'!I5) -> 640.3659713 | J13: =I13*(1+'Inputs - forecast'!J5) -> 653.1732908 | K13: =P76 -> 967.5871891 | L13: =K13*(1+'Inputs - forecast'!L5) -> 986.9389329 | M13: =L13*(1+'Inputs - forecast'!M5) -> 1006.677712 | N13: =M13*(1+'Inputs - forecast'!N5) -> 1026.811266 | O13: =N13*(1+'Inputs - forecast'!O5) -> 1047.347491
B14: Return on debt | F14: =-SUM(F$38)*'Inputs - forecast'!F$28*'Inputs - forecast'!F$26 -> -61.5 | G14: =-SUM(G$38)*'Inputs - forecast'!G$28*'Inputs - forecast'!G$26 -> -60.639 | H14: =-SUM(H$38)*'Inputs - forecast'!H$28*'Inputs - forecast'!H$26 -> -59.245 | I14: =-SUM(I$38)*'Inputs - forecast'!I$28*'Inputs - forecast'!I$26 -> -57.2271153 | J14: =-SUM(J$38)*'Inputs - forecast'!J$28*'Inputs - forecast'!J$26 -> -54.47082123 | K14: =-SUM(K$38)*'Inputs - forecast'!K$28*'Inputs - forecast'!K$26 -> -58.75428013 | L14: =-SUM(L$38)*'Inputs - forecast'!L$28*'Inputs - forecast'!L$26 -> -50.61219733 | M14: =-SUM(M$38)*'Inputs - forecast'!M$28*'Inputs - forecast'!M$26 -> -41.4404098 | N14: =-SUM(N$38)*'Inputs - forecast'!N$28*'Inputs - forecast'!N$26 -> -30.95599908 | O14: =-SUM(O$38)*'Inputs - forecast'!O$28*'Inputs - forecast'!O$26 -> -18.61961036
B15: Return on equity | F15: =-SUM(F$38)*(1-'Inputs - forecast'!F$28)*'Inputs - forecast'!F$25 -> -123.9 | G15: =-SUM(G$38)*(1-'Inputs - forecast'!G$28)*'Inputs - forecast'!G$25 -> -122.1654 | H15: =-SUM(H$38)*(1-'Inputs - forecast'!H$28)*'Inputs - forecast'!H$25 -> -119.357 | I15: =-SUM(I$38)*(1-'Inputs - forecast'!I$28)*'Inputs - forecast'!I$25 -> -115.2917006 | J15: =-SUM(J$38)*(1-'Inputs - forecast'!J$28)*'Inputs - forecast'!J$25 -> -109.7387764 | K15: =-SUM(K$38)*(1-'Inputs - forecast'!K$28)*'Inputs - forecast'!K$25 -> -118.368379 | L15: =-SUM(L$38)*(1-'Inputs - forecast'!L$28)*'Inputs - forecast'!L$25 -> -101.965061 | M15: =-SUM(M$38)*(1-'Inputs - forecast'!M$28)*'Inputs - forecast'!M$25 -> -83.48726462 | N15: =-SUM(N$38)*(1-'Inputs - forecast'!N$28)*'Inputs - forecast'!N$25 -> -62.36501279 | O15: =-SUM(O$38)*(1-'Inputs - forecast'!O$28)*'Inputs - forecast'!O$25 -> -37.51170282
B16: Revaluation | F16: =F39 -> 60 | G16: =G39 -> 59.16 | H16: 57.8 | I16: 55.831332 | J16: 53.14226462 | K16: 57.32124891 | L16: 49.3777535 | M16: 40.4296681 | N16: 30.20097472 | O16: 18.16547352
B17: Tax | F17: =F60 -> -39.18072398 | G17: =G60 -> -35.8831518 | H17: -31.85484656 | I17: -26.85164855 | J17: -20.50059815 | K17: -89.43507726 | L17: -87.29168632 | M17: -82.2498481 | N17: -71.10281131 | O17: -40.85184001
B18: Opex | F18: =-'Inputs - forecast'!F16 -> -102 | G18: =-'Inputs - forecast'!G16 -> -104.04 | H18: =-'Inputs - forecast'!H16 -> -106.1208 | I18: =-'Inputs - forecast'!I16 -> -108.243216 | J18: =-'Inputs - forecast'!J16 -> -110.4080803 | K18: =-'Inputs - forecast'!K16 -> -130.1807194 | L18: =-'Inputs - forecast'!L16 -> -132.7843338 | M18: =-'Inputs - forecast'!M16 -> -135.4400204 | N18: =-'Inputs - forecast'!N16 -> -138.1488208 | O18: =-'Inputs - forecast'!O16 -> -140.9117973
B19: Depreciation | F19: =F41 -> -306 | G19: =G41 -> -335.24 | H19: -368.475 | I19: -406.7711331 | J19: -451.7092492 | K19: -584.6767388 | L19: -629.5663571 | M19: -687.3043577 | N19: -770.1248553 | O19: -926.4391496
B20: Net revenue | F20: =SUM(F13:F19) -> 30.8504331 | G20: =SUM(G13:G19) -> 16.69222843 | H20: =SUM(H13:H19) -> 0.5571292615 | I20: -18.18751023 | J20: -40.51197 | K20: 43.4932434 | L20: 34.09705093 | M20: 17.18547899 | N20: -15.6852588 | O20: -98.82113547
B21: Present value | F21: =F20/'Inputs - forecast'!F$36 -> 29.05484375 | G21: =G20/'Inputs - forecast'!G$36 -> 14.80569768 | H21: =H20/'Inputs - forecast'!H$36 -> 0.4654015293 | I21: =I20/'Inputs - forecast'!I$36 -> -14.3087721 | J21: =J20/'Inputs - forecast'!J$36 -> -30.01717087 | K21: =K20/'Inputs - forecast'!K$36 -> 30.35047339 | L21: =L20/'Inputs - forecast'!L$36 -> 22.40875721 | M21: =M20/'Inputs - forecast'!M$36 -> 10.63701749 | N21: =N20/'Inputs - forecast'!N$36 -> -9.143389059 | O21: =O20/'Inputs - forecast'!O$36 -> -54.25285903
B22: Sum of present values | O22: =SUM(F21:O21) -> 4.703792911e-12
A24: Regulatory cashflows
B25: Revenue | F25: =F13 -> 603.4311571 | G25: =G13 -> 615.4997802 | H25: 627.8097758 | I25: 640.3659713 | J25: 653.1732908 | K25: 967.5871891 | L25: 986.9389329 | M25: 1006.677712 | N25: 1026.811266 | O25: 1047.347491
B26: Opex | F26: =-'Inputs - forecast'!F$16 -> -102 | G26: =-'Inputs - forecast'!G$16 -> -104.04 | H26: =-'Inputs - forecast'!H$16 -> -106.1208 | I26: =-'Inputs - forecast'!I$16 -> -108.243216 | J26: =-'Inputs - forecast'!J$16 -> -110.4080803 | K26: =-'Inputs - forecast'!K$16 -> -130.1807194 | L26: =-'Inputs - forecast'!L$16 -> -132.7843338 | M26: =-'Inputs - forecast'!M$16 -> -135.4400204 | N26: =-'Inputs - forecast'!N$16 -> -138.1488208 | O26: =-'Inputs - forecast'!O$16 -> -140.9117973
B27: Tax | F27: =F17 -> -39.18072398 | G27: =G17 -> -35.8831518 | H27: -31.85484656 | I27: -26.85164855 | J27: -20.50059815 | K27: -89.43507726 | L27: -87.29168632 | M27: -82.2498481 | N27: -71.10281131 | O27: -40.85184001
B28: Capex | F28: =-'Inputs - forecast'!F$17 -> -204 | G28: =-'Inputs - forecast'!G$17 -> -208.08 | H28: =-'Inputs - forecast'!H$17 -> -212.2416 | I28: =-'Inputs - forecast'!I$17 -> -216.486432 | J28: =-'Inputs - forecast'!J$17 -> -220.8161606 | K28: =-'Inputs - forecast'!K$17 -> -130.1807194 | L28: =-'Inputs - forecast'!L$17 -> -132.7843338 | M28: =-'Inputs - forecast'!M$17 -> -135.4400204 | N28: =-'Inputs - forecast'!N$17 -> -138.1488208 | O28: =-'Inputs - forecast'!O$17 -> 0
B29: Opening RAB | E29: =-'Inputs - forecast'!E$18 -> -3000
B30: Closing RAB | J30: =-(J44-J42) -> -386.7000384 | O30: =O42 -> 0
B31: Sum | E31: =SUM(E25:E30) -> -3000 | F31: =SUM(F25:F30) -> 258.2504331 | G31: 267.4966284 | H31: 277.5925293 | I31: 288.7846748 | J31: -85.25158679 | K31: 617.7906731 | L31: 634.078579 | M31: 653.5478226 | N31: 679.4108128 | O31: 865.5838538
B32: Present value | E32: =E31/'Inputs - forecast'!E$36 -> -3000 | F32: =F31/'Inputs - forecast'!F$36 -> 243.2194699 | G32: =G31/'Inputs - forecast'!G$36 -> 237.2645587 | H32: =H31/'Inputs - forecast'!H$36 -> 231.8887134 | I32: =I31/'Inputs - forecast'!I$36 -> 227.1973484 | J32: =J31/'Inputs - forecast'!J$36 -> -63.16679854 | K32: =K31/'Inputs - forecast'!K$36 -> 431.1069471 | L32: =L31/'Inputs - forecast'!L$36 -> 416.7197028 | M32: =M31/'Inputs - forecast'!M$36 -> 404.5159067 | N32: =N31/'Inputs - forecast'!N$36 -> 396.0481284 | O32: =O31/'Inputs - forecast'!O$36 -> 475.2060232
B33: Sum of present values | O33: =SUM(E32:O32) -> 3.524291969e-12
A35: Regulatory Asset Base
B36: Useful lives | F36: 10 | G36: =F36-1 -> 9 | H36: =G36-1 -> 8 | I36: 7 | J36: 6 | K36: 5 | L36: 4 | M36: 3 | N36: 2 | O36: 1
B38: Opening RAB | F38: =E42 -> 3000 | G38: =F42 -> 2958 | H38: 2890 | I38: 2791.5666 | J38: 2657.113231 | K38: =J44 -> 2866.062445 | L38: =K42 -> 2468.887675 | M38: =L42 -> 2021.483405 | N38: 1510.048736 | O38: 908.2736761
B39: Revaluation | F39: =F38*('Inputs - forecast'!F$5) -> 60 | G39: =G38*('Inputs - forecast'!G$5) -> 59.16 | H39: =H38*('Inputs - forecast'!H$5) -> 57.8 | I39: =I38*('Inputs - forecast'!I$5) -> 55.831332 | J39: =J38*('Inputs - forecast'!J$5) -> 53.14226462 | K39: =K38*('Inputs - forecast'!K$5) -> 57.32124891 | L39: =L38*('Inputs - forecast'!L$5) -> 49.3777535 | M39: =M38*('Inputs - forecast'!M$5) -> 40.4296681 | N39: =N38*('Inputs - forecast'!N$5) -> 30.20097472 | O39: =O38*('Inputs - forecast'!O$5) -> 18.16547352
B40: Capex | F40: =-F28 -> 204 | G40: =-G28 -> 208.08 | H40: 212.2416 | I40: 216.486432 | J40: 220.8161606 | K40: 130.1807194 | L40: 132.7843338 | M40: 135.4400204 | N40: 138.1488208 | O40: 0
B41: Depreciation | F41: =-SUM(F38:F39)/F36 -> -306 | G41: =-SUM(G38:G39)/G36 -> -335.24 | H41: -368.475 | I41: -406.7711331 | J41: -451.7092492 | K41: -584.6767388 | L41: -629.5663571 | M41: -687.3043577 | N41: -770.1248553 | O41: -926.4391496
B42: Closing RAB | E42: =-E29 -> 3000 | F42: =SUM(F38:F41) -> 2958 | G42: 2890 | H42: 2791.5666 | I42: 2657.113231 | J42: 2479.362407 | K42: 2468.887675 | L42: 2021.483405 | M42: 1510.048736 | N42: 908.2736761 | O42: 0
B44: RAB adjusted for actual inflation | J44: =J42/'Inputs - forecast'!J4*'Inputs - actual'!J5 -> 2866.062445 | Q44: Note
B45: Check to actual RAB | J45: =J125-J44 -> 0
A48: Tax asset base | F48: =F36 -> 10 | G48: 9 | H48: 8 | I48: 7 | J48: 6 | K48: 5 | L48: 4 | M48: 3 | N48: 2 | O48: 1
B49: Opening balance | F49: =E52 -> 3000 | G49: =F52 -> 2904 | H49: =G52 -> 2789.413333 | I49: 2652.978267 | J49: 2490.467803 | K49: 2296.205997 | L49: 1967.145517 | M49: 1608.143471 | N49: 1207.535668 | O49: 741.9166549
B50: Capex | F50: =-F28 -> 204 | G50: 208.08 | H50: 212.2416 | I50: 216.486432 | J50: 220.8161606 | K50: 130.1807194 | L50: 132.7843338 | M50: 135.4400204 | N50: 138.1488208 | O50: 0
B51: Depreciation | F51: =-F49/F48 -> -300 | G51: =-G49/G48 -> -322.6666667 | H51: -348.6766667 | I51: -378.9968952 | J51: -415.0779672 | K51: -459.2411994 | L51: -491.7863792 | M51: -536.0478238 | N51: -603.767834 | O51: -741.9166549
B52: Closing balance | E52: =E42 -> 3000 | F52: =SUM(F49:F51) -> 2904 | G52: =SUM(G49:G51) -> 2789.413333 | H52: =SUM(H49:H51) -> 2652.978267 | I52: 2490.467803 | J52: 2296.205997 | K52: 1967.145517 | L52: 1608.143471 | M52: 1207.535668 | N52: 741.9166549 | O52: 0
A54: Regulatory tax
B55: Revenue | F55: =F13 -> 603.4311571 | G55: =G13 -> 615.4997802 | H55: 627.8097758 | I55: 640.3659713 | J55: 653.1732908 | K55: 967.5871891 | L55: 986.9389329 | M55: 1006.677712 | N55: 1026.811266 | O55: 1047.347491
B56: Depreciation | F56: =F51 -> -300 | G56: -322.6666667 | H56: -348.6766667 | I56: -378.9968952 | J56: -415.0779672 | K56: -459.2411994 | L56: -491.7863792 | M56: -536.0478238 | N56: -603.767834 | O56: -741.9166549
B57: Opex | F57: =F18 -> -102 | G57: =G18 -> -104.04 | H57: -106.1208 | I57: -108.243216 | J57: -110.4080803 | K57: -130.1807194 | L57: -132.7843338 | M57: -135.4400204 | N57: -138.1488208 | O57: -140.9117973
B58: Notional interest | F58: =-'Inputs - forecast'!F$26*'Inputs - forecast'!F28*F38 -> -61.5 | G58: =-'Inputs - forecast'!G$26*'Inputs - forecast'!G28*G38 -> -60.639 | H58: =-'Inputs - forecast'!H$26*'Inputs - forecast'!H28*H38 -> -59.245 | I58: =-'Inputs - forecast'!I$26*'Inputs - forecast'!I28*I38 -> -57.2271153 | J58: =-'Inputs - forecast'!J$26*'Inputs - forecast'!J28*J38 -> -54.47082123 | K58: =-'Inputs - forecast'!K$26*'Inputs - forecast'!K28*K38 -> -58.75428013 | L58: =-'Inputs - forecast'!L$26*'Inputs - forecast'!L28*L38 -> -50.61219733 | M58: =-'Inputs - forecast'!M$26*'Inputs - forecast'!M28*M38 -> -41.4404098 | N58: =-'Inputs - forecast'!N$26*'Inputs - forecast'!N28*N38 -> -30.95599908 | O58: =-'Inputs - forecast'!O$26*'Inputs - forecast'!O28*O38 -> -18.61961036
B59: EBT | F59: =SUM(F55:F58) -> 139.9311571 | G59: =SUM(G55:G58) -> 128.1541136 | H59: 113.7673092 | I59: 95.8987448 | J59: 73.21642198 | K59: 319.4109902 | L59: 311.7560226 | M59: 293.7494575 | N59: 253.9386118 | O59: 145.8994286
B60: Calculated tax | F60: =-F59*'Inputs - forecast'!F29 -> -39.18072398 | G60: =-G59*'Inputs - forecast'!G29 -> -35.8831518 | H60: =-H59*'Inputs - forecast'!H29 -> -31.85484656 | I60: =-I59*'Inputs - forecast'!I29 -> -26.85164855 | J60: =-J59*'Inputs - forecast'!J29 -> -20.50059815 | K60: =-K59*'Inputs - forecast'!K29 -> -89.43507726 | L60: =-L59*'Inputs - forecast'!L29 -> -87.29168632 | M60: =-M59*'Inputs - forecast'!M29 -> -82.2498481 | N60: =-N59*'Inputs - forecast'!N29 -> -71.10281131 | O60: =-O59*'Inputs - forecast'!O29 -> -40.85184001
B61: Deferred tax | F61: =IF(F60>0,F60,0) -> 0 | G61: =IF(G60>0,G60,0) -> 0 | H61: =IF(H60>0,H60,0) -> 0 | I61: =IF(I60>0,I60,0) -> 0 | J61: =IF(J60>0,J60,0) -> 0 | K61: 0 | L61: 0 | M61: 0 | N61: 0 | O61: 0
B62: Tax | F62: =IF(F61>0,0,F60+E61) -> -39.18072398 | G62: -35.8831518 | H62: -31.85484656 | I62: -26.85164855 | J62: -20.50059815 | K62: -89.43507726 | L62: -87.29168632 | M62: -82.2498481 | N62: -71.10281131 | O62: -40.85184001
A64: Reg Period 1
A65: Calculation of revenue | K65: Sum
B66: Present value of revenue | F66: =F13/'Inputs - forecast'!F$36 -> 568.3096224 | G66: =G13/'Inputs - forecast'!G$36 -> 545.9369136 | H66: =H13/'Inputs - forecast'!H$36 -> 524.4449537 | I66: =I13/'Inputs - forecast'!I$36 -> 503.7990703 | J66: =J13/'Inputs - forecast'!J$36 -> 483.9659556 | K66: =SUM(F66:J66) -> 2626.456516
B67: Present value of cost | F67: =SUM(F14:F19)/'Inputs - forecast'!F$36 -> -539.2547787 | G67: =SUM(G14:G19)/'Inputs - forecast'!G$36 -> -531.1312159 | H67: =SUM(H14:H19)/'Inputs - forecast'!H$36 -> -523.9795522 | I67: =SUM(I14:I19)/'Inputs - forecast'!I$36 -> -518.1078424 | J67: =SUM(J14:J19)/'Inputs - forecast'!J$36 -> -513.9831265 | K67: =SUM(F67:J67) -> -2626.456516
B68: Difference | K68: =SUM(K66:K67) -> 4.092726158e-12
B69: Revenue | K69: 603.4311571
A71: Reg Period 2
A72: Calculation of revenue | P72: Sum
B73: Present value of revenue | K73: =K13/'Inputs - forecast'!K$36 -> 675.2020989 | L73: =L13/'Inputs - forecast'!L$36 -> 648.6213419 | M73: =M13/'Inputs - forecast'!M$36 -> 623.0869926 | N73: =N13/'Inputs - forecast'!N$36 -> 598.5578569 | O73: =O13/'Inputs - forecast'!O$36 -> 574.9943624 | P73: =SUM(K73:O73) -> 3120.462653
B74: Present value of cost | K74: =SUM(K14:K19)/'Inputs - forecast'!K$36 -> -644.8516255 | L74: =SUM(L14:L19)/'Inputs - forecast'!L$36 -> -626.2125847 | M74: =SUM(M14:M19)/'Inputs - forecast'!M$36 -> -612.4499751 | N74: =SUM(N14:N19)/'Inputs - forecast'!N$36 -> -607.701246 | O74: =SUM(O14:O19)/'Inputs - forecast'!O$36 -> -629.2472215 | P74: =SUM(K74:O74) -> -3120.462653
B75: Difference | P75: =SUM(P73:P74) -> 0
B76: Revenue | P76: 967.5871891
A78: Actual | D78: =D11 -> Return over forecast period | E78: =E11 -> 2020-06-30 | F78: 2021-06-30 | G78: 2022-06-30 | H78: 2023-06-30 | I78: 2024-06-30 | J78: 2025-06-30 | K78: 2026-06-30 | L78: 2027-06-30 | M78: 2028-06-30 | N78: 2029-06-30 | O78: 2030-06-30
A79: Actual regulatory cashflows
B80: Revenue (no delay in wash-ups) | F80: =F$13/'Inputs - forecast'!F$4*'Inputs - actual'!F$5 -> 621.1791323 | G80: =G$13/'Inputs - forecast'!G$4*'Inputs - actual'!G$5 -> 652.2380889 | H80: =H$13/'Inputs - forecast'!H$4*'Inputs - actual'!H$5 -> 684.8499933 | I80: =I$13/'Inputs - forecast'!I$4*'Inputs - actual'!I$5 -> 719.092493 | J80: =J$13/'Inputs - forecast'!J$4*'Inputs - actual'!J$5 -> 755.0471177 | K80: =K$13/'Inputs - forecast'!K$7*'Inputs - actual'!K$5 -> 996.0456358 | L80: =L$13/'Inputs - forecast'!L$7*'Inputs - actual'!L$5 -> 1045.847918 | M80: =M$13/'Inputs - forecast'!M$7*'Inputs - actual'!M$5 -> 1098.140314 | N80: =N$13/'Inputs - forecast'!N$7*'Inputs - actual'!N$5 -> 1153.047329 | O80: =O$13/'Inputs - forecast'!O$7*'Inputs - actual'!O$5 -> 1210.699696 | Q80: Note
B81: Opex | F81: =F$18/'Inputs - forecast'!F$7*'Inputs - actual'!F$5 -> -105 | G81: =G$18/'Inputs - forecast'!G$7*'Inputs - actual'!G$5 -> -110.25 | H81: =H$18/'Inputs - forecast'!H$7*'Inputs - actual'!H$5 -> -115.7625 | I81: =I$18/'Inputs - forecast'!I$7*'Inputs - actual'!I$5 -> -121.550625 | J81: =J$18/'Inputs - forecast'!J$7*'Inputs - actual'!J$5 -> -127.6281563 | K81: =K$18/'Inputs - forecast'!K$7*'Inputs - actual'!K$5 -> -134.0095641 | L81: =L$18/'Inputs - forecast'!L$7*'Inputs - actual'!L$5 -> -140.7100423 | M81: =M$18/'Inputs - forecast'!M$7*'Inputs - actual'!M$5 -> -147.7455444 | N81: =N$18/'Inputs - forecast'!N$7*'Inputs - actual'!N$5 -> -155.1328216 | O81: =O$18/'Inputs - forecast'!O$7*'Inputs - actual'!O$5 -> -162.8894627
B82: Capex | F82: =-F114 -> -210 | G82: =-G114 -> -220.5 | H82: -231.525 | I82: -243.10125 | J82: -255.2563125 | K82: -134.0095641 | L82: -140.7100423 | M82: -147.7455444 | N82: -155.1328216 | O82: 0
B83: Tax | F83: =F136+F144 -> -40.33309822 | G83: =G136+G144 -> -38.02496622 | H83: -34.74904708 | I83: -30.15278725 | J83: -23.69802588 | K83: -92.06552071 | L83: -92.50200324 | M83: -89.72273146 | N83: -79.84418307 | O83: -47.22340072
B84: Gain on RAB | J84: =J45 -> 0 | Q84: Note
B85: Nominal IRR | D85: =IRR(E85:O85,0.05) -> 0.09302941176 | E85: =-E42+SUM(E80:E83) -> -3000 | F85: =SUM(F80:F83) -> 265.8460341 | G85: 283.4631227 | H85: 302.8134463 | I85: 324.2878308 | J85: 348.464623 | K85: 635.960987 | L85: 671.9258299 | M85: 712.9264933 | N85: 762.9375029 | O85: 1000.586832
B88: Real IRR | D88: =IRR(E88:O88,0.05) -> 0.04098039216 | E88: =E85 -> -3000 | F88: =F85/'Inputs - actual'!F$5 -> 253.1866991 | G88: =G85/'Inputs - actual'!G$5 -> 257.1094083 | H88: =H85/'Inputs - actual'!H$5 -> 261.5816402 | I88: =I85/'Inputs - actual'!I$5 -> 266.7924009 | J88: =J85/'Inputs - actual'!J$5 -> 273.0311502 | K88: =K85/'Inputs - actual'!K$5 -> 474.5638802 | L88: =L85/'Inputs - actual'!L$5 -> 477.5251425 | M88: =M85/'Inputs - actual'!M$5 -> 482.5367129 | N88: =N85/'Inputs - actual'!N$5 -> 491.7963169 | O88: =O85/'Inputs - actual'!O$5 -> 614.2735176
B89: check to inputs | D89: =D88-'Inputs - actual'!P24 -> -2.06279438e-13
A91: Actual return (building blocks)
B92: Revenue | F92: =F80 -> 621.1791323 | G92: 652.2380889 | H92: 684.8499933 | I92: 719.092493 | J92: 755.0471177 | K92: 996.0456358 | L92: 1045.847918 | M92: 1098.140314 | N92: 1153.047329 | O92: 1210.699696
B93: Opex | F93: =F81 -> -105 | G93: =G81 -> -110.25 | H93: -115.7625 | I93: -121.550625 | J93: -127.6281563 | K93: -134.0095641 | L93: -140.7100423 | M93: -147.7455444 | N93: -155.1328216 | O93: -162.8894627
B94: Return on debt (variable) | F94: =-F121*'Inputs - actual'!F$19*('Inputs - actual'!F$20) -> -99.48529412 | G94: =-G121*'Inputs - actual'!G$19*('Inputs - actual'!G$20) -> -100.9775735 | H94: =-H121*'Inputs - actual'!H$19*('Inputs - actual'!H$20) -> -101.5579044 | I94: =-I121*'Inputs - actual'!I$19*('Inputs - actual'!I$20) -> -100.9841023 | J94: =-J121*'Inputs - actual'!J$19*('Inputs - actual'!J$20) -> -98.94735848 | K94: =-K121*'Inputs - actual'!K$19*('Inputs - actual'!K$20) -> -95.04368844 | L94: =-L121*'Inputs - actual'!L$19*('Inputs - actual'!L$20) -> -84.28069192 | M94: =-M121*'Inputs - actual'!M$19*('Inputs - actual'!M$20) -> -71.0372382 | N94: =-N121*'Inputs - actual'!N$19*('Inputs - actual'!N$20) -> -54.62556972 | O94: =-O121*'Inputs - actual'!O$19*('Inputs - actual'!O$20) -> -33.82290223
B95: Return on equity | F95: =-F121*'Inputs - actual'!F$18*(1-'Inputs - actual'!F$20) -> -179.6029412 | G95: =-G121*'Inputs - actual'!G$18*(1-'Inputs - actual'!G$20) -> -182.2969853 | H95: =-H121*'Inputs - actual'!H$18*(1-'Inputs - actual'!H$20) -> -183.3446691 | I95: =-I121*'Inputs - actual'!I$18*(1-'Inputs - actual'!I$20) -> -182.3087717 | J95: =-J121*'Inputs - actual'!J$18*(1-'Inputs - actual'!J$20) -> -178.6317944 | K95: =-K121*'Inputs - actual'!K$18*(1-'Inputs - actual'!K$20) -> -171.5844149 | L95: =-L121*'Inputs - actual'!L$18*(1-'Inputs - actual'!L$20) -> -152.1537458 | M95: =-M121*'Inputs - actual'!M$18*(1-'Inputs - actual'!M$20) -> -128.245054 | N95: =-N121*'Inputs - actual'!N$18*(1-'Inputs - actual'!N$20) -> -98.61671589 | O95: =-O121*'Inputs - actual'!O$18*(1-'Inputs - actual'!O$20) -> -61.06121285
B96: Revaluation | F96: =F122 -> 150 | G96: =G122 -> 152.25 | H96: 153.125 | I96: 152.2598438 | J96: 149.1889219 | K96: 143.3031223 | L96: 127.0751009 | M96: 107.1071441 | N96: 82.36227807 | O96: 50.99683707
B97: Depreciation | F97: =F124 -> -315 | G97: =G124 -> -355.25 | H97: -401.953125 | I97: -456.7795313 | J97: -522.1612266 | K97: -601.8731135 | L97: -667.1442798 | M97: -749.7500085 | N97: -864.8039198 | O97: -1070.933578
B98: Tax | F98: =F136+F144 -> -40.33309822 | G98: =G136+G144 -> -38.02496622 | H98: -34.74904708 | I98: -30.15278725 | J98: -23.69802588 | K98: -92.06552071 | L98: -92.50200324 | M98: -89.72273146 | N98: -79.84418307 | O98: -47.22340072
B99: Gain on RAB | J99: =J84 -> 0 | Q99: Note
B100: Nominal return | F100: =SUM(F92:F98) -> 31.75779878 | G100: =SUM(G92:G98) -> 17.68856386 | H100: 0.6077477378 | I100: -20.42348072 | J100: -46.83052203 | K100: 44.77245644 | L100: 36.13225553 | M100: 18.74688103 | N100: -17.61360278 | O100: -114.2340242
B101: Present value | D101: =SUM(E101:O101) -> 3.126388037e-12 | F101: =F100/'Inputs - actual'!F$28 -> 29.05484375 | G101: =G100/'Inputs - actual'!G$28 -> 14.80569768 | H101: =H100/'Inputs - actual'!H$28 -> 0.4654015293 | I101: =I100/'Inputs - actual'!I$28 -> -14.3087721 | J101: =J100/'Inputs - actual'!J$28 -> -30.01717087 | K101: =K100/'Inputs - actual'!K$28 -> 26.25547216 | L101: =L100/'Inputs - actual'!L$28 -> 19.38528252 | M101: =M100/'Inputs - actual'!M$28 -> 9.201830659 | N101: =N100/'Inputs - actual'!N$28 -> -7.909728255 | O101: =O100/'Inputs - actual'!O$28 -> -46.93285708
B103: Real return | F103: =F100/'Inputs - actual'!F$5 -> 30.24552264 | G103: =G100/'Inputs - actual'!G$5 -> 16.04404885 | H103: =H100/'Inputs - actual'!H$5 -> 0.5249953464 | I103: =I100/'Inputs - actual'!I$5 -> -16.80244813 | J103: =J100/'Inputs - actual'!J$5 -> -36.6929394 | K103: =K100/'Inputs - actual'!K$5 -> 33.40989634 | L103: =L100/'Inputs - actual'!L$5 -> 25.67851942 | M103: =M100/'Inputs - actual'!M$5 -> 12.68862699 | N103: =N100/'Inputs - actual'!N$5 -> -11.3538854 | O103: =O100/'Inputs - actual'!O$5 -> -70.12978146
B104: Present value | D104: =SUM(E104:O104) -> 3.147704319e-12 | F104: =F103/'Inputs - actual'!F$32 -> 29.05484375 | G104: =G103/'Inputs - actual'!G$32 -> 14.80569768 | H104: =H103/'Inputs - actual'!H$32 -> 0.4654015293 | I104: =I103/'Inputs - actual'!I$32 -> -14.3087721 | J104: =J103/'Inputs - actual'!J$32 -> -30.01717087 | K104: =K103/'Inputs - actual'!K$32 -> 26.25547216 | L104: =L103/'Inputs - actual'!L$32 -> 19.38528252 | M104: =M103/'Inputs - actual'!M$32 -> 9.201830659 | N104: =N103/'Inputs - actual'!N$32 -> -7.909728255 | O104: =O103/'Inputs - actual'!O$32 -> -46.93285708
B106: Actual return on RAB | F106: =-(F94+F95)/F121 -> 0.09302941176 | G106: 0.09302941176 | H106: 0.09302941176 | I106: 0.09302941176 | J106: 0.09302941176 | K106: 0.09302941176 | L106: 0.09302941176 | M106: 0.09302941176 | N106: 0.09302941176 | O106: 0.09302941176
B107: Actual Rab revaluation | F107: =F96/F121 -> 0.05 | G107: =G96/G121 -> 0.05 | H107: =H96/H121 -> 0.05 | I107: 0.05 | J107: 0.05 | K107: 0.05 | L107: 0.05 | M107: 0.05 | N107: 0.05 | O107: 0.05
B108: Annual change in revenue | G108: =G92/F92-1 -> 0.05 | H108: =H92/G92-1 -> 0.05 | I108: 0.05 | J108: 0.05 | K108: 0.3191834159 | L108: 0.05 | M108: 0.05 | N108: 0.05 | O108: 0.05
A110: Adjustment for fixed cost of debt | F110: =-(F121*'Inputs - actual'!F$19*'Inputs - actual'!F$20+F94) -> 0 | G110: =-(G121*'Inputs - actual'!G$19*'Inputs - actual'!G$20+G94) -> 0 | H110: =-(H121*'Inputs - actual'!H$19*'Inputs - actual'!H$20+H94) -> 0 | I110: =-(I121*'Inputs - actual'!I$19*'Inputs - actual'!I$20+I94) -> 0 | J110: =-(J121*'Inputs - actual'!J$19*'Inputs - actual'!J$20+J94) -> 0 | K110: =-(K121*'Inputs - actual'!K$19*'Inputs - actual'!K$20+K94) -> 0 | L110: =-(L121*'Inputs - actual'!L$19*'Inputs - actual'!L$20+L94) -> 0 | M110: =-(M121*'Inputs - actual'!M$19*'Inputs - actual'!M$20+M94) -> 0 | N110: =-(N121*'Inputs - actual'!N$19*'Inputs - actual'!N$20+N94) -> 0 | O110: =-(O121*'Inputs - actual'!O$19*'Inputs - actual'!O$20+O94) -> 0
A112: Actual Asset Base
B113: Opening Asset Base | F113: =E42 -> 3000 | G113: =F116 -> 2910 | H113: 2807.166667 | I113: 2687.795833 | J113: 2546.92625 | K113: 2377.694854 | L113: 2036.165447 | M113: 1667.834128 | N113: 1259.634963 | O113: 784.9503031
B114: Capex | F114: =F$40/'Inputs - forecast'!F$4*'Inputs - actual'!F$5 -> 210 | G114: =G$40/'Inputs - forecast'!G$4*'Inputs - actual'!G$5 -> 220.5 | H114: =H$40/'Inputs - forecast'!H$4*'Inputs - actual'!H$5 -> 231.525 | I114: =I$40/'Inputs - forecast'!I$4*'Inputs - actual'!I$5 -> 243.10125 | J114: =J$40/'Inputs - forecast'!J$4*'Inputs - actual'!J$5 -> 255.2563125 | K114: =K$40/'Inputs - forecast'!K$7*'Inputs - actual'!K$5 -> 134.0095641 | L114: =L$40/'Inputs - forecast'!L$7*'Inputs - actual'!L$5 -> 140.7100423 | M114: =M$40/'Inputs - forecast'!M$7*'Inputs - actual'!M$5 -> 147.7455444 | N114: =N$40/'Inputs - forecast'!N$7*'Inputs - actual'!N$5 -> 155.1328216 | O114: =O$40/'Inputs - forecast'!O$7*'Inputs - actual'!O$5 -> 0
B115: Depreciation | F115: =-F113/F36 -> -300 | G115: -323.3333333 | H115: -350.8958333 | I115: -383.9708333 | J115: -424.4877083 | K115: -475.5389708 | L115: -509.0413618 | M115: -555.9447093 | N115: -629.8174815 | O115: -784.9503031
B116: Closing Asset Base | F116: =SUM(F113:F115) -> 2910 | G116: 2807.166667 | H116: 2687.795833 | I116: 2546.92625 | J116: 2377.694854 | K116: 2036.165447 | L116: 1667.834128 | M116: 1259.634963 | N116: 784.9503031 | O116: 0
A118: Actual RAB
B119: Useful lives | F119: =F36 -> 10 | G119: =G36 -> 9 | H119: 8 | I119: 7 | J119: 6 | K119: 5 | L119: 4 | M119: 3 | N119: 2 | O119: 1
B121: Opening RAB | F121: =E125 -> 3000 | G121: =F125 -> 3045 | H121: 3062.5 | I121: 3045.196875 | J121: 2983.778438 | K121: 2866.062445 | L121: 2541.502018 | M121: 2142.142882 | N121: 1647.245561 | O121: 1019.936741
B122: Revaluation | F122: =F121*'Inputs - actual'!F4 -> 150 | G122: =G121*'Inputs - actual'!G4 -> 152.25 | H122: =H121*'Inputs - actual'!H4 -> 153.125 | I122: =I121*'Inputs - actual'!I4 -> 152.2598438 | J122: =J121*'Inputs - actual'!J4 -> 149.1889219 | K122: =K121*'Inputs - actual'!K4 -> 143.3031223 | L122: =L121*'Inputs - actual'!L4 -> 127.0751009 | M122: =M121*'Inputs - actual'!M4 -> 107.1071441 | N122: =N121*'Inputs - actual'!N4 -> 82.36227807 | O122: =O121*'Inputs - actual'!O4 -> 50.99683707
B123: Capex | F123: =F114 -> 210 | G123: =G114 -> 220.5 | H123: 231.525 | I123: 243.10125 | J123: 255.2563125 | K123: 134.0095641 | L123: 140.7100423 | M123: 147.7455444 | N123: 155.1328216 | O123: 0
B124: Depreciation | F124: =-SUM(F121:F122)/F119 -> -315 | G124: =-SUM(G121:G122)/G119 -> -355.25 | H124: -401.953125 | I124: -456.7795313 | J124: -522.1612266 | K124: -601.8731135 | L124: -667.1442798 | M124: -749.7500085 | N124: -864.8039198 | O124: -1070.933578
B125: Closing RAB | E125: =-E29 -> 3000 | F125: =SUM(F121:F124) -> 3045 | G125: 3062.5 | H125: 3045.196875 | I125: 2983.778438 | J125: 2866.062445 | K125: 2541.502018 | L125: 2142.142882 | M125: 1647.245561 | N125: 1019.936741 | O125: 0
A128: Actual tax
B129: Revenue | F129: =F92 -> 621.1791323 | G129: 652.2380889 | H129: 684.8499933 | I129: 719.092493 | J129: 755.0471177 | K129: 996.0456358 | L129: 1045.847918 | M129: 1098.140314 | N129: 1153.047329 | O129: 1210.699696
B130: Depreciation | F130: =F115 -> -300 | G130: -323.3333333 | H130: -350.8958333 | I130: -383.9708333 | J130: -424.4877083 | K130: -475.5389708 | L130: -509.0413618 | M130: -555.9447093 | N130: -629.8174815 | O130: -784.9503031
B131: Opex | F131: =F93 -> -105 | G131: -110.25 | H131: -115.7625 | I131: -121.550625 | J131: -127.6281563 | K131: -134.0095641 | L131: -140.7100423 | M131: -147.7455444 | N131: -155.1328216 | O131: -162.8894627
B132: Interest | F132: =F94 -> -99.48529412 | G132: -100.9775735 | H132: -101.5579044 | I132: -100.9841023 | J132: -98.94735848 | K132: -95.04368844 | L132: -84.28069192 | M132: -71.0372382 | N132: -54.62556972 | O132: -33.82290223
B133: EBT | F133: =SUM(F129:F132) -> 116.6938382 | G133: =SUM(G129:G132) -> 117.677182 | H133: 116.6337556 | I133: 112.5869324 | J133: 103.9838946 | K133: 291.4534125 | L133: 311.8158216 | M133: 323.4128217 | N133: 313.4714564 | O133: 229.0370277
B134: Calculated tax | F134: =-F133*'Inputs - forecast'!F29 -> -32.67427469 | G134: =-G133*'Inputs - forecast'!G29 -> -32.94961097 | H134: =-H133*'Inputs - forecast'!H29 -> -32.65745157 | I134: =-I133*'Inputs - forecast'!I29 -> -31.52434108 | J134: =-J133*'Inputs - forecast'!J29 -> -29.11549049 | K134: =-K133*'Inputs - forecast'!K29 -> -81.6069555 | L134: =-L133*'Inputs - forecast'!L29 -> -87.30843005 | M134: =-M133*'Inputs - forecast'!M29 -> -90.55559006 | N134: =-N133*'Inputs - forecast'!N29 -> -87.77200779 | O134: =-O133*'Inputs - forecast'!O29 -> -64.13036775
B135: Deferred tax | F135: =IF(F134>0,F134+E135,0) -> 0 | G135: 0 | H135: 0 | I135: 0 | J135: 0 | K135: 0 | L135: 0 | M135: 0 | N135: 0 | O135: 0
B136: Tax | F136: =IF(F135>0,0,F134+E135) -> -32.67427469 | G136: -32.94961097 | H136: -32.65745157 | I136: -31.52434108 | J136: -29.11549049 | K136: -81.6069555 | L136: -87.30843005 | M136: -90.55559006 | N136: -87.77200779 | O136: -64.13036775
A138: Tax adjustment | E138: NPV | Q138: Note
B139: Tax | F139: =F136 -> -32.67427469 | G139: -32.94961097 | H139: -32.65745157 | I139: -31.52434108 | J139: -29.11549049 | K139: -81.6069555 | L139: -87.30843005 | M139: -90.55559006 | N139: -87.77200779 | O139: -64.13036775
B140: NPV of actual tax | E140: =SUM(F140:O140) -> -328.1397873 | F140: =F139/'Inputs - actual'!F$28 -> -29.89331699 | G140: =G139/'Inputs - actual'!G$28 -> -27.5795131 | H140: =H139/'Inputs - actual'!H$28 -> -25.00844834 | I140: =I139/'Inputs - actual'!I$28 -> -22.08607916 | J140: =J139/'Inputs - actual'!J$28 -> -18.66228722 | K140: =K139/'Inputs - actual'!K$28 -> -47.85596589 | L140: =L139/'Inputs - actual'!L$28 -> -46.8417639 | M140: =M139/'Inputs - actual'!M$28 -> -44.44884479 | N140: =N139/'Inputs - actual'!N$28 -> -39.41571401 | O140: =O139/'Inputs - actual'!O$28 -> -26.34785394
B142: Forecast tax adjusted for inflation | F142: =F$17/'Inputs - forecast'!F$4*'Inputs - actual'!F$5 -> -40.33309822 | G142: =G$17/'Inputs - forecast'!G$4*'Inputs - actual'!G$5 -> -38.02496622 | H142: =H$17/'Inputs - forecast'!H$4*'Inputs - actual'!H$5 -> -34.74904708 | I142: =I$17/'Inputs - forecast'!I$4*'Inputs - actual'!I$5 -> -30.15278725 | J142: =J$17/'Inputs - forecast'!J$4*'Inputs - actual'!J$5 -> -23.69802588 | K142: =K$17/'Inputs - forecast'!K$7*'Inputs - actual'!K$5 -> -92.06552071 | L142: =L$17/'Inputs - forecast'!L$7*'Inputs - actual'!L$5 -> -92.50200324 | M142: =M$17/'Inputs - forecast'!M$7*'Inputs - actual'!M$5 -> -89.72273146 | N142: =N$17/'Inputs - forecast'!N$7*'Inputs - actual'!N$5 -> -79.84418307 | O142: =O$17/'Inputs - forecast'!O$7*'Inputs - actual'!O$5 -> -47.22340072
B143: NPV of forecast tax adjusted for inflation | E143: =SUM(F143:O143) -> -334.5676317 | F143: =F142/'Inputs - actual'!F$28 -> -36.90028629 | G143: =G142/'Inputs - actual'!G$28 -> -31.82769153 | H143: =H142/'Inputs - actual'!H$28 -> -26.61015195 | I143: =I142/'Inputs - actual'!I$28 -> -21.12516307 | J143: =J142/'Inputs - actual'!J$28 -> -15.1898305 | K143: =K142/'Inputs - actual'!K$28 -> -53.98907963 | L143: =L142/'Inputs - actual'!L$28 -> -49.62816298 | M143: =M142/'Inputs - actual'!M$28 -> -44.04003952 | N143: =N142/'Inputs - actual'!N$28 -> -35.85557132 | O143: =O142/'Inputs - actual'!O$28 -> -19.40165491
B144: Difference | E144: =E143-E140 -> -6.427844365 | F144: =F142-F139 -> -7.658823529 | G144: =G142-G139 -> -5.075355248 | H144: -2.091595512 | I144: 1.371553834 | J144: 5.417464612 | K144: -10.45856521 | L144: -5.193573193 | M144: 0.8328586037 | N144: 7.927824727 | O144: 16.90696703
A146: Real revenue | F146: =F92/'Inputs - actual'!F$5 -> 591.5991736 | G146: =G92/'Inputs - actual'!G$5 -> 591.5991736 | H146: =H92/'Inputs - actual'!H$5 -> 591.5991736 | I146: =I92/'Inputs - actual'!I$5 -> 591.5991736 | J146: =J92/'Inputs - actual'!J$5 -> 591.5991736 | K146: =K92/'Inputs - actual'!K$5 -> 743.2645892 | L146: =L92/'Inputs - actual'!L$5 -> 743.2645892 | M146: =M92/'Inputs - actual'!M$5 -> 743.2645892 | N146: =N92/'Inputs - actual'!N$5 -> 743.2645892 | O146: =O92/'Inputs - actual'!O$5 -> 743.2645892
A148: Wash-up account | E148: NPV | F148: =F78 -> 2021-06-30 | G148: 2022-06-30 | H148: 2023-06-30 | I148: 2024-06-30 | J148: 2025-06-30 | K148: 2026-06-30 | L148: 2027-06-30 | M148: 2028-06-30 | N148: 2029-06-30 | O148: 2030-06-30 | P148: =EOMONTH(O148, 12) -> 2031-06-30 | Q148: =EOMONTH(P148, 12) -> 2032-06-30
B149: Wash-up drawdowns will usually have a 2 year delay from when the revenue is set to allow for actual CPI information to be released.
B151: Actual net allowable revenue | D151: ANAR | F151: =F92-F110 -> 621.1791323 | G151: 652.2380889 | H151: 684.8499933 | I151: 719.092493 | J151: 755.0471177 | K151: 996.0456358 | L151: 1045.847918 | M151: 1098.140314 | N151: 1153.047329 | O151: 1210.699696
B152: Forecast net allowable revenue | D152: FNAR | F152: =F13 -> 603.4311571 | G152: 615.4997802 | H152: 627.8097758 | I152: 640.3659713 | J152: 653.1732908 | K152: 967.5871891 | L152: 986.9389329 | M152: 1006.677712 | N152: 1026.811266 | O152: 1047.347491 | R152: Note
B153: Wash-up amount | F153: =F151-F152 -> 17.74797521 | G153: =G151-G152 -> 36.73830868 | H153: 57.04021752 | I153: 78.72652167 | J153: 101.8738269 | K153: 28.45844674 | L153: 58.90898475 | M153: 91.46260197 | N153: 126.2360634 | O153: 163.3522046
B155: Actual allowable revenue | D155: AAR | F155: =F151-F165 -> 621.1791323 | G155: 652.2380889 | H155: 704.8594021 | I155: 760.5119691 | J155: 819.3553564 | K155: 1084.803431 | L155: 1160.70243 | M155: 1130.224914 | N155: 1219.462452 | O155: 1313.816393
B156: Forecast allowable revenue | D156: FAR | F156: =F152-F165 -> 603.4311571 | G156: 615.4997802 | H156: 647.8191845 | I156: 681.7854474 | J156: 717.4815295 | K156: 1056.344984 | L156: 1101.793445 | M156: 1038.762312 | N156: 1093.226389 | O156: 1150.464188
B158: Actual revenue | D158: AR | F158: =F156 -> 603.4311571 | G158: =G156 -> 615.4997802 | H158: =H156 -> 647.8191845 | I158: =I156 -> 681.7854474 | J158: 717.4815295 | K158: 1056.344984 | L158: 1101.793445 | M158: 1038.762312 | N158: 1093.226389 | O158: 1150.464188 | R158: Note
B160: Cost of debt wash-up adjustment | D160: CODW | F160: =F110 -> 0 | G160: 0 | H160: 0 | I160: 0 | J160: 0 | K160: 0 | L160: 0 | M160: 0 | N160: 0 | O160: 0
B162: Wash-up account balance | D162: WAB
B163: Wash-up account opening balance | D163: WABt-1 | F163: 0 | G163: =F166 -> 17.74797521 | H163: 55.58310876 | I163: 96.04895368 | J163: 139.2918246 | K163: 185.4656476 | L163: 136.6280761 | M163: 89.12616349 | N163: 154.012162 | O163: 223.3510542 | P163: 297.3896567 | Q163: 173.4473708
B164: Wash-up accrual | D164: WA | F164: =F155-F158+F160 -> 17.74797521 | G164: 36.73830868 | H164: 57.04021752 | I164: 78.72652167 | J164: 101.8738269 | K164: 28.45844674 | L164: 58.90898475 | M164: 91.46260197 | N164: 126.2360634 | O164: 163.3522046 | P164: 0 | Q164: 0
B165: Wash-up (draw-down)/ draw-up | D165: WD | F165: 0 | G165: 0 | H165: =-F164*(1+'Inputs - forecast'!H$31)^2 -> -20.00940872 | I165: =-G164*(1+'Inputs - forecast'!I$31)^2 -> -41.41947605 | J165: =-H164*(1+'Inputs - forecast'!J$31)^2 -> -64.30823869 | K165: =-I164*(1+'Inputs - forecast'!K$31)^2 -> -88.75779523 | L165: =-J164*(1+'Inputs - forecast'!L$31)^2 -> -114.8545125 | M165: =-K164*(1+'Inputs - forecast'!M$31)^2 -> -32.08460039 | N165: =-L164*(1+'Inputs - forecast'!N$31)^2 -> -66.41512281 | O165: =-M164*(1+'Inputs - forecast'!O$31)^2 -> -103.1166972 | P165: =-N164*(1+'Inputs - forecast'!P$31)^2 -> -142.3209667 | Q165: =-O164*(1+'Inputs - forecast'!Q$31)^2 -> -163.3522046 | R165: Note
B166: Wash-up account balance | D166: WABt | F166: =F163*(1+'Inputs - forecast'!F$31)+F164+F165 -> 17.74797521 | G166: =G163*(1+'Inputs - forecast'!G$31)+G164+G165 -> 55.58310876 | H166: =H163*(1+'Inputs - forecast'!H$31)+H164+H165 -> 96.04895368 | I166: =I163*(1+'Inputs - forecast'!I$31)+I164+I165 -> 139.2918246 | J166: =J163*(1+'Inputs - forecast'!J$31)+J164+J165 -> 185.4656476 | K166: =K163*(1+'Inputs - forecast'!K$31)+K164+K165 -> 136.6280761 | L166: =L163*(1+'Inputs - forecast'!L$31)+L164+L165 -> 89.12616349 | M166: =M163*(1+'Inputs - forecast'!M$31)+M164+M165 -> 154.012162 | N166: =N163*(1+'Inputs - forecast'!N$31)+N164+N165 -> 223.3510542 | O166: =O163*(1+'Inputs - forecast'!O$31)+O164+O165 -> 297.3896567 | P166: =P163*(1+'Inputs - forecast'!P$31)+P164+P165 -> 173.4473708 | Q166: =Q163*(1+'Inputs - forecast'!Q$31)+Q164+Q165 -> 10.09516624
B168: Test NPV=0
B169: Confirm Net Present Value (NPV) of ANAR equal AR plus CODW plus the wash-up account balance remaining at end of model period
B170: Actual net allowable revenue | D170: ANAR | E170: =-NPV('Inputs - forecast'!$F$31,F170:O170) -> -6259.741636 | F170: =F151 -> 621.1791323 | G170: 652.2380889 | H170: 684.8499933 | I170: 719.092493 | J170: 755.0471177 | K170: 996.0456358 | L170: 1045.847918 | M170: 1098.140314 | N170: 1153.047329 | O170: 1210.699696
B171: Actual revenue | D171: AR | E171: =NPV('Inputs - forecast'!$F$31,F171:O171) -> 6096.474547 | F171: =F156 -> 603.4311571 | G171: 615.4997802 | H171: 647.8191845 | I171: 681.7854474 | J171: 717.4815295 | K171: 1056.344984 | L171: 1101.793445 | M171: 1038.762312 | N171: 1093.226389 | O171: 1150.464188
B172: Cost of debt wash-up adjustment | D172: CODW | E172: =-NPV('Inputs - forecast'!$F$31,F172:O172) -> 0 | F172: =F160 -> 0 | G172: 0 | H172: 0 | I172: 0 | J172: 0 | K172: 0 | L172: 0 | M172: 0 | N172: 0 | O172: 0
B173: Wash-up account balance | D173: WAB | E173: =NPV('Inputs - forecast'!$F$31,F173:O173) -> 163.267089 | F173: 0 | G173: 0 | H173: 0 | I173: 0 | J173: 0 | K173: 0 | L173: 0 | M173: 0 | N173: 0 | O173: =O166 -> 297.3896567
D174: NPV | E174: =SUM(E170:E173) -> 2.273736754e-13
B176: Actual revenue per model | E176: =-NPV('Inputs - forecast'!$F$31,F176:O176) -> -6259.741636 | F176: =F92 -> 621.1791323 | G176: 652.2380889 | H176: 684.8499933 | I176: 719.092493 | J176: 755.0471177 | K176: 996.0456358 | L176: 1045.847918 | M176: 1098.140314 | N176: 1153.047329 | O176: 1210.699696
B177: Check to ANAR less CODW | F177: =F170+F172-F176 -> 0 | G177: =G170+G172-G176 -> 0 | H177: 0 | I177: 0 | J177: 0 | K177: 0 | L177: 0 | M177: 0 | N177: 0 | O177: 0
B179: FNAR + accrual | E179: =NPV('Inputs - forecast'!$F$31,F179:O179) -> 6259.741636 | F179: =F152+F164 -> 621.1791323 | G179: =G152+G164 -> 652.2380889 | H179: 684.8499933 | I179: 719.092493 | J179: 755.0471177 | K179: 996.0456358 | L179: 1045.847918 | M179: 1098.140314 | N179: 1153.047329 | O179: 1210.699696 | R179: Note
B180: FNAR + draw-down | E180: =NPV('Inputs - forecast'!$F$31,F180:Q180) -> 6096.474547 | F180: =F152-F165 -> 603.4311571 | G180: =G152-G165 -> 615.4997802 | H180: 647.8191845 | I180: 681.7854474 | J180: 717.4815295 | K180: 1056.344984 | L180: 1101.793445 | M180: 1038.762312 | N180: 1093.226389 | O180: 1150.464188 | R180: Note
B181: Closing WAB yet to receive | E181: =NPV('Inputs - forecast'!$F$31,F181:Q181) -> 163.267089 | F181: 0 | G181: 0 | H181: 0 | I181: 0 | J181: 0 | K181: 0 | L181: 0 | M181: 0 | N181: 0 | O181: =+O166 -> 297.3896567
D182: NPV | E182: =E179-E180-E181 -> -1.136868377e-12

Sheet 2 Incl CODW
A1: Calculation
A3: Analysis
A10: Calculation
A11: Forecast | D11: Return over forecast period | E11: ='Inputs - forecast'!E2 -> 2020-06-30 | F11: ='Inputs - forecast'!F2 -> 2021-06-30 | G11: ='Inputs - forecast'!G2 -> 2022-06-30 | H11: ='Inputs - forecast'!H2 -> 2023-06-30 | I11: ='Inputs - forecast'!I2 -> 2024-06-30 | J11: ='Inputs - forecast'!J2 -> 2025-06-30 | K11: ='Inputs - forecast'!K2 -> 2026-06-30 | L11: ='Inputs - forecast'!L2 -> 2027-06-30 | M11: ='Inputs - forecast'!M2 -> 2028-06-30 | N11: ='Inputs - forecast'!N2 -> 2029-06-30 | O11: ='Inputs - forecast'!O2 -> 2030-06-30
A12: Building blocks
B13: Revenue | F13: =K69 -> 603.4311571 | G13: =F13*(1+'Inputs - forecast'!G5) -> 615.4997802 | H13: =G13*(1+'Inputs - forecast'!H5) -> 627.8097758 | I13: =H13*(1+'Inputs - forecast'!I5) -> 640.3659713 | J13: =I13*(1+'Inputs - forecast'!J5) -> 653.1732908 | K13: =P76 -> 967.5871891 | L13: =K13*(1+'Inputs - forecast'!L5) -> 986.9389329 | M13: =L13*(1+'Inputs - forecast'!M5) -> 1006.677712 | N13: =M13*(1+'Inputs - forecast'!N5) -> 1026.811266 | O13: =N13*(1+'Inputs - forecast'!O5) -> 1047.347491
B14: Return on debt | F14: =-SUM(F$38)*'Inputs - forecast'!F$28*'Inputs - forecast'!F$26 -> -61.5 | G14: =-SUM(G$38)*'Inputs - forecast'!G$28*'Inputs - forecast'!G$26 -> -60.639 | H14: =-SUM(H$38)*'Inputs - forecast'!H$28*'Inputs - forecast'!H$26 -> -59.245 | I14: =-SUM(I$38)*'Inputs - forecast'!I$28*'Inputs - forecast'!I$26 -> -57.2271153 | J14: =-SUM(J$38)*'Inputs - forecast'!J$28*'Inputs - forecast'!J$26 -> -54.47082123 | K14: =-SUM(K$38)*'Inputs - forecast'!K$28*'Inputs - forecast'!K$26 -> -58.75428013 | L14: =-SUM(L$38)*'Inputs - forecast'!L$28*'Inputs - forecast'!L$26 -> -50.61219733 | M14: =-SUM(M$38)*'Inputs - forecast'!M$28*'Inputs - forecast'!M$26 -> -41.4404098 | N14: =-SUM(N$38)*'Inputs - forecast'!N$28*'Inputs - forecast'!N$26 -> -30.95599908 | O14: =-SUM(O$38)*'Inputs - forecast'!O$28*'Inputs - forecast'!O$26 -> -18.61961036
B15: Return on equity | F15: =-SUM(F$38)*(1-'Inputs - forecast'!F$28)*'Inputs - forecast'!F$25 -> -123.9 | G15: =-SUM(G$38)*(1-'Inputs - forecast'!G$28)*'Inputs - forecast'!G$25 -> -122.1654 | H15: =-SUM(H$38)*(1-'Inputs - forecast'!H$28)*'Inputs - forecast'!H$25 -> -119.357 | I15: =-SUM(I$38)*(1-'Inputs - forecast'!I$28)*'Inputs - forecast'!I$25 -> -115.2917006 | J15: =-SUM(J$38)*(1-'Inputs - forecast'!J$28)*'Inputs - forecast'!J$25 -> -109.7387764 | K15: =-SUM(K$38)*(1-'Inputs - forecast'!K$28)*'Inputs - forecast'!K$25 -> -118.368379 | L15: =-SUM(L$38)*(1-'Inputs - forecast'!L$28)*'Inputs - forecast'!L$25 -> -101.965061 | M15: =-SUM(M$38)*(1-'Inputs - forecast'!M$28)*'Inputs - forecast'!M$25 -> -83.48726462 | N15: =-SUM(N$38)*(1-'Inputs - forecast'!N$28)*'Inputs - forecast'!N$25 -> -62.36501279 | O15: =-SUM(O$38)*(1-'Inputs - forecast'!O$28)*'Inputs - forecast'!O$25 -> -37.51170282
B16: Revaluation | F16: =F39 -> 60 | G16: =G39 -> 59.16 | H16: 57.8 | I16: 55.831332 | J16: 53.14226462 | K16: 57.32124891 | L16: 49.3777535 | M16: 40.4296681 | N16: 30.20097472 | O16: 18.16547352
B17: Tax | F17: =F60 -> -39.18072398 | G17: =G60 -> -35.8831518 | H17: -31.85484656 | I17: -26.85164855 | J17: -20.50059815 | K17: -89.43507726 | L17: -87.29168632 | M17: -82.2498481 | N17: -71.10281131 | O17: -40.85184001
B18: Opex | F18: =-'Inputs - forecast'!F16 -> -102 | G18: =-'Inputs - forecast'!G16 -> -104.04 | H18: =-'Inputs - forecast'!H16 -> -106.1208 | I18: =-'Inputs - forecast'!I16 -> -108.243216 | J18: =-'Inputs - forecast'!J16 -> -110.4080803 | K18: =-'Inputs - forecast'!K16 -> -130.1807194 | L18: =-'Inputs - forecast'!L16 -> -132.7843338 | M18: =-'Inputs - forecast'!M16 -> -135.4400204 | N18: =-'Inputs - forecast'!N16 -> -138.1488208 | O18: =-'Inputs - forecast'!O16 -> -140.9117973
B19: Depreciation | F19: =F41 -> -306 | G19: =G41 -> -335.24 | H19: -368.475 | I19: -406.7711331 | J19: -451.7092492 | K19: -584.6767388 | L19: -629.5663571 | M19: -687.3043577 | N19: -770.1248553 | O19: -926.4391496
B20: Net revenue | F20: =SUM(F13:F19) -> 30.8504331 | G20: 16.69222843 | H20: 0.5571292615 | I20: -18.18751023 | J20: -40.51197 | K20: 43.4932434 | L20: 34.09705093 | M20: 17.18547899 | N20: -15.6852588 | O20: -98.82113547
B21: Present value | F21: =F20/'Inputs - forecast'!F$36 -> 29.05484375 | G21: =G20/'Inputs - forecast'!G$36 -> 14.80569768 | H21: =H20/'Inputs - forecast'!H$36 -> 0.4654015293 | I21: =I20/'Inputs - forecast'!I$36 -> -14.3087721 | J21: =J20/'Inputs - forecast'!J$36 -> -30.01717087 | K21: =K20/'Inputs - forecast'!K$36 -> 30.35047339 | L21: =L20/'Inputs - forecast'!L$36 -> 22.40875721 | M21: =M20/'Inputs - forecast'!M$36 -> 10.63701749 | N21: =N20/'Inputs - forecast'!N$36 -> -9.143389059 | O21: =O20/'Inputs - forecast'!O$36 -> -54.25285903
B22: Sum of present values | O22: =SUM(F21:O21) -> 4.639844065e-12
A24: Regulatory cashflows
B25: Revenue | F25: =F13 -> 603.4311571 | G25: =G13 -> 615.4997802 | H25: 627.8097758 | I25: 640.3659713 | J25: 653.1732908 | K25: 967.5871891 | L25: 986.9389329 | M25: 1006.677712 | N25: 1026.811266 | O25: 1047.347491
B26: Opex | F26: =-'Inputs - forecast'!F$16 -> -102 | G26: =-'Inputs - forecast'!G$16 -> -104.04 | H26: =-'Inputs - forecast'!H$16 -> -106.1208 | I26: =-'Inputs - forecast'!I$16 -> -108.243216 | J26: =-'Inputs - forecast'!J$16 -> -110.4080803 | K26: =-'Inputs - forecast'!K$16 -> -130.1807194 | L26: =-'Inputs - forecast'!L$16 -> -132.7843338 | M26: =-'Inputs - forecast'!M$16 -> -135.4400204 | N26: =-'Inputs - forecast'!N$16 -> -138.1488208 | O26: =-'Inputs - forecast'!O$16 -> -140.9117973
B27: Tax | F27: =F17 -> -39.18072398 | G27: =G17 -> -35.8831518 | H27: -31.85484656 | I27: -26.85164855 | J27: -20.50059815 | K27: -89.43507726 | L27: -87.29168632 | M27: -82.2498481 | N27: -71.10281131 | O27: -40.85184001
B28: Capex | F28: =-'Inputs - forecast'!F$17 -> -204 | G28: =-'Inputs - forecast'!G$17 -> -208.08 | H28: =-'Inputs - forecast'!H$17 -> -212.2416 | I28: =-'Inputs - forecast'!I$17 -> -216.486432 | J28: =-'Inputs - forecast'!J$17 -> -220.8161606 | K28: =-'Inputs - forecast'!K$17 -> -130.1807194 | L28: =-'Inputs - forecast'!L$17 -> -132.7843338 | M28: =-'Inputs - forecast'!M$17 -> -135.4400204 | N28: =-'Inputs - forecast'!N$17 -> -138.1488208 | O28: =-'Inputs - forecast'!O$17 -> 0
B29: Opening RAB | E29: =-'Inputs - forecast'!E$18 -> -3000
B30: Closing RAB | J30: =-(J44-J42) -> -386.7000384 | O30: =O42 -> 0
B31: Sum | E31: =SUM(E25:E30) -> -3000 | F31: =SUM(F25:F30) -> 258.2504331 | G31: 267.4966284 | H31: 277.5925293 | I31: 288.7846748 | J31: -85.25158679 | K31: 617.7906731 | L31: 634.078579 | M31: 653.5478226 | N31: 679.4108128 | O31: 865.5838538
B32: Present value | E32: =E31/'Inputs - forecast'!E$36 -> -3000 | F32: =F31/'Inputs - forecast'!F$36 -> 243.2194699 | G32: =G31/'Inputs - forecast'!G$36 -> 237.2645587 | H32: =H31/'Inputs - forecast'!H$36 -> 231.8887134 | I32: =I31/'Inputs - forecast'!I$36 -> 227.1973484 | J32: =J31/'Inputs - forecast'!J$36 -> -63.16679854 | K32: =K31/'Inputs - forecast'!K$36 -> 431.1069471 | L32: =L31/'Inputs - forecast'!L$36 -> 416.7197028 | M32: =M31/'Inputs - forecast'!M$36 -> 404.5159067 | N32: =N31/'Inputs - forecast'!N$36 -> 396.0481284 | O32: =O31/'Inputs - forecast'!O$36 -> 475.2060232
B33: Sum of present values | O33: =SUM(E32:O32) -> 3.240074875e-12
A35: Regulatory Asset Base
B36: Useful lives | F36: 10 | G36: =F36-1 -> 9 | H36: =G36-1 -> 8 | I36: 7 | J36: 6 | K36: 5 | L36: 4 | M36: 3 | N36: 2 | O36: 1
B38: Opening RAB | F38: =E42 -> 3000 | G38: =F42 -> 2958 | H38: 2890 | I38: 2791.5666 | J38: 2657.113231 | K38: =J44 -> 2866.062445 | L38: =K42 -> 2468.887675 | M38: =L42 -> 2021.483405 | N38: 1510.048736 | O38: 908.2736761
B39: Revaluation | F39: =F38*('Inputs - forecast'!F$5) -> 60 | G39: =G38*('Inputs - forecast'!G$5) -> 59.16 | H39: =H38*('Inputs - forecast'!H$5) -> 57.8 | I39: =I38*('Inputs - forecast'!I$5) -> 55.831332 | J39: =J38*('Inputs - forecast'!J$5) -> 53.14226462 | K39: =K38*('Inputs - forecast'!K$5) -> 57.32124891 | L39: =L38*('Inputs - forecast'!L$5) -> 49.3777535 | M39: =M38*('Inputs - forecast'!M$5) -> 40.4296681 | N39: =N38*('Inputs - forecast'!N$5) -> 30.20097472 | O39: =O38*('Inputs - forecast'!O$5) -> 18.16547352
B40: Capex | F40: =-F28 -> 204 | G40: =-G28 -> 208.08 | H40: 212.2416 | I40: 216.486432 | J40: 220.8161606 | K40: 130.1807194 | L40: 132.7843338 | M40: 135.4400204 | N40: 138.1488208 | O40: 0
B41: Depreciation | F41: =-SUM(F38:F39)/F36 -> -306 | G41: =-SUM(G38:G39)/G36 -> -335.24 | H41: -368.475 | I41: -406.7711331 | J41: -451.7092492 | K41: -584.6767388 | L41: -629.5663571 | M41: -687.3043577 | N41: -770.1248553 | O41: -926.4391496
B42: Closing RAB | E42: =-E29 -> 3000 | F42: =SUM(F38:F41) -> 2958 | G42: 2890 | H42: 2791.5666 | I42: 2657.113231 | J42: 2479.362407 | K42: 2468.887675 | L42: 2021.483405 | M42: 1510.048736 | N42: 908.2736761 | O42: 0
B44: RAB adjusted for actual inflation | J44: =J42/'Inputs - forecast'!J4*'Inputs - actual'!J5 -> 2866.062445 | Q44: Note
B45: Check to actual RAB | J45: =J124-J44 -> 0
A48: Tax asset base | F48: =F36 -> 10 | G48: 9 | H48: 8 | I48: 7 | J48: 6 | K48: 5 | L48: 4 | M48: 3 | N48: 2 | O48: 1
B49: Opening balance | F49: =E52 -> 3000 | G49: =F52 -> 2904 | H49: =G52 -> 2789.413333 | I49: 2652.978267 | J49: 2490.467803 | K49: 2296.205997 | L49: 1967.145517 | M49: 1608.143471 | N49: 1207.535668 | O49: 741.9166549
B50: Capex | F50: =-F28 -> 204 | G50: 208.08 | H50: 212.2416 | I50: 216.486432 | J50: 220.8161606 | K50: 130.1807194 | L50: 132.7843338 | M50: 135.4400204 | N50: 138.1488208 | O50: 0
B51: Depreciation | F51: =-F49/F48 -> -300 | G51: =-G49/G48 -> -322.6666667 | H51: -348.6766667 | I51: -378.9968952 | J51: -415.0779672 | K51: -459.2411994 | L51: -491.7863792 | M51: -536.0478238 | N51: -603.767834 | O51: -741.9166549
B52: Closing balance | E52: =E42 -> 3000 | F52: =SUM(F49:F51) -> 2904 | G52: =SUM(G49:G51) -> 2789.413333 | H52: =SUM(H49:H51) -> 2652.978267 | I52: 2490.467803 | J52: 2296.205997 | K52: 1967.145517 | L52: 1608.143471 | M52: 1207.535668 | N52: 741.9166549 | O52: 0
A54: Regulatory tax
B55: Revenue | F55: =F13 -> 603.4311571 | G55: =G13 -> 615.4997802 | H55: 627.8097758 | I55: 640.3659713 | J55: 653.1732908 | K55: 967.5871891 | L55: 986.9389329 | M55: 1006.677712 | N55: 1026.811266 | O55: 1047.347491
B56: Depreciation | F56: =F51 -> -300 | G56: -322.6666667 | H56: -348.6766667 | I56: -378.9968952 | J56: -415.0779672 | K56: -459.2411994 | L56: -491.7863792 | M56: -536.0478238 | N56: -603.767834 | O56: -741.9166549
B57: Opex | F57: =F18 -> -102 | G57: =G18 -> -104.04 | H57: -106.1208 | I57: -108.243216 | J57: -110.4080803 | K57: -130.1807194 | L57: -132.7843338 | M57: -135.4400204 | N57: -138.1488208 | O57: -140.9117973
B58: Notional interest | F58: =-'Inputs - forecast'!F$26*'Inputs - forecast'!F28*F38 -> -61.5 | G58: =-'Inputs - forecast'!G$26*'Inputs - forecast'!G28*G38 -> -60.639 | H58: =-'Inputs - forecast'!H$26*'Inputs - forecast'!H28*H38 -> -59.245 | I58: =-'Inputs - forecast'!I$26*'Inputs - forecast'!I28*I38 -> -57.2271153 | J58: =-'Inputs - forecast'!J$26*'Inputs - forecast'!J28*J38 -> -54.47082123 | K58: =-'Inputs - forecast'!K$26*'Inputs - forecast'!K28*K38 -> -58.75428013 | L58: =-'Inputs - forecast'!L$26*'Inputs - forecast'!L28*L38 -> -50.61219733 | M58: =-'Inputs - forecast'!M$26*'Inputs - forecast'!M28*M38 -> -41.4404098 | N58: =-'Inputs - forecast'!N$26*'Inputs - forecast'!N28*N38 -> -30.95599908 | O58: =-'Inputs - forecast'!O$26*'Inputs - forecast'!O28*O38 -> -18.61961036
B59: EBT | F59: =SUM(F55:F58) -> 139.9311571 | G59: =SUM(G55:G58) -> 128.1541136 | H59: 113.7673092 | I59: 95.8987448 | J59: 73.21642198 | K59: 319.4109902 | L59: 311.7560226 | M59: 293.7494575 | N59: 253.9386118 | O59: 145.8994286
B60: Calculated tax | F60: =-F59*'Inputs - forecast'!F29 -> -39.18072398 | G60: =-G59*'Inputs - forecast'!G29 -> -35.8831518 | H60: =-H59*'Inputs - forecast'!H29 -> -31.85484656 | I60: =-I59*'Inputs - forecast'!I29 -> -26.85164855 | J60: =-J59*'Inputs - forecast'!J29 -> -20.50059815 | K60: =-K59*'Inputs - forecast'!K29 -> -89.43507726 | L60: =-L59*'Inputs - forecast'!L29 -> -87.29168632 | M60: =-M59*'Inputs - forecast'!M29 -> -82.2498481 | N60: =-N59*'Inputs - forecast'!N29 -> -71.10281131 | O60: =-O59*'Inputs - forecast'!O29 -> -40.85184001
B61: Deferred tax | F61: =IF(F60>0,F60,0) -> 0 | G61: =IF(G60>0,G60,0) -> 0 | H61: =IF(H60>0,H60,0) -> 0 | I61: =IF(I60>0,I60,0) -> 0 | J61: =IF(J60>0,J60,0) -> 0 | K61: 0 | L61: 0 | M61: 0 | N61: 0 | O61: 0
B62: Tax | F62: =IF(F61>0,0,F60+E61) -> -39.18072398 | G62: -35.8831518 | H62: -31.85484656 | I62: -26.85164855 | J62: -20.50059815 | K62: -89.43507726 | L62: -87.29168632 | M62: -82.2498481 | N62: -71.10281131 | O62: -40.85184001
A64: Reg Period 1
A65: Calculation of revenue | K65: Sum
B66: Present value of revenue | F66: =F13/'Inputs - forecast'!F$36 -> 568.3096224 | G66: =G13/'Inputs - forecast'!G$36 -> 545.9369136 | H66: =H13/'Inputs - forecast'!H$36 -> 524.4449537 | I66: =I13/'Inputs - forecast'!I$36 -> 503.7990703 | J66: =J13/'Inputs - forecast'!J$36 -> 483.9659556 | K66: =SUM(F66:J66) -> 2626.456516
B67: Present value of cost | F67: =SUM(F14:F19)/'Inputs - forecast'!F$36 -> -539.2547787 | G67: =SUM(G14:G19)/'Inputs - forecast'!G$36 -> -531.1312159 | H67: =SUM(H14:H19)/'Inputs - forecast'!H$36 -> -523.9795522 | I67: =SUM(I14:I19)/'Inputs - forecast'!I$36 -> -518.1078424 | J67: =SUM(J14:J19)/'Inputs - forecast'!J$36 -> -513.9831265 | K67: =SUM(F67:J67) -> -2626.456516
B68: Difference | K68: =SUM(K66:K67) -> 4.092726158e-12
B69: Revenue | K69: 603.4311571
A71: Reg Period 2
A72: Calculation of revenue | P72: Sum
B73: Present value of revenue | K73: =K13/'Inputs - forecast'!K$36 -> 675.2020989 | L73: =L13/'Inputs - forecast'!L$36 -> 648.6213419 | M73: =M13/'Inputs - forecast'!M$36 -> 623.0869926 | N73: =N13/'Inputs - forecast'!N$36 -> 598.5578569 | O73: =O13/'Inputs - forecast'!O$36 -> 574.9943624 | P73: =SUM(K73:O73) -> 3120.462653
B74: Present value of cost | K74: =SUM(K14:K19)/'Inputs - forecast'!K$36 -> -644.8516255 | L74: =SUM(L14:L19)/'Inputs - forecast'!L$36 -> -626.2125847 | M74: =SUM(M14:M19)/'Inputs - forecast'!M$36 -> -612.4499751 | N74: =SUM(N14:N19)/'Inputs - forecast'!N$36 -> -607.701246 | O74: =SUM(O14:O19)/'Inputs - forecast'!O$36 -> -629.2472215 | P74: =SUM(K74:O74) -> -3120.462653
B75: Difference | P75: =SUM(P73:P74) -> 0
B76: Revenue | P76: 967.5871891
A78: Actual | D78: =D11 -> Return over forecast period | E78: =E11 -> 2020-06-30 | F78: 2021-06-30 | G78: 2022-06-30 | H78: 2023-06-30 | I78: 2024-06-30 | J78: 2025-06-30 | K78: 2026-06-30 | L78: 2027-06-30 | M78: 2028-06-30 | N78: 2029-06-30 | O78: 2030-06-30
A79: Actual regulatory cashflows
B80: Revenue (no delay in wash-ups) | F80: =F$13/'Inputs - forecast'!F$7*'Inputs - actual'!F$5+F109 -> 583.1938382 | G80: =G$13/'Inputs - forecast'!G$7*'Inputs - actual'!G$5+G109 -> 613.6830154 | H80: =H$13/'Inputs - forecast'!H$7*'Inputs - actual'!H$5+H109 -> 646.0733389 | I80: =I$13/'Inputs - forecast'!I$7*'Inputs - actual'!I$5+I109 -> 680.5349267 | J80: =J$13/'Inputs - forecast'!J$7*'Inputs - actual'!J$5+J109 -> 717.2672172 | K80: =K$13/'Inputs - forecast'!K$7*'Inputs - actual'!K$5+K109 -> 959.7562275 | L80: =L$13/'Inputs - forecast'!L$7*'Inputs - actual'!L$5+L109 -> 1013.668017 | M80: =M$13/'Inputs - forecast'!M$7*'Inputs - actual'!M$5+M109 -> 1071.017004 | N80: =N$13/'Inputs - forecast'!N$7*'Inputs - actual'!N$5+N109 -> 1132.190293 | O80: =O$13/'Inputs - forecast'!O$7*'Inputs - actual'!O$5+O109 -> 1197.785497 | Q80: Note
B81: Opex | F81: =F$18/'Inputs - forecast'!F$7*'Inputs - actual'!F$5 -> -105 | G81: =G$18/'Inputs - forecast'!G$7*'Inputs - actual'!G$5 -> -110.25 | H81: =H$18/'Inputs - forecast'!H$7*'Inputs - actual'!H$5 -> -115.7625 | I81: =I$18/'Inputs - forecast'!I$7*'Inputs - actual'!I$5 -> -121.550625 | J81: =J$18/'Inputs - forecast'!J$7*'Inputs - actual'!J$5 -> -127.6281563 | K81: =K$18/'Inputs - forecast'!K$7*'Inputs - actual'!K$5 -> -134.0095641 | L81: =L$18/'Inputs - forecast'!L$7*'Inputs - actual'!L$5 -> -140.7100423 | M81: =M$18/'Inputs - forecast'!M$7*'Inputs - actual'!M$5 -> -147.7455444 | N81: =N$18/'Inputs - forecast'!N$7*'Inputs - actual'!N$5 -> -155.1328216 | O81: =O$18/'Inputs - forecast'!O$7*'Inputs - actual'!O$5 -> -162.8894627
B82: Capex | F82: =-F113 -> -210 | G82: =-G113 -> -220.5 | H82: -231.525 | I82: -243.10125 | J82: -255.2563125 | K82: -134.0095641 | L82: -140.7100423 | M82: -147.7455444 | N82: -155.1328216 | O82: 0
B83: Tax | F83: =F135+F143 -> -40.33309822 | G83: =G135+G143 -> -38.02496622 | H83: -34.74904708 | I83: -30.15278725 | J83: -23.69802588 | K83: -92.06552071 | L83: -92.50200324 | M83: -89.72273146 | N83: -79.84418307 | O83: -47.22340072
B84: Other | F84: =-NPV('Inputs - actual'!F34,'2 Incl CODW'!F99:O99) -> 4.003979832 | Q84: Note
B85: Nominal IRR | D85: =IRR(E85:O85,0.093) -> 0.08035059746 | E85: =-E42+SUM(E80:E84) -> -3000 | F85: =SUM(F80:F84) -> 231.8647198 | G85: =SUM(G80:G84) -> 244.9080492 | H85: 264.0367919 | I85: 285.7302645 | J85: 310.6847225 | K85: 599.6715787 | L85: 639.7459293 | M85: 685.8031842 | N85: 742.0804672 | O85: 987.6726332
B87: Real IRR | D87: =IRR(E87:O87,0.08) -> 0.04096396414 | E87: =E85 -> -3000 | F87: =F85/'Inputs - actual'!F$39 -> 223.4115651 | G87: =G85/'Inputs - actual'!G$39 -> 227.3762067 | H87: =H85/'Inputs - actual'!H$39 -> 236.1986355 | I87: =I85/'Inputs - actual'!I$39 -> 246.2862461 | J87: =J85/'Inputs - actual'!J$39 -> 258.0327275 | K87: =K85/'Inputs - actual'!K$39 -> 479.8873922 | L87: =L85/'Inputs - actual'!L$39 -> 493.2923543 | M87: =M85/'Inputs - actual'!M$39 -> 509.527149 | N87: =N85/'Inputs - actual'!N$39 -> 531.23883 | O87: =O85/'Inputs - actual'!O$39 -> 681.2755618
B88: check to inputs | D88: =D87-'Inputs - actual'!P24 -> -1.642801435e-05
A90: Actual return (building blocks)
B91: Revenue | F91: =F80 -> 583.1938382 | G91: 613.6830154 | H91: 646.0733389 | I91: 680.5349267 | J91: 717.2672172 | K91: 959.7562275 | L91: 1013.668017 | M91: 1071.017004 | N91: 1132.190293 | O91: 1197.785497
B92: Opex | F92: =F81 -> -105 | G92: -110.25 | H92: -115.7625 | I92: -121.550625 | J92: -127.6281563 | K92: -134.0095641 | L92: -140.7100423 | M92: -147.7455444 | N92: -155.1328216 | O92: -162.8894627
B93: Return on debt (fixed) | F93: =-F120*'Inputs - forecast'!F$26*('Inputs - actual'!F$20) -> -61.5 | G93: =-G120*'Inputs - forecast'!G$26*('Inputs - actual'!G$20) -> -62.4225 | H93: =-H120*'Inputs - forecast'!H$26*('Inputs - actual'!H$20) -> -62.78125 | I93: =-I120*'Inputs - forecast'!I$26*('Inputs - actual'!I$20) -> -62.42653594 | J93: =-J120*'Inputs - forecast'!J$26*('Inputs - actual'!J$20) -> -61.16745797 | K93: =-K120*'Inputs - forecast'!K$26*('Inputs - actual'!K$20) -> -58.75428013 | L93: =-L120*'Inputs - forecast'!L$26*('Inputs - actual'!L$20) -> -52.10079137 | M93: =-M120*'Inputs - forecast'!M$26*('Inputs - actual'!M$20) -> -43.91392907 | N93: =-N120*'Inputs - forecast'!N$26*('Inputs - actual'!N$20) -> -33.76853401 | O93: =-O120*'Inputs - forecast'!O$26*('Inputs - actual'!O$20) -> -20.9087032
B94: Return on equity | F94: =-F120*'Inputs - actual'!F$18*(1-'Inputs - actual'!F$20) -> -179.6029412 | G94: =-G120*'Inputs - actual'!G$18*(1-'Inputs - actual'!G$20) -> -182.2969853 | H94: =-H120*'Inputs - actual'!H$18*(1-'Inputs - actual'!H$20) -> -183.3446691 | I94: =-I120*'Inputs - actual'!I$18*(1-'Inputs - actual'!I$20) -> -182.3087717 | J94: =-J120*'Inputs - actual'!J$18*(1-'Inputs - actual'!J$20) -> -178.6317944 | K94: =-K120*'Inputs - actual'!K$18*(1-'Inputs - actual'!K$20) -> -171.5844149 | L94: =-L120*'Inputs - actual'!L$18*(1-'Inputs - actual'!L$20) -> -152.1537458 | M94: =-M120*'Inputs - actual'!M$18*(1-'Inputs - actual'!M$20) -> -128.245054 | N94: =-N120*'Inputs - actual'!N$18*(1-'Inputs - actual'!N$20) -> -98.61671589 | O94: =-O120*'Inputs - actual'!O$18*(1-'Inputs - actual'!O$20) -> -61.06121285
B95: Revaluation | F95: =F121 -> 150 | G95: =G121 -> 152.25 | H95: 153.125 | I95: 152.2598438 | J95: 149.1889219 | K95: 143.3031223 | L95: 127.0751009 | M95: 107.1071441 | N95: 82.36227807 | O95: 50.99683707
B96: Depreciation | F96: =F123 -> -315 | G96: =G123 -> -355.25 | H96: -401.953125 | I96: -456.7795313 | J96: -522.1612266 | K96: -601.8731135 | L96: -667.1442798 | M96: -749.7500085 | N96: -864.8039198 | O96: -1070.933578
B97: Tax | F97: =F135+F143 -> -40.33309822 | G97: =G135+G143 -> -38.02496622 | H97: -34.74904708 | I97: -30.15278725 | J97: -23.69802588 | K97: -92.06552071 | L97: -92.50200324 | M97: -89.72273146 | N97: -79.84418307 | O97: -47.22340072
B98: Gain on RAB | J98: =J84 -> 0 | Q98: Note
B99: Nominal return | F99: =SUM(F91:F97) -> 31.75779878 | G99: =SUM(G91:G97) -> 17.68856386 | H99: 0.6077477378 | I99: -20.42348072 | J99: -46.83052203 | K99: 44.77245644 | L99: 36.13225553 | M99: 18.74688103 | N99: -17.61360278 | O99: -114.2340242
B100: Present value | D100: =SUM(E100:O100) -> 2.565059276e-12 | F100: =F99/'Inputs - actual'!F$28 -> 29.05484375 | G100: =G99/'Inputs - actual'!G$28 -> 14.80569768 | H100: =H99/'Inputs - actual'!H$28 -> 0.4654015293 | I100: =I99/'Inputs - actual'!I$28 -> -14.3087721 | J100: =J99/'Inputs - actual'!J$28 -> -30.01717087 | K100: =K99/'Inputs - actual'!K$28 -> 26.25547216 | L100: =L99/'Inputs - actual'!L$28 -> 19.38528252 | M100: =M99/'Inputs - actual'!M$28 -> 9.201830659 | N100: =N99/'Inputs - actual'!N$28 -> -7.909728255 | O100: =O99/'Inputs - actual'!O$28 -> -46.93285708
B102: Real return | F102: =F99/'Inputs - actual'!F$5 -> 30.24552264 | G102: =G99/'Inputs - actual'!G$5 -> 16.04404885 | H102: =H99/'Inputs - actual'!H$5 -> 0.5249953464 | I102: =I99/'Inputs - actual'!I$5 -> -16.80244813 | J102: =J99/'Inputs - actual'!J$5 -> -36.6929394 | K102: =K99/'Inputs - actual'!K$5 -> 33.40989634 | L102: =L99/'Inputs - actual'!L$5 -> 25.67851942 | M102: =M99/'Inputs - actual'!M$5 -> 12.68862699 | N102: =N99/'Inputs - actual'!N$5 -> -11.3538854 | O102: =O99/'Inputs - actual'!O$5 -> -70.12978146
B103: Present value | D103: =SUM(E103:O103) -> 2.600586413e-12 | F103: =F102/'Inputs - actual'!F$32 -> 29.05484375 | G103: =G102/'Inputs - actual'!G$32 -> 14.80569768 | H103: =H102/'Inputs - actual'!H$32 -> 0.4654015293 | I103: =I102/'Inputs - actual'!I$32 -> -14.3087721 | J103: =J102/'Inputs - actual'!J$32 -> -30.01717087 | K103: =K102/'Inputs - actual'!K$32 -> 26.25547216 | L103: =L102/'Inputs - actual'!L$32 -> 19.38528252 | M103: =M102/'Inputs - actual'!M$32 -> 9.201830659 | N103: =N102/'Inputs - actual'!N$32 -> -7.909728255 | O103: =O102/'Inputs - actual'!O$32 -> -46.93285708
B105: Actual return on RAB | F105: =-(F93+F94)/F120 -> 0.08036764706 | G105: 0.08036764706 | H105: 0.08036764706 | I105: 0.08036764706 | J105: 0.08036764706 | K105: 0.08036764706 | L105: 0.08036764706 | M105: 0.08036764706 | N105: 0.08036764706 | O105: 0.08036764706
B106: Actual Rab revaluation | F106: =F95/F120 -> 0.05 | G106: 0.05 | H106: 0.05 | I106: 0.05 | J106: 0.05 | K106: 0.05 | L106: 0.05 | M106: 0.05 | N106: 0.05 | O106: 0.05
B107: Annual change in revenue | G107: =G91/F91-1 -> 0.05227966279 | H107: 0.05278021837 | I107: 0.05334005551 | J107: 0.05397561391 | K107: 0.3380734607 | L107: 0.05617237795 | M107: 0.05657570954 | N107: 0.05711701014 | O107: 0.05793655317
A109: Adjustment for fixed cost of debt | F109: =-(F120*'Inputs - actual'!F$19*'Inputs - actual'!F$20+F93) -> -37.98529412 | G109: =-(G120*'Inputs - actual'!G$19*'Inputs - actual'!G$20+G93) -> -38.55507353 | H109: =-(H120*'Inputs - actual'!H$19*'Inputs - actual'!H$20+H93) -> -38.77665441 | I109: =-(I120*'Inputs - actual'!I$19*'Inputs - actual'!I$20+I93) -> -38.55756631 | J109: =-(J120*'Inputs - actual'!J$19*'Inputs - actual'!J$20+J93) -> -37.77990051 | K109: =-(K120*'Inputs - actual'!K$19*'Inputs - actual'!K$20+K93) -> -36.28940831 | L109: =-(L120*'Inputs - actual'!L$19*'Inputs - actual'!L$20+L93) -> -32.17990055 | M109: =-(M120*'Inputs - actual'!M$19*'Inputs - actual'!M$20+M93) -> -27.12330913 | N109: =-(N120*'Inputs - actual'!N$19*'Inputs - actual'!N$20+N93) -> -20.85703571 | O109: =-(O120*'Inputs - actual'!O$19*'Inputs - actual'!O$20+O93) -> -12.91419903
A111: Actual Asset Base
B112: Opening Asset Base | F112: =E42 -> 3000 | G112: =F115 -> 2910 | H112: 2807.166667 | I112: 2687.795833 | J112: 2546.92625 | K112: 2377.694854 | L112: 2036.165447 | M112: 1667.834128 | N112: 1259.634963 | O112: 784.9503031
B113: Capex | F113: =F$40/'Inputs - forecast'!F$7*'Inputs - actual'!F$5 -> 210 | G113: =G$40/'Inputs - forecast'!G$7*'Inputs - actual'!G$5 -> 220.5 | H113: =H$40/'Inputs - forecast'!H$7*'Inputs - actual'!H$5 -> 231.525 | I113: =I$40/'Inputs - forecast'!I$7*'Inputs - actual'!I$5 -> 243.10125 | J113: =J$40/'Inputs - forecast'!J$7*'Inputs - actual'!J$5 -> 255.2563125 | K113: =K$40/'Inputs - forecast'!K$7*'Inputs - actual'!K$5 -> 134.0095641 | L113: =L$40/'Inputs - forecast'!L$7*'Inputs - actual'!L$5 -> 140.7100423 | M113: =M$40/'Inputs - forecast'!M$7*'Inputs - actual'!M$5 -> 147.7455444 | N113: =N$40/'Inputs - forecast'!N$7*'Inputs - actual'!N$5 -> 155.1328216 | O113: =O$40/'Inputs - forecast'!O$7*'Inputs - actual'!O$5 -> 0
B114: Depreciation | F114: =-F112/F36 -> -300 | G114: -323.3333333 | H114: -350.8958333 | I114: -383.9708333 | J114: -424.4877083 | K114: -475.5389708 | L114: -509.0413618 | M114: -555.9447093 | N114: -629.8174815 | O114: -784.9503031
B115: Closing Asset Base | F115: =SUM(F112:F114) -> 2910 | G115: 2807.166667 | H115: 2687.795833 | I115: 2546.92625 | J115: 2377.694854 | K115: 2036.165447 | L115: 1667.834128 | M115: 1259.634963 | N115: 784.9503031 | O115: 0
A117: Actual RAB
B118: Useful lives | F118: =F36 -> 10 | G118: =G36 -> 9 | H118: 8 | I118: 7 | J118: 6 | K118: 5 | L118: 4 | M118: 3 | N118: 2 | O118: 1
B120: Opening RAB | F120: =E124 -> 3000 | G120: =F124 -> 3045 | H120: 3062.5 | I120: 3045.196875 | J120: 2983.778438 | K120: 2866.062445 | L120: 2541.502018 | M120: 2142.142882 | N120: 1647.245561 | O120: 1019.936741
B121: Revaluation | F121: =F120*'Inputs - actual'!F4 -> 150 | G121: =G120*'Inputs - actual'!G4 -> 152.25 | H121: =H120*'Inputs - actual'!H4 -> 153.125 | I121: =I120*'Inputs - actual'!I4 -> 152.2598438 | J121: =J120*'Inputs - actual'!J4 -> 149.1889219 | K121: =K120*'Inputs - actual'!K4 -> 143.3031223 | L121: =L120*'Inputs - actual'!L4 -> 127.0751009 | M121: =M120*'Inputs - actual'!M4 -> 107.1071441 | N121: =N120*'Inputs - actual'!N4 -> 82.36227807 | O121: =O120*'Inputs - actual'!O4 -> 50.99683707
B122: Capex | F122: =F113 -> 210 | G122: =G113 -> 220.5 | H122: 231.525 | I122: 243.10125 | J122: 255.2563125 | K122: 134.0095641 | L122: 140.7100423 | M122: 147.7455444 | N122: 155.1328216 | O122: 0
B123: Depreciation | F123: =-SUM(F120:F121)/F118 -> -315 | G123: =-SUM(G120:G121)/G118 -> -355.25 | H123: -401.953125 | I123: -456.7795313 | J123: -522.1612266 | K123: -601.8731135 | L123: -667.1442798 | M123: -749.7500085 | N123: -864.8039198 | O123: -1070.933578
B124: Closing RAB | E124: =-E29 -> 3000 | F124: =SUM(F120:F123) -> 3045 | G124: 3062.5 | H124: 3045.196875 | I124: 2983.778438 | J124: 2866.062445 | K124: 2541.502018 | L124: 2142.142882 | M124: 1647.245561 | N124: 1019.936741 | O124: 0
A127: Actual tax
B128: Revenue | F128: =F91 -> 583.1938382 | G128: 613.6830154 | H128: 646.0733389 | I128: 680.5349267 | J128: 717.2672172 | K128: 959.7562275 | L128: 1013.668017 | M128: 1071.017004 | N128: 1132.190293 | O128: 1197.785497
B129: Depreciation | F129: =F114 -> -300 | G129: -323.3333333 | H129: -350.8958333 | I129: -383.9708333 | J129: -424.4877083 | K129: -475.5389708 | L129: -509.0413618 | M129: -555.9447093 | N129: -629.8174815 | O129: -784.9503031
B130: Opex | F130: =F92 -> -105 | G130: -110.25 | H130: -115.7625 | I130: -121.550625 | J130: -127.6281563 | K130: -134.0095641 | L130: -140.7100423 | M130: -147.7455444 | N130: -155.1328216 | O130: -162.8894627
B131: Interest | F131: =F93 -> -61.5 | G131: -62.4225 | H131: -62.78125 | I131: -62.42653594 | J131: -61.16745797 | K131: -58.75428013 | L131: -52.10079137 | M131: -43.91392907 | N131: -33.76853401 | O131: -20.9087032
B132: EBT | F132: =SUM(F128:F131) -> 116.6938382 | G132: =SUM(G128:G131) -> 117.677182 | H132: 116.6337556 | I132: 112.5869324 | J132: 103.9838946 | K132: 291.4534125 | L132: 311.8158216 | M132: 323.4128217 | N132: 313.4714564 | O132: 229.0370277
B133: Calculated tax | F133: =-F132*'Inputs - forecast'!F29 -> -32.67427469 | G133: =-G132*'Inputs - forecast'!G29 -> -32.94961097 | H133: =-H132*'Inputs - forecast'!H29 -> -32.65745157 | I133: =-I132*'Inputs - forecast'!I29 -> -31.52434108 | J133: =-J132*'Inputs - forecast'!J29 -> -29.11549049 | K133: =-K132*'Inputs - forecast'!K29 -> -81.6069555 | L133: =-L132*'Inputs - forecast'!L29 -> -87.30843005 | M133: =-M132*'Inputs - forecast'!M29 -> -90.55559006 | N133: =-N132*'Inputs - forecast'!N29 -> -87.77200779 | O133: =-O132*'Inputs - forecast'!O29 -> -64.13036775
B134: Deferred tax | F134: =IF(F133>0,F133+E134,0) -> 0 | G134: 0 | H134: 0 | I134: 0 | J134: 0 | K134: 0 | L134: 0 | M134: 0 | N134: 0 | O134: 0
B135: Tax | F135: =IF(F134>0,0,F133+E134) -> -32.67427469 | G135: -32.94961097 | H135: -32.65745157 | I135: -31.52434108 | J135: -29.11549049 | K135: -81.6069555 | L135: -87.30843005 | M135: -90.55559006 | N135: -87.77200779 | O135: -64.13036775
A137: Tax adjustment | E137: NPV | Q137: Note
B138: Tax | F138: =F135 -> -32.67427469 | G138: -32.94961097 | H138: -32.65745157 | I138: -31.52434108 | J138: -29.11549049 | K138: -81.6069555 | L138: -87.30843005 | M138: -90.55559006 | N138: -87.77200779 | O138: -64.13036775
B139: NPV of actual tax | E139: =SUM(F139:O139) -> -328.1397873 | F139: =F138/'Inputs - actual'!F$28 -> -29.89331699 | G139: =G138/'Inputs - actual'!G$28 -> -27.5795131 | H139: =H138/'Inputs - actual'!H$28 -> -25.00844834 | I139: =I138/'Inputs - actual'!I$28 -> -22.08607916 | J139: =J138/'Inputs - actual'!J$28 -> -18.66228722 | K139: =K138/'Inputs - actual'!K$28 -> -47.85596589 | L139: =L138/'Inputs - actual'!L$28 -> -46.8417639 | M139: =M138/'Inputs - actual'!M$28 -> -44.44884479 | N139: =N138/'Inputs - actual'!N$28 -> -39.41571401 | O139: =O138/'Inputs - actual'!O$28 -> -26.34785394
B141: Forecast tax adjusted for inflation | F141: =F$17/'Inputs - forecast'!F$7*'Inputs - actual'!F$5 -> -40.33309822 | G141: =G$17/'Inputs - forecast'!G$7*'Inputs - actual'!G$5 -> -38.02496622 | H141: =H$17/'Inputs - forecast'!H$7*'Inputs - actual'!H$5 -> -34.74904708 | I141: =I$17/'Inputs - forecast'!I$7*'Inputs - actual'!I$5 -> -30.15278725 | J141: =J$17/'Inputs - forecast'!J$7*'Inputs - actual'!J$5 -> -23.69802588 | K141: =K$17/'Inputs - forecast'!K$7*'Inputs - actual'!K$5 -> -92.06552071 | L141: =L$17/'Inputs - forecast'!L$7*'Inputs - actual'!L$5 -> -92.50200324 | M141: =M$17/'Inputs - forecast'!M$7*'Inputs - actual'!M$5 -> -89.72273146 | N141: =N$17/'Inputs - forecast'!N$7*'Inputs - actual'!N$5 -> -79.84418307 | O141: =O$17/'Inputs - forecast'!O$7*'Inputs - actual'!O$5 -> -47.22340072
B142: NPV of forecast tax adjusted for inflation | E142: =SUM(F142:O142) -> -334.5676317 | F142: =F141/'Inputs - actual'!F$28 -> -36.90028629 | G142: =G141/'Inputs - actual'!G$28 -> -31.82769153 | H142: =H141/'Inputs - actual'!H$28 -> -26.61015195 | I142: =I141/'Inputs - actual'!I$28 -> -21.12516307 | J142: =J141/'Inputs - actual'!J$28 -> -15.1898305 | K142: =K141/'Inputs - actual'!K$28 -> -53.98907963 | L142: =L141/'Inputs - actual'!L$28 -> -49.62816298 | M142: =M141/'Inputs - actual'!M$28 -> -44.04003952 | N142: =N141/'Inputs - actual'!N$28 -> -35.85557132 | O142: =O141/'Inputs - actual'!O$28 -> -19.40165491
B143: Difference | E143: =E142-E139 -> -6.427844365 | F143: =F141-F138 -> -7.658823529 | G143: =G141-G138 -> -5.075355248 | H143: -2.091595512 | I143: 1.371553834 | J143: 5.417464612 | K143: -10.45856521 | L143: -5.193573193 | M143: 0.8328586037 | N143: 7.927824727 | O143: 16.90696703
A145: Real revenue | F145: =F91/'Inputs - actual'!F$5 -> 555.422703 | G145: =G91/'Inputs - actual'!G$5 -> 556.6285854 | H145: =H91/'Inputs - actual'!H$5 -> 558.1024416 | I145: =I91/'Inputs - actual'!I$5 -> 559.8777684 | J145: =J91/'Inputs - actual'!J$5 -> 561.997633 | K145: =K91/'Inputs - actual'!K$5 -> 716.184874 | L145: =L91/'Inputs - actual'!L$5 -> 720.3949347 | M145: =M91/'Inputs - actual'!M$5 -> 724.906466 | N145: =N91/'Inputs - actual'!N$5 -> 729.819958 | O145: =O91/'Inputs - actual'!O$5 -> 735.3363913
A147: Wash-up account | E147: NPV | F147: =F78 -> 2021-06-30 | G147: 2022-06-30 | H147: 2023-06-30 | I147: 2024-06-30 | J147: 2025-06-30 | K147: 2026-06-30 | L147: 2027-06-30 | M147: 2028-06-30 | N147: 2029-06-30 | O147: 2030-06-30 | P147: =EOMONTH(O147, 12) -> 2031-06-30 | Q147: =EOMONTH(P147, 12) -> 2032-06-30
B148: Wash-up drawdowns will usually have a 2 year delay from when the revenue is set to allow for actual CPI information to be released.
B150: Actual net allowable revenue | D150: ANAR | F150: =F91-F109 -> 621.1791323 | G150: 652.2380889 | H150: 684.8499933 | I150: 719.092493 | J150: 755.0471177 | K150: 996.0456358 | L150: 1045.847918 | M150: 1098.140314 | N150: 1153.047329 | O150: 1210.699696
B151: Forecast net allowable revenue | D151: FNAR | F151: =F13 -> 603.4311571 | G151: 615.4997802 | H151: 627.8097758 | I151: 640.3659713 | J151: 653.1732908 | K151: 967.5871891 | L151: 986.9389329 | M151: 1006.677712 | N151: 1026.811266 | O151: 1047.347491 | R151: Note
B152: Wash-up amount | F152: =F150-F151 -> 17.74797521 | G152: =G150-G151 -> 36.73830868 | H152: 57.04021752 | I152: 78.72652167 | J152: 101.8738269 | K152: 28.45844674 | L152: 58.90898475 | M152: 91.46260197 | N152: 126.2360634 | O152: 163.3522046
B154: Actual allowable revenue | D154: AAR | F154: =F150-F164 -> 621.1791323 | G154: 652.2380889 | H154: 662.0340506 | I154: 717.0442374 | J154: 775.6378101 | K154: 1041.332889 | L154: 1118.108643 | M154: 1089.311537 | N154: 1183.182213 | O154: 1283.237052
B155: Forecast allowable revenue | D155: FAR | F155: =F151-F164 -> 603.4311571 | G155: 615.4997802 | H155: 604.9938331 | I155: 638.3177157 | J155: 673.7639832 | K155: 1012.874442 | L155: 1059.199659 | M155: 997.8489348 | N155: 1056.94615 | O155: 1119.884848
B157: Actual revenue | D157: AR | F157: =F155 -> 603.4311571 | G157: =G155 -> 615.4997802 | H157: =H155 -> 604.9938331 | I157: =I155 -> 638.3177157 | J157: 673.7639832 | K157: 1012.874442 | L157: 1059.199659 | M157: 997.8489348 | N157: 1056.94615 | O157: 1119.884848 | R157: Note
B159: Cost of debt wash-up adjustment | D159: CODW | F159: =F109 -> -37.98529412 | G159: -38.55507353 | H159: -38.77665441 | I159: -38.55756631 | J159: -37.77990051 | K159: -36.28940831 | L159: -32.17990055 | M159: -27.12330913 | N159: -20.85703571 | O159: -12.91419903
B161: Wash-up account balance | D161: WAB
B162: Wash-up account opening balance | D162: WABt-1 | F162: 0 | G162: =F165 -> -20.23731891 | H162: -23.30475007 | I162: 16.33452219 | J162: 59.56120667 | K162: 106.7453232 | L162: 60.22396946 | M162: 18.41416919 | N162: 92.72023444 | O162: 173.6944888 | P162: 262.3294571 | Q162: 159.7350743
B163: Wash-up accrual | D163: WA | F163: =F154-F157+F159 -> -20.23731891 | G163: -1.816764848 | H163: 18.26356311 | I163: 40.16895536 | J163: 64.09392639 | K163: -7.830961577 | L163: 26.7290842 | M163: 64.33929284 | N163: 105.3790277 | O163: 150.4380055 | P163: 0 | Q163: 0
B164: Wash-up (draw-down)/ draw-up | D164: WD | F164: 0 | G164: 0 | H164: =-F163*(1+'Inputs - forecast'!H$31)^2 -> 22.8159427 | I164: =-G163*(1+'Inputs - forecast'!I$31)^2 -> 2.048255645 | J164: =-H163*(1+'Inputs - forecast'!J$31)^2 -> -20.59069244 | K164: =-I163*(1+'Inputs - forecast'!K$31)^2 -> -45.28725312 | L164: =-J163*(1+'Inputs - forecast'!L$31)^2 -> -72.26072578 | M164: =-K163*(1+'Inputs - forecast'!M$31)^2 -> 8.828776749 | N164: =-L163*(1+'Inputs - forecast'!N$31)^2 -> -30.13488379 | O164: =-M163*(1+'Inputs - forecast'!O$31)^2 -> -72.53735664 | P164: =-N163*(1+'Inputs - forecast'!P$31)^2 -> -118.8063433 | Q164: =-O163*(1+'Inputs - forecast'!Q$31)^2 -> -150.4380055 | R164: Note
B165: Wash-up account balance | D165: WABt | F165: =F162*(1+'Inputs - forecast'!F$31)+F163+F164 -> -20.23731891 | G165: =G162*(1+'Inputs - forecast'!G$31)+G163+G164 -> -23.30475007 | H165: =H162*(1+'Inputs - forecast'!H$31)+H163+H164 -> 16.33452219 | I165: =I162*(1+'Inputs - forecast'!I$31)+I163+I164 -> 59.56120667 | J165: =J162*(1+'Inputs - forecast'!J$31)+J163+J164 -> 106.7453232 | K165: =K162*(1+'Inputs - forecast'!K$31)+K163+K164 -> 60.22396946 | L165: =L162*(1+'Inputs - forecast'!L$31)+L163+L164 -> 18.41416919 | M165: =M162*(1+'Inputs - forecast'!M$31)+M163+M164 -> 92.72023444 | N165: =N162*(1+'Inputs - forecast'!N$31)+N163+N164 -> 173.6944888 | O165: =O162*(1+'Inputs - forecast'!O$31)+O163+O164 -> 262.3294571 | P165: =P162*(1+'Inputs - forecast'!P$31)+P163+P164 -> 159.7350743 | Q165: =Q162*(1+'Inputs - forecast'!Q$31)+Q163+Q164 -> 9.297068742
B167: Test NPV=0
B168: Confirm Net Present Value (NPV) of ANAR equal AR plus CODW plus the wash-up account balance remaining at end of model period
B169: Actual net allowable revenue | D169: ANAR | E169: =-NPV('Inputs - forecast'!$F$31,F169:O169) -> -6259.741636 | F169: =F150 -> 621.1791323 | G169: 652.2380889 | H169: 684.8499933 | I169: 719.092493 | J169: 755.0471177 | K169: 996.0456358 | L169: 1045.847918 | M169: 1098.140314 | N169: 1153.047329 | O169: 1210.699696
B170: Actual revenue | D170: AR | E170: =NPV('Inputs - forecast'!$F$31,F170:O170) -> 5872.522299 | F170: =F155 -> 603.4311571 | G170: 615.4997802 | H170: 604.9938331 | I170: 638.3177157 | J170: 673.7639832 | K170: 1012.874442 | L170: 1059.199659 | M170: 997.8489348 | N170: 1056.94615 | O170: 1119.884848
B171: Cost of debt wash-up adjustment | D171: CODW | E171: =-NPV('Inputs - forecast'!$F$31,F171:O171) -> 243.200318 | F171: =F159 -> -37.98529412 | G171: -38.55507353 | H171: -38.77665441 | I171: -38.55756631 | J171: -37.77990051 | K171: -36.28940831 | L171: -32.17990055 | M171: -27.12330913 | N171: -20.85703571 | O171: -12.91419903
B172: Wash-up account balance | D172: WAB | E172: =NPV('Inputs - forecast'!$F$31,F172:O172) -> 144.0190197 | F172: 0 | G172: 0 | H172: 0 | I172: 0 | J172: 0 | K172: 0 | L172: 0 | M172: 0 | N172: 0 | O172: =O165 -> 262.3294571
D173: NPV | E173: =SUM(E169:E172) -> 0
B175: Actual revenue per model | E175: =-NPV('Inputs - forecast'!$F$31,F175:O175) -> -6016.541318 | F175: =F91 -> 583.1938382 | G175: 613.6830154 | H175: 646.0733389 | I175: 680.5349267 | J175: 717.2672172 | K175: 959.7562275 | L175: 1013.668017 | M175: 1071.017004 | N175: 1132.190293 | O175: 1197.785497
B176: Check to ANAR less CODW | F176: =F169+F171-F175 -> 0 | G176: =G169+G171-G175 -> 0 | H176: 0 | I176: 0 | J176: 0 | K176: 0 | L176: 0 | M176: 0 | N176: 0 | O176: 0
B178: FNAR + accrual | E178: =NPV('Inputs - forecast'!$F$31,F178:O178) -> 6016.541318 | F178: =F151+F163 -> 583.1938382 | G178: 613.6830154 | H178: 646.0733389 | I178: 680.5349267 | J178: 717.2672172 | K178: 959.7562275 | L178: 1013.668017 | M178: 1071.017004 | N178: 1132.190293 | O178: 1197.785497 | R178: Note
B179: FNAR + draw-down | E179: =NPV('Inputs - forecast'!$F$31,F179:Q179) -> 5872.522299 | F179: =F151-F164 -> 603.4311571 | G179: 615.4997802 | H179: 604.9938331 | I179: 638.3177157 | J179: 673.7639832 | K179: 1012.874442 | L179: 1059.199659 | M179: 997.8489348 | N179: 1056.94615 | O179: 1119.884848 | R179: Note
B180: Closing WAB yet to receive | E180: =NPV('Inputs - forecast'!$F$31,F180:Q180) -> 144.0190197 | F180: 0 | G180: 0 | H180: 0 | I180: 0 | J180: 0 | K180: 0 | L180: 0 | M180: 0 | N180: 0 | O180: =+O165 -> 262.3294571
D181: NPV | E181: =E178-E179-E180 -> -3.97903932e-13

Sheet 2b Incl CODW smoothed
A1: Calculation
A3: Analysis
A10: Calculation
A11: Forecast | D11: Return over forecast period | E11: ='Inputs - forecast'!E2 -> 2020-06-30 | F11: ='Inputs - forecast'!F2 -> 2021-06-30 | G11: ='Inputs - forecast'!G2 -> 2022-06-30 | H11: ='Inputs - forecast'!H2 -> 2023-06-30 | I11: ='Inputs - forecast'!I2 -> 2024-06-30 | J11: ='Inputs - forecast'!J2 -> 2025-06-30 | K11: ='Inputs - forecast'!K2 -> 2026-06-30 | L11: ='Inputs - forecast'!L2 -> 2027-06-30 | M11: ='Inputs - forecast'!M2 -> 2028-06-30 | N11: ='Inputs - forecast'!N2 -> 2029-06-30 | O11: ='Inputs - forecast'!O2 -> 2030-06-30
A12: Building blocks
B13: Revenue | F13: =K69 -> 603.4311571 | G13: =F13*(1+'Inputs - forecast'!G5) -> 615.4997802 | H13: =G13*(1+'Inputs - forecast'!H5) -> 627.8097758 | I13: =H13*(1+'Inputs - forecast'!I5) -> 640.3659713 | J13: =I13*(1+'Inputs - forecast'!J5) -> 653.1732908 | K13: =P76 -> 967.5871891 | L13: =K13*(1+'Inputs - forecast'!L5) -> 986.9389329 | M13: =L13*(1+'Inputs - forecast'!M5) -> 1006.677712 | N13: =M13*(1+'Inputs - forecast'!N5) -> 1026.811266 | O13: =N13*(1+'Inputs - forecast'!O5) -> 1047.347491
B14: Return on debt | F14: =-SUM(F$38)*'Inputs - forecast'!F$28*'Inputs - forecast'!F$26 -> -61.5 | G14: =-SUM(G$38)*'Inputs - forecast'!G$28*'Inputs - forecast'!G$26 -> -60.639 | H14: =-SUM(H$38)*'Inputs - forecast'!H$28*'Inputs - forecast'!H$26 -> -59.245 | I14: =-SUM(I$38)*'Inputs - forecast'!I$28*'Inputs - forecast'!I$26 -> -57.2271153 | J14: =-SUM(J$38)*'Inputs - forecast'!J$28*'Inputs - forecast'!J$26 -> -54.47082123 | K14: =-SUM(K$38)*'Inputs - forecast'!K$28*'Inputs - forecast'!K$26 -> -58.75428013 | L14: =-SUM(L$38)*'Inputs - forecast'!L$28*'Inputs - forecast'!L$26 -> -50.61219733 | M14: =-SUM(M$38)*'Inputs - forecast'!M$28*'Inputs - forecast'!M$26 -> -41.4404098 | N14: =-SUM(N$38)*'Inputs - forecast'!N$28*'Inputs - forecast'!N$26 -> -30.95599908 | O14: =-SUM(O$38)*'Inputs - forecast'!O$28*'Inputs - forecast'!O$26 -> -18.61961036
B15: Return on equity | F15: =-SUM(F$38)*(1-'Inputs - forecast'!F$28)*'Inputs - forecast'!F$25 -> -123.9 | G15: =-SUM(G$38)*(1-'Inputs - forecast'!G$28)*'Inputs - forecast'!G$25 -> -122.1654 | H15: =-SUM(H$38)*(1-'Inputs - forecast'!H$28)*'Inputs - forecast'!H$25 -> -119.357 | I15: =-SUM(I$38)*(1-'Inputs - forecast'!I$28)*'Inputs - forecast'!I$25 -> -115.2917006 | J15: =-SUM(J$38)*(1-'Inputs - forecast'!J$28)*'Inputs - forecast'!J$25 -> -109.7387764 | K15: =-SUM(K$38)*(1-'Inputs - forecast'!K$28)*'Inputs - forecast'!K$25 -> -118.368379 | L15: =-SUM(L$38)*(1-'Inputs - forecast'!L$28)*'Inputs - forecast'!L$25 -> -101.965061 | M15: =-SUM(M$38)*(1-'Inputs - forecast'!M$28)*'Inputs - forecast'!M$25 -> -83.48726462 | N15: =-SUM(N$38)*(1-'Inputs - forecast'!N$28)*'Inputs - forecast'!N$25 -> -62.36501279 | O15: =-SUM(O$38)*(1-'Inputs - forecast'!O$28)*'Inputs - forecast'!O$25 -> -37.51170282
B16: Revaluation | F16: =F39 -> 60 | G16: =G39 -> 59.16 | H16: 57.8 | I16: 55.831332 | J16: 53.14226462 | K16: 57.32124891 | L16: 49.3777535 | M16: 40.4296681 | N16: 30.20097472 | O16: 18.16547352
B17: Tax | F17: =F60 -> -39.18072398 | G17: =G60 -> -35.8831518 | H17: -31.85484656 | I17: -26.85164855 | J17: -20.50059815 | K17: -89.43507726 | L17: -87.29168632 | M17: -82.2498481 | N17: -71.10281131 | O17: -40.85184001
B18: Opex | F18: =-'Inputs - forecast'!F16 -> -102 | G18: =-'Inputs - forecast'!G16 -> -104.04 | H18: =-'Inputs - forecast'!H16 -> -106.1208 | I18: =-'Inputs - forecast'!I16 -> -108.243216 | J18: =-'Inputs - forecast'!J16 -> -110.4080803 | K18: =-'Inputs - forecast'!K16 -> -130.1807194 | L18: =-'Inputs - forecast'!L16 -> -132.7843338 | M18: =-'Inputs - forecast'!M16 -> -135.4400204 | N18: =-'Inputs - forecast'!N16 -> -138.1488208 | O18: =-'Inputs - forecast'!O16 -> -140.9117973
B19: Depreciation | F19: =F41 -> -306 | G19: =G41 -> -335.24 | H19: -368.475 | I19: -406.7711331 | J19: -451.7092492 | K19: -584.6767388 | L19: -629.5663571 | M19: -687.3043577 | N19: -770.1248553 | O19: -926.4391496
B20: Net revenue | F20: =SUM(F13:F19) -> 30.8504331 | G20: 16.69222843 | H20: 0.5571292615 | I20: -18.18751023 | J20: -40.51197 | K20: 43.4932434 | L20: 34.09705093 | M20: 17.18547899 | N20: -15.6852588 | O20: -98.82113547
B21: Present value | F21: =F20/'Inputs - forecast'!F$36 -> 29.05484375 | G21: =G20/'Inputs - forecast'!G$36 -> 14.80569768 | H21: =H20/'Inputs - forecast'!H$36 -> 0.4654015293 | I21: =I20/'Inputs - forecast'!I$36 -> -14.3087721 | J21: =J20/'Inputs - forecast'!J$36 -> -30.01717087 | K21: =K20/'Inputs - forecast'!K$36 -> 30.35047339 | L21: =L20/'Inputs - forecast'!L$36 -> 22.40875721 | M21: =M20/'Inputs - forecast'!M$36 -> 10.63701749 | N21: =N20/'Inputs - forecast'!N$36 -> -9.143389059 | O21: =O20/'Inputs - forecast'!O$36 -> -54.25285903
B22: Sum of present values | F22: =F16/F39-1 -> 0 | O22: =SUM(F21:O21) -> -2.145839062e-12
F23: =-(F14+F15)/SUM(F38:F39) -> 0.06058823529
A24: Regulatory cashflows
B25: Revenue | F25: =F13 -> 603.4311571 | G25: =G13 -> 615.4997802 | H25: 627.8097758 | I25: 640.3659713 | J25: 653.1732908 | K25: 967.5871891 | L25: 986.9389329 | M25: 1006.677712 | N25: 1026.811266 | O25: 1047.347491
B26: Opex | F26: =-'Inputs - forecast'!F$16 -> -102 | G26: =-'Inputs - forecast'!G$16 -> -104.04 | H26: =-'Inputs - forecast'!H$16 -> -106.1208 | I26: =-'Inputs - forecast'!I$16 -> -108.243216 | J26: =-'Inputs - forecast'!J$16 -> -110.4080803 | K26: =-'Inputs - forecast'!K$16 -> -130.1807194 | L26: =-'Inputs - forecast'!L$16 -> -132.7843338 | M26: =-'Inputs - forecast'!M$16 -> -135.4400204 | N26: =-'Inputs - forecast'!N$16 -> -138.1488208 | O26: =-'Inputs - forecast'!O$16 -> -140.9117973
B27: Tax | F27: =F17 -> -39.18072398 | G27: =G17 -> -35.8831518 | H27: -31.85484656 | I27: -26.85164855 | J27: -20.50059815 | K27: -89.43507726 | L27: -87.29168632 | M27: -82.2498481 | N27: -71.10281131 | O27: -40.85184001
B28: Capex | F28: =-'Inputs - forecast'!F$17 -> -204 | G28: =-'Inputs - forecast'!G$17 -> -208.08 | H28: =-'Inputs - forecast'!H$17 -> -212.2416 | I28: =-'Inputs - forecast'!I$17 -> -216.486432 | J28: =-'Inputs - forecast'!J$17 -> -220.8161606 | K28: =-'Inputs - forecast'!K$17 -> -130.1807194 | L28: =-'Inputs - forecast'!L$17 -> -132.7843338 | M28: =-'Inputs - forecast'!M$17 -> -135.4400204 | N28: =-'Inputs - forecast'!N$17 -> -138.1488208 | O28: =-'Inputs - forecast'!O$17 -> 0
B29: Opening RAB | E29: =-'Inputs - forecast'!E$18 -> -3000
B30: Closing RAB | J30: =-(J44-J42) -> -386.7000384 | O30: =O42 -> 0
B31: Sum | E31: =SUM(E25:E30) -> -3000 | F31: =SUM(F25:F30) -> 258.2504331 | G31: 267.4966284 | H31: 277.5925293 | I31: 288.7846748 | J31: -85.25158679 | K31: 617.7906731 | L31: 634.078579 | M31: 653.5478226 | N31: 679.4108128 | O31: 865.5838538
B32: Present value | E32: =E31/'Inputs - forecast'!E$36 -> -3000 | F32: =F31/'Inputs - forecast'!F$36 -> 243.2194699 | G32: =G31/'Inputs - forecast'!G$36 -> 237.2645587 | H32: =H31/'Inputs - forecast'!H$36 -> 231.8887134 | I32: =I31/'Inputs - forecast'!I$36 -> 227.1973484 | J32: =J31/'Inputs - forecast'!J$36 -> -63.16679854 | K32: =K31/'Inputs - forecast'!K$36 -> 431.1069471 | L32: =L31/'Inputs - forecast'!L$36 -> 416.7197028 | M32: =M31/'Inputs - forecast'!M$36 -> 404.5159067 | N32: =N31/'Inputs - forecast'!N$36 -> 396.0481284 | O32: =O31/'Inputs - forecast'!O$36 -> 475.2060232
B33: Sum of present values | O33: =SUM(E32:O32) -> -3.296918294e-12
A35: Regulatory Asset Base
B36: Useful lives | F36: 10 | G36: =F36-1 -> 9 | H36: =G36-1 -> 8 | I36: 7 | J36: 6 | K36: 5 | L36: 4 | M36: 3 | N36: 2 | O36: 1
B38: Opening RAB | F38: =E42 -> 3000 | G38: =F42 -> 2958 | H38: 2890 | I38: 2791.5666 | J38: 2657.113231 | K38: =J44 -> 2866.062445 | L38: =K42 -> 2468.887675 | M38: =L42 -> 2021.483405 | N38: 1510.048736 | O38: 908.2736761
B39: Revaluation | F39: =F38*('Inputs - forecast'!F$5) -> 60 | G39: =G38*('Inputs - forecast'!G$5) -> 59.16 | H39: =H38*('Inputs - forecast'!H$5) -> 57.8 | I39: =I38*('Inputs - forecast'!I$5) -> 55.831332 | J39: =J38*('Inputs - forecast'!J$5) -> 53.14226462 | K39: =K38*('Inputs - forecast'!K$5) -> 57.32124891 | L39: =L38*('Inputs - forecast'!L$5) -> 49.3777535 | M39: =M38*('Inputs - forecast'!M$5) -> 40.4296681 | N39: =N38*('Inputs - forecast'!N$5) -> 30.20097472 | O39: =O38*('Inputs - forecast'!O$5) -> 18.16547352
B40: Capex | F40: =-F28 -> 204 | G40: =-G28 -> 208.08 | H40: 212.2416 | I40: 216.486432 | J40: 220.8161606 | K40: 130.1807194 | L40: 132.7843338 | M40: 135.4400204 | N40: 138.1488208 | O40: 0
B41: Depreciation | F41: =-SUM(F38:F39)/F36 -> -306 | G41: =-SUM(G38:G39)/G36 -> -335.24 | H41: -368.475 | I41: -406.7711331 | J41: -451.7092492 | K41: -584.6767388 | L41: -629.5663571 | M41: -687.3043577 | N41: -770.1248553 | O41: -926.4391496
B42: Closing RAB | E42: =-E29 -> 3000 | F42: =SUM(F38:F41) -> 2958 | G42: 2890 | H42: 2791.5666 | I42: 2657.113231 | J42: 2479.362407 | K42: 2468.887675 | L42: 2021.483405 | M42: 1510.048736 | N42: 908.2736761 | O42: 0
B44: RAB adjusted for actual inflation | J44: =J42/'Inputs - forecast'!J4*'Inputs - actual'!J5 -> 2866.062445 | Q44: Note
B45: Check to actual RAB | J45: =J125-J44 -> 0
A48: Tax asset base | F48: =F36 -> 10 | G48: 9 | H48: 8 | I48: 7 | J48: 6 | K48: 5 | L48: 4 | M48: 3 | N48: 2 | O48: 1
B49: Opening balance | F49: =E52 -> 3000 | G49: =F52 -> 2904 | H49: =G52 -> 2789.413333 | I49: 2652.978267 | J49: 2490.467803 | K49: 2296.205997 | L49: 1967.145517 | M49: 1608.143471 | N49: 1207.535668 | O49: 741.9166549
B50: Capex | F50: =-F28 -> 204 | G50: 208.08 | H50: 212.2416 | I50: 216.486432 | J50: 220.8161606 | K50: 130.1807194 | L50: 132.7843338 | M50: 135.4400204 | N50: 138.1488208 | O50: 0
B51: Depreciation | F51: =-F49/F48 -> -300 | G51: =-G49/G48 -> -322.6666667 | H51: -348.6766667 | I51: -378.9968952 | J51: -415.0779672 | K51: -459.2411994 | L51: -491.7863792 | M51: -536.0478238 | N51: -603.767834 | O51: -741.9166549
B52: Closing balance | E52: =E42 -> 3000 | F52: =SUM(F49:F51) -> 2904 | G52: =SUM(G49:G51) -> 2789.413333 | H52: =SUM(H49:H51) -> 2652.978267 | I52: 2490.467803 | J52: 2296.205997 | K52: 1967.145517 | L52: 1608.143471 | M52: 1207.535668 | N52: 741.9166549 | O52: 0
A54: Regulatory tax
B55: Revenue | F55: =F13 -> 603.4311571 | G55: =G13 -> 615.4997802 | H55: 627.8097758 | I55: 640.3659713 | J55: 653.1732908 | K55: 967.5871891 | L55: 986.9389329 | M55: 1006.677712 | N55: 1026.811266 | O55: 1047.347491
B56: Depreciation | F56: =F51 -> -300 | G56: -322.6666667 | H56: -348.6766667 | I56: -378.9968952 | J56: -415.0779672 | K56: -459.2411994 | L56: -491.7863792 | M56: -536.0478238 | N56: -603.767834 | O56: -741.9166549
B57: Opex | F57: =F18 -> -102 | G57: =G18 -> -104.04 | H57: -106.1208 | I57: -108.243216 | J57: -110.4080803 | K57: -130.1807194 | L57: -132.7843338 | M57: -135.4400204 | N57: -138.1488208 | O57: -140.9117973
B58: Notional interest | F58: =-'Inputs - forecast'!F$26*'Inputs - forecast'!F28*F38 -> -61.5 | G58: =-'Inputs - forecast'!G$26*'Inputs - forecast'!G28*G38 -> -60.639 | H58: =-'Inputs - forecast'!H$26*'Inputs - forecast'!H28*H38 -> -59.245 | I58: =-'Inputs - forecast'!I$26*'Inputs - forecast'!I28*I38 -> -57.2271153 | J58: =-'Inputs - forecast'!J$26*'Inputs - forecast'!J28*J38 -> -54.47082123 | K58: =-'Inputs - forecast'!K$26*'Inputs - forecast'!K28*K38 -> -58.75428013 | L58: =-'Inputs - forecast'!L$26*'Inputs - forecast'!L28*L38 -> -50.61219733 | M58: =-'Inputs - forecast'!M$26*'Inputs - forecast'!M28*M38 -> -41.4404098 | N58: =-'Inputs - forecast'!N$26*'Inputs - forecast'!N28*N38 -> -30.95599908 | O58: =-'Inputs - forecast'!O$26*'Inputs - forecast'!O28*O38 -> -18.61961036
B59: EBT | F59: =SUM(F55:F58) -> 139.9311571 | G59: =SUM(G55:G58) -> 128.1541136 | H59: 113.7673092 | I59: 95.8987448 | J59: 73.21642198 | K59: 319.4109902 | L59: 311.7560226 | M59: 293.7494575 | N59: 253.9386118 | O59: 145.8994286
B60: Calculated tax | F60: =-F59*'Inputs - forecast'!F29 -> -39.18072398 | G60: =-G59*'Inputs - forecast'!G29 -> -35.8831518 | H60: =-H59*'Inputs - forecast'!H29 -> -31.85484656 | I60: =-I59*'Inputs - forecast'!I29 -> -26.85164855 | J60: =-J59*'Inputs - forecast'!J29 -> -20.50059815 | K60: =-K59*'Inputs - forecast'!K29 -> -89.43507726 | L60: =-L59*'Inputs - forecast'!L29 -> -87.29168632 | M60: =-M59*'Inputs - forecast'!M29 -> -82.2498481 | N60: =-N59*'Inputs - forecast'!N29 -> -71.10281131 | O60: =-O59*'Inputs - forecast'!O29 -> -40.85184001
B61: Deferred tax | F61: =IF(F60>0,F60,0) -> 0 | G61: =IF(G60>0,G60,0) -> 0 | H61: =IF(H60>0,H60,0) -> 0 | I61: =IF(I60>0,I60,0) -> 0 | J61: =IF(J60>0,J60,0) -> 0 | K61: 0 | L61: 0 | M61: 0 | N61: 0 | O61: 0
B62: Tax | F62: =IF(F61>0,0,F60+E61) -> -39.18072398 | G62: -35.8831518 | H62: -31.85484656 | I62: -26.85164855 | J62: -20.50059815 | K62: -89.43507726 | L62: -87.29168632 | M62: -82.2498481 | N62: -71.10281131 | O62: -40.85184001
A64: Reg Period 1
A65: Calculation of revenue | K65: Sum
B66: Present value of revenue | F66: =F13/'Inputs - forecast'!F$36 -> 568.3096224 | G66: =G13/'Inputs - forecast'!G$36 -> 545.9369136 | H66: =H13/'Inputs - forecast'!H$36 -> 524.4449537 | I66: =I13/'Inputs - forecast'!I$36 -> 503.7990703 | J66: =J13/'Inputs - forecast'!J$36 -> 483.9659556 | K66: =SUM(F66:J66) -> 2626.456516
B67: Present value of cost | F67: =SUM(F14:F19)/'Inputs - forecast'!F$36 -> -539.2547787 | G67: =SUM(G14:G19)/'Inputs - forecast'!G$36 -> -531.1312159 | H67: =SUM(H14:H19)/'Inputs - forecast'!H$36 -> -523.9795522 | I67: =SUM(I14:I19)/'Inputs - forecast'!I$36 -> -518.1078424 | J67: =SUM(J14:J19)/'Inputs - forecast'!J$36 -> -513.9831265 | K67: =SUM(F67:J67) -> -2626.456516
B68: Difference | K68: =SUM(K66:K67) -> 0
B69: Revenue | K69: 603.4311571
A71: Reg Period 2
A72: Calculation of revenue | P72: Sum
B73: Present value of revenue | K73: =K13/'Inputs - forecast'!K$36 -> 675.2020989 | L73: =L13/'Inputs - forecast'!L$36 -> 648.6213419 | M73: =M13/'Inputs - forecast'!M$36 -> 623.0869926 | N73: =N13/'Inputs - forecast'!N$36 -> 598.5578569 | O73: =O13/'Inputs - forecast'!O$36 -> 574.9943624 | P73: =SUM(K73:O73) -> 3120.462653
B74: Present value of cost | K74: =SUM(K14:K19)/'Inputs - forecast'!K$36 -> -644.8516255 | L74: =SUM(L14:L19)/'Inputs - forecast'!L$36 -> -626.2125847 | M74: =SUM(M14:M19)/'Inputs - forecast'!M$36 -> -612.4499751 | N74: =SUM(N14:N19)/'Inputs - forecast'!N$36 -> -607.701246 | O74: =SUM(O14:O19)/'Inputs - forecast'!O$36 -> -629.2472215 | P74: =SUM(K74:O74) -> -3120.462653
B75: Difference | P75: =SUM(P73:P74) -> 0
B76: Revenue | P76: 967.5871891
A78: Actual | D78: =D11 -> Return over forecast period | E78: =E11 -> 2020-06-30 | F78: 2021-06-30 | G78: 2022-06-30 | H78: 2023-06-30 | I78: 2024-06-30 | J78: 2025-06-30 | K78: 2026-06-30 | L78: 2027-06-30 | M78: 2028-06-30 | N78: 2029-06-30 | O78: 2030-06-30
A79: Actual regulatory cashflows
B80: Revenue (no delay in wash-ups) | F80: =F$13/'Inputs - forecast'!F$7*'Inputs - actual'!F$5+F109 -> 583.1938382 | G80: =G$13/'Inputs - forecast'!G$7*'Inputs - actual'!G$5+G109 -> 613.6830154 | H80: =H$13/'Inputs - forecast'!H$7*'Inputs - actual'!H$5+H109 -> 646.0733389 | I80: =I$13/'Inputs - forecast'!I$7*'Inputs - actual'!I$5+I109 -> 680.5349267 | J80: =J$13/'Inputs - forecast'!J$7*'Inputs - actual'!J$5+J109 -> 717.2672172 | K80: =K$13/'Inputs - forecast'!K$7*'Inputs - actual'!K$5+K109 -> 959.7562275 | L80: =L$13/'Inputs - forecast'!L$7*'Inputs - actual'!L$5+L109 -> 1013.668017 | M80: =M$13/'Inputs - forecast'!M$7*'Inputs - actual'!M$5+M109 -> 1071.017004 | N80: =N$13/'Inputs - forecast'!N$7*'Inputs - actual'!N$5+N109 -> 1132.190293 | O80: =O$13/'Inputs - forecast'!O$7*'Inputs - actual'!O$5+O109 -> 1197.785497 | Q80: Note
B81: Opex | F81: =F$18/'Inputs - forecast'!F$7*'Inputs - actual'!F$5 -> -105 | G81: =G$18/'Inputs - forecast'!G$7*'Inputs - actual'!G$5 -> -110.25 | H81: =H$18/'Inputs - forecast'!H$7*'Inputs - actual'!H$5 -> -115.7625 | I81: =I$18/'Inputs - forecast'!I$7*'Inputs - actual'!I$5 -> -121.550625 | J81: =J$18/'Inputs - forecast'!J$7*'Inputs - actual'!J$5 -> -127.6281563 | K81: =K$18/'Inputs - forecast'!K$7*'Inputs - actual'!K$5 -> -134.0095641 | L81: =L$18/'Inputs - forecast'!L$7*'Inputs - actual'!L$5 -> -140.7100423 | M81: =M$18/'Inputs - forecast'!M$7*'Inputs - actual'!M$5 -> -147.7455444 | N81: =N$18/'Inputs - forecast'!N$7*'Inputs - actual'!N$5 -> -155.1328216 | O81: =O$18/'Inputs - forecast'!O$7*'Inputs - actual'!O$5 -> -162.8894627
B82: Capex | F82: =-F114 -> -210 | G82: =-G114 -> -220.5 | H82: -231.525 | I82: -243.10125 | J82: -255.2563125 | K82: -134.0095641 | L82: -140.7100423 | M82: -147.7455444 | N82: -155.1328216 | O82: 0
B83: Tax | F83: =F136+F144 -> -40.33309822 | G83: -38.02496622 | H83: -34.74904708 | I83: -30.15278725 | J83: -23.69802588 | K83: -92.06552071 | L83: -92.50200324 | M83: -89.72273146 | N83: -79.84418307 | O83: -47.22340072
B84: Other | F84: =-NPV('Inputs - actual'!F34,F99:O99) -> 4.003979832 | Q84: Note
B85: Nominal IRR | D85: =IRR(E85:O85,0.08) -> 0.08035059746 | E85: =-E42+SUM(E80:E83) -> -3000 | F85: =SUM(F80:F84) -> 231.8647198 | G85: =SUM(G80:G84) -> 244.9080492 | H85: 264.0367919 | I85: 285.7302645 | J85: 310.6847225 | K85: 599.6715787 | L85: 639.7459293 | M85: 685.8031842 | N85: 742.0804672 | O85: 987.6726332
B87: Real IRR | D87: =IRR(E87:O87,0.08) -> 0.04096396414 | E87: =E85 -> -3000 | F87: =F85/'Inputs - actual'!F$39 -> 223.4115651 | G87: =G85/'Inputs - actual'!G$39 -> 227.3762067 | H87: =H85/'Inputs - actual'!H$39 -> 236.1986355 | I87: =I85/'Inputs - actual'!I$39 -> 246.2862461 | J87: =J85/'Inputs - actual'!J$39 -> 258.0327275 | K87: =K85/'Inputs - actual'!K$39 -> 479.8873922 | L87: =L85/'Inputs - actual'!L$39 -> 493.2923543 | M87: =M85/'Inputs - actual'!M$39 -> 509.527149 | N87: =N85/'Inputs - actual'!N$39 -> 531.23883 | O87: =O85/'Inputs - actual'!O$39 -> 681.2755618
B88: check to inputs | D88: =D87-'Inputs - actual'!P24 -> -1.642801435e-05
A90: Actual return (building blocks)
B91: Revenue | F91: =F80 -> 583.1938382 | G91: 613.6830154 | H91: 646.0733389 | I91: 680.5349267 | J91: 717.2672172 | K91: 959.7562275 | L91: 1013.668017 | M91: 1071.017004 | N91: 1132.190293 | O91: 1197.785497
B92: Opex | F92: =F81 -> -105 | G92: -110.25 | H92: -115.7625 | I92: -121.550625 | J92: -127.6281563 | K92: -134.0095641 | L92: -140.7100423 | M92: -147.7455444 | N92: -155.1328216 | O92: -162.8894627
B93: Return on debt (fixed) | F93: =-F121*'Inputs - forecast'!F$26*('Inputs - actual'!F$20) -> -61.5 | G93: =-G121*'Inputs - forecast'!G$26*('Inputs - actual'!G$20) -> -62.4225 | H93: =-H121*'Inputs - forecast'!H$26*('Inputs - actual'!H$20) -> -62.78125 | I93: =-I121*'Inputs - forecast'!I$26*('Inputs - actual'!I$20) -> -62.42653594 | J93: =-J121*'Inputs - forecast'!J$26*('Inputs - actual'!J$20) -> -61.16745797 | K93: =-K121*'Inputs - forecast'!K$26*('Inputs - actual'!K$20) -> -58.75428013 | L93: =-L121*'Inputs - forecast'!L$26*('Inputs - actual'!L$20) -> -52.10079137 | M93: =-M121*'Inputs - forecast'!M$26*('Inputs - actual'!M$20) -> -43.91392907 | N93: =-N121*'Inputs - forecast'!N$26*('Inputs - actual'!N$20) -> -33.76853401 | O93: =-O121*'Inputs - forecast'!O$26*('Inputs - actual'!O$20) -> -20.9087032
B94: Return on equity | F94: =-F121*'Inputs - actual'!F$18*(1-'Inputs - actual'!F$20) -> -179.6029412 | G94: =-G121*'Inputs - actual'!G$18*(1-'Inputs - actual'!G$20) -> -182.2969853 | H94: =-H121*'Inputs - actual'!H$18*(1-'Inputs - actual'!H$20) -> -183.3446691 | I94: =-I121*'Inputs - actual'!I$18*(1-'Inputs - actual'!I$20) -> -182.3087717 | J94: =-J121*'Inputs - actual'!J$18*(1-'Inputs - actual'!J$20) -> -178.6317944 | K94: =-K121*'Inputs - actual'!K$18*(1-'Inputs - actual'!K$20) -> -171.5844149 | L94: =-L121*'Inputs - actual'!L$18*(1-'Inputs - actual'!L$20) -> -152.1537458 | M94: =-M121*'Inputs - actual'!M$18*(1-'Inputs - actual'!M$20) -> -128.245054 | N94: =-N121*'Inputs - actual'!N$18*(1-'Inputs - actual'!N$20) -> -98.61671589 | O94: =-O121*'Inputs - actual'!O$18*(1-'Inputs - actual'!O$20) -> -61.06121285
B95: Revaluation | F95: =F122 -> 150 | G95: =G122 -> 152.25 | H95: 153.125 | I95: 152.2598438 | J95: 149.1889219 | K95: 143.3031223 | L95: 127.0751009 | M95: 107.1071441 | N95: 82.36227807 | O95: 50.99683707
B96: Depreciation | F96: =F124 -> -315 | G96: =G124 -> -355.25 | H96: -401.953125 | I96: -456.7795313 | J96: -522.1612266 | K96: -601.8731135 | L96: -667.1442798 | M96: -749.7500085 | N96: -864.8039198 | O96: -1070.933578
B97: Tax | F97: =F136+F144 -> -40.33309822 | G97: -38.02496622 | H97: -34.74904708 | I97: -30.15278725 | J97: -23.69802588 | K97: -92.06552071 | L97: -92.50200324 | M97: -89.72273146 | N97: -79.84418307 | O97: -47.22340072
B98: Gain on RAB | J98: =J84 -> 0
B99: Nominal return | F99: =SUM(F91:F97) -> 31.75779878 | G99: 17.68856386 | H99: 0.6077477378 | I99: -20.42348072 | J99: -46.83052203 | K99: 44.77245644 | L99: 36.13225553 | M99: 18.74688103 | N99: -17.61360278 | O99: -114.2340242
B100: Present value | D100: =SUM(E100:O100) -> -3.900879619e-12 | F100: =F99/'Inputs - actual'!F$28 -> 29.05484375 | G100: =G99/'Inputs - actual'!G$28 -> 14.80569768 | H100: =H99/'Inputs - actual'!H$28 -> 0.4654015293 | I100: =I99/'Inputs - actual'!I$28 -> -14.3087721 | J100: =J99/'Inputs - actual'!J$28 -> -30.01717087 | K100: =K99/'Inputs - actual'!K$28 -> 26.25547216 | L100: =L99/'Inputs - actual'!L$28 -> 19.38528252 | M100: =M99/'Inputs - actual'!M$28 -> 9.201830659 | N100: =N99/'Inputs - actual'!N$28 -> -7.909728255 | O100: =O99/'Inputs - actual'!O$28 -> -46.93285708
B102: Real return | F102: =F99/'Inputs - actual'!F$5 -> 30.24552264 | G102: =G99/'Inputs - actual'!G$5 -> 16.04404885 | H102: =H99/'Inputs - actual'!H$5 -> 0.5249953464 | I102: =I99/'Inputs - actual'!I$5 -> -16.80244813 | J102: =J99/'Inputs - actual'!J$5 -> -36.6929394 | K102: =K99/'Inputs - actual'!K$5 -> 33.40989634 | L102: =L99/'Inputs - actual'!L$5 -> 25.67851942 | M102: =M99/'Inputs - actual'!M$5 -> 12.68862699 | N102: =N99/'Inputs - actual'!N$5 -> -11.3538854 | O102: =O99/'Inputs - actual'!O$5 -> -70.12978146
B103: Present value | D103: =SUM(E103:O103) -> -3.87245791e-12 | F103: =F102/'Inputs - actual'!F$32 -> 29.05484375 | G103: =G102/'Inputs - actual'!G$32 -> 14.80569768 | H103: =H102/'Inputs - actual'!H$32 -> 0.4654015293 | I103: =I102/'Inputs - actual'!I$32 -> -14.3087721 | J103: =J102/'Inputs - actual'!J$32 -> -30.01717087 | K103: =K102/'Inputs - actual'!K$32 -> 26.25547216 | L103: =L102/'Inputs - actual'!L$32 -> 19.38528252 | M103: =M102/'Inputs - actual'!M$32 -> 9.201830659 | N103: =N102/'Inputs - actual'!N$32 -> -7.909728255 | O103: =O102/'Inputs - actual'!O$32 -> -46.93285708
B105: Actual return on RAB | F105: =-(F93+F94)/F121 -> 0.08036764706 | G105: =-(G93+G94)/G121 -> 0.08036764706 | H105: 0.08036764706 | I105: 0.08036764706 | J105: 0.08036764706 | K105: 0.08036764706 | L105: 0.08036764706 | M105: 0.08036764706 | N105: 0.08036764706 | O105: 0.08036764706
B106: Actual Rab revaluation | F106: =F95/F121 -> 0.05 | G106: 0.05 | H106: 0.05 | I106: 0.05 | J106: 0.05 | K106: 0.05 | L106: 0.05 | M106: 0.05 | N106: 0.05 | O106: 0.05
B107: Annual change in revenue | G107: =G91/F91-1 -> 0.05227966279 | H107: =H91/G91-1 -> 0.05278021837 | I107: 0.05334005551 | J107: 0.05397561391 | K107: 0.3380734607 | L107: 0.05617237795 | M107: 0.05657570954 | N107: 0.05711701014 | O107: 0.05793655317
A109: Adjustment for fixed cost of debt | F109: =-(F121*'Inputs - actual'!F$19*'Inputs - actual'!F$20+F93) -> -37.98529412 | G109: =-(G121*'Inputs - actual'!G$19*'Inputs - actual'!G$20+G93) -> -38.55507353 | H109: =-(H121*'Inputs - actual'!H$19*'Inputs - actual'!H$20+H93) -> -38.77665441 | I109: =-(I121*'Inputs - actual'!I$19*'Inputs - actual'!I$20+I93) -> -38.55756631 | J109: =-(J121*'Inputs - actual'!J$19*'Inputs - actual'!J$20+J93) -> -37.77990051 | K109: =-(K121*'Inputs - actual'!K$19*'Inputs - actual'!K$20+K93) -> -36.28940831 | L109: =-(L121*'Inputs - actual'!L$19*'Inputs - actual'!L$20+L93) -> -32.17990055 | M109: =-(M121*'Inputs - actual'!M$19*'Inputs - actual'!M$20+M93) -> -27.12330913 | N109: =-(N121*'Inputs - actual'!N$19*'Inputs - actual'!N$20+N93) -> -20.85703571 | O109: =-(O121*'Inputs - actual'!O$19*'Inputs - actual'!O$20+O93) -> -12.91419903
F111: =F121*'Inputs - actual'!F$19*'Inputs - actual'!F$20 -> 99.48529412 | G111: =F111/-F93 -> 1.617647059 | H111: =1*5/3 -> 1.666666667
A112: Actual Asset Base
B113: Opening Asset Base | F113: =E42 -> 3000 | G113: =F116 -> 2910 | H113: 2807.166667 | I113: 2687.795833 | J113: 2546.92625 | K113: 2377.694854 | L113: 2036.165447 | M113: 1667.834128 | N113: 1259.634963 | O113: 784.9503031
B114: Capex | F114: =F$40/'Inputs - forecast'!F$4*'Inputs - actual'!F$5 -> 210 | G114: =G$40/'Inputs - forecast'!G$4*'Inputs - actual'!G$5 -> 220.5 | H114: =H$40/'Inputs - forecast'!H$4*'Inputs - actual'!H$5 -> 231.525 | I114: =I$40/'Inputs - forecast'!I$4*'Inputs - actual'!I$5 -> 243.10125 | J114: =J$40/'Inputs - forecast'!J$4*'Inputs - actual'!J$5 -> 255.2563125 | K114: =K$40/'Inputs - forecast'!K$7*'Inputs - actual'!K$5 -> 134.0095641 | L114: =L$40/'Inputs - forecast'!L$7*'Inputs - actual'!L$5 -> 140.7100423 | M114: =M$40/'Inputs - forecast'!M$7*'Inputs - actual'!M$5 -> 147.7455444 | N114: =N$40/'Inputs - forecast'!N$7*'Inputs - actual'!N$5 -> 155.1328216 | O114: =O$40/'Inputs - forecast'!O$7*'Inputs - actual'!O$5 -> 0
B115: Depreciation | F115: =-F113/F36 -> -300 | G115: -323.3333333 | H115: -350.8958333 | I115: -383.9708333 | J115: -424.4877083 | K115: -475.5389708 | L115: -509.0413618 | M115: -555.9447093 | N115: -629.8174815 | O115: -784.9503031
B116: Closing Asset Base | F116: =SUM(F113:F115) -> 2910 | G116: 2807.166667 | H116: 2687.795833 | I116: 2546.92625 | J116: 2377.694854 | K116: 2036.165447 | L116: 1667.834128 | M116: 1259.634963 | N116: 784.9503031 | O116: 0
A118: Actual RAB
B119: Useful lives | F119: =F36 -> 10 | G119: =G36 -> 9 | H119: 8 | I119: 7 | J119: 6 | K119: 5 | L119: 4 | M119: 3 | N119: 2 | O119: 1
B121: Opening RAB | F121: =E125 -> 3000 | G121: =F125 -> 3045 | H121: 3062.5 | I121: 3045.196875 | J121: 2983.778438 | K121: 2866.062445 | L121: 2541.502018 | M121: 2142.142882 | N121: 1647.245561 | O121: 1019.936741
B122: Revaluation | F122: =F121*'Inputs - actual'!F4 -> 150 | G122: =G121*'Inputs - actual'!G4 -> 152.25 | H122: =H121*'Inputs - actual'!H4 -> 153.125 | I122: =I121*'Inputs - actual'!I4 -> 152.2598438 | J122: =J121*'Inputs - actual'!J4 -> 149.1889219 | K122: =K121*'Inputs - actual'!K4 -> 143.3031223 | L122: =L121*'Inputs - actual'!L4 -> 127.0751009 | M122: =M121*'Inputs - actual'!M4 -> 107.1071441 | N122: =N121*'Inputs - actual'!N4 -> 82.36227807 | O122: =O121*'Inputs - actual'!O4 -> 50.99683707
B123: Capex | F123: =F114 -> 210 | G123: =G114 -> 220.5 | H123: 231.525 | I123: 243.10125 | J123: 255.2563125 | K123: 134.0095641 | L123: 140.7100423 | M123: 147.7455444 | N123: 155.1328216 | O123: 0
B124: Depreciation | F124: =-SUM(F121:F122)/F119 -> -315 | G124: =-SUM(G121:G122)/G119 -> -355.25 | H124: -401.953125 | I124: -456.7795313 | J124: -522.1612266 | K124: -601.8731135 | L124: -667.1442798 | M124: -749.7500085 | N124: -864.8039198 | O124: -1070.933578
B125: Closing RAB | E125: =-E29 -> 3000 | F125: =SUM(F121:F124) -> 3045 | G125: 3062.5 | H125: 3045.196875 | I125: 2983.778438 | J125: 2866.062445 | K125: 2541.502018 | L125: 2142.142882 | M125: 1647.245561 | N125: 1019.936741 | O125: 0
A128: Actual tax
B129: Revenue | F129: =F91 -> 583.1938382 | G129: 613.6830154 | H129: 646.0733389 | I129: 680.5349267 | J129: 717.2672172 | K129: 959.7562275 | L129: 1013.668017 | M129: 1071.017004 | N129: 1132.190293 | O129: 1197.785497
B130: Depreciation | F130: =F115 -> -300 | G130: -323.3333333 | H130: -350.8958333 | I130: -383.9708333 | J130: -424.4877083 | K130: -475.5389708 | L130: -509.0413618 | M130: -555.9447093 | N130: -629.8174815 | O130: -784.9503031
B131: Opex | F131: =F92 -> -105 | G131: -110.25 | H131: -115.7625 | I131: -121.550625 | J131: -127.6281563 | K131: -134.0095641 | L131: -140.7100423 | M131: -147.7455444 | N131: -155.1328216 | O131: -162.8894627
B132: Interest | F132: =F93 -> -61.5 | G132: -62.4225 | H132: -62.78125 | I132: -62.42653594 | J132: -61.16745797 | K132: -58.75428013 | L132: -52.10079137 | M132: -43.91392907 | N132: -33.76853401 | O132: -20.9087032
B133: EBT | F133: =SUM(F129:F132) -> 116.6938382 | G133: =SUM(G129:G132) -> 117.677182 | H133: 116.6337556 | I133: 112.5869324 | J133: 103.9838946 | K133: 291.4534125 | L133: 311.8158216 | M133: 323.4128217 | N133: 313.4714564 | O133: 229.0370277
B134: Calculated tax | F134: =-F133*'Inputs - forecast'!F29 -> -32.67427469 | G134: =-G133*'Inputs - forecast'!G29 -> -32.94961097 | H134: =-H133*'Inputs - forecast'!H29 -> -32.65745157 | I134: =-I133*'Inputs - forecast'!I29 -> -31.52434108 | J134: =-J133*'Inputs - forecast'!J29 -> -29.11549049 | K134: =-K133*'Inputs - forecast'!K29 -> -81.6069555 | L134: =-L133*'Inputs - forecast'!L29 -> -87.30843005 | M134: =-M133*'Inputs - forecast'!M29 -> -90.55559006 | N134: =-N133*'Inputs - forecast'!N29 -> -87.77200779 | O134: =-O133*'Inputs - forecast'!O29 -> -64.13036775
B135: Deferred tax | F135: =IF(F134>0,F134+E135,0) -> 0 | G135: 0 | H135: 0 | I135: 0 | J135: 0 | K135: 0 | L135: 0 | M135: 0 | N135: 0 | O135: 0
B136: Tax | F136: =IF(F135>0,0,F134+E135) -> -32.67427469 | G136: -32.94961097 | H136: -32.65745157 | I136: -31.52434108 | J136: -29.11549049 | K136: -81.6069555 | L136: -87.30843005 | M136: -90.55559006 | N136: -87.77200779 | O136: -64.13036775
A138: Tax adjustment | E138: NPV | Q138: Note
B139: Tax | F139: =F136 -> -32.67427469 | G139: -32.94961097 | H139: -32.65745157 | I139: -31.52434108 | J139: -29.11549049 | K139: -81.6069555 | L139: -87.30843005 | M139: -90.55559006 | N139: -87.77200779 | O139: -64.13036775
B140: NPV of actual tax | E140: =SUM(F140:O140) -> -328.1397873 | F140: =F139/'Inputs - actual'!F$28 -> -29.89331699 | G140: =G139/'Inputs - actual'!G$28 -> -27.5795131 | H140: =H139/'Inputs - actual'!H$28 -> -25.00844834 | I140: =I139/'Inputs - actual'!I$28 -> -22.08607916 | J140: =J139/'Inputs - actual'!J$28 -> -18.66228722 | K140: =K139/'Inputs - actual'!K$28 -> -47.85596589 | L140: =L139/'Inputs - actual'!L$28 -> -46.8417639 | M140: =M139/'Inputs - actual'!M$28 -> -44.44884479 | N140: =N139/'Inputs - actual'!N$28 -> -39.41571401 | O140: =O139/'Inputs - actual'!O$28 -> -26.34785394
B142: Forecast tax adjusted for inflation | F142: =F$17/'Inputs - forecast'!F$7*'Inputs - actual'!F$5 -> -40.33309822 | G142: =G$17/'Inputs - forecast'!G$7*'Inputs - actual'!G$5 -> -38.02496622 | H142: =H$17/'Inputs - forecast'!H$7*'Inputs - actual'!H$5 -> -34.74904708 | I142: =I$17/'Inputs - forecast'!I$7*'Inputs - actual'!I$5 -> -30.15278725 | J142: =J$17/'Inputs - forecast'!J$7*'Inputs - actual'!J$5 -> -23.69802588 | K142: =K$17/'Inputs - forecast'!K$7*'Inputs - actual'!K$5 -> -92.06552071 | L142: =L$17/'Inputs - forecast'!L$7*'Inputs - actual'!L$5 -> -92.50200324 | M142: =M$17/'Inputs - forecast'!M$7*'Inputs - actual'!M$5 -> -89.72273146 | N142: =N$17/'Inputs - forecast'!N$7*'Inputs - actual'!N$5 -> -79.84418307 | O142: =O$17/'Inputs - forecast'!O$7*'Inputs - actual'!O$5 -> -47.22340072
B143: NPV of forecast tax adjusted for inflation | E143: =SUM(F143:O143) -> -334.5676317 | F143: =F142/'Inputs - actual'!F$28 -> -36.90028629 | G143: =G142/'Inputs - actual'!G$28 -> -31.82769153 | H143: =H142/'Inputs - actual'!H$28 -> -26.61015195 | I143: =I142/'Inputs - actual'!I$28 -> -21.12516307 | J143: =J142/'Inputs - actual'!J$28 -> -15.1898305 | K143: =K142/'Inputs - actual'!K$28 -> -53.98907963 | L143: =L142/'Inputs - actual'!L$28 -> -49.62816298 | M143: =M142/'Inputs - actual'!M$28 -> -44.04003952 | N143: =N142/'Inputs - actual'!N$28 -> -35.85557132 | O143: =O142/'Inputs - actual'!O$28 -> -19.40165491
B144: Difference | E144: =E143-E140 -> -6.427844365 | F144: =F142-F139 -> -7.658823529 | G144: -5.075355248 | H144: -2.091595512 | I144: 1.371553834 | J144: 5.417464612 | K144: -10.45856521 | L144: -5.193573193 | M144: 0.8328586037 | N144: 7.927824727 | O144: 16.90696703
A146: Real revenue | F146: =F91/'Inputs - actual'!F$5 -> 555.422703 | G146: =G91/'Inputs - actual'!G$5 -> 556.6285854 | H146: =H91/'Inputs - actual'!H$5 -> 558.1024416 | I146: =I91/'Inputs - actual'!I$5 -> 559.8777684 | J146: =J91/'Inputs - actual'!J$5 -> 561.997633 | K146: =K91/'Inputs - actual'!K$5 -> 716.184874 | L146: =L91/'Inputs - actual'!L$5 -> 720.3949347 | M146: =M91/'Inputs - actual'!M$5 -> 724.906466 | N146: =N91/'Inputs - actual'!N$5 -> 729.819958 | O146: =O91/'Inputs - actual'!O$5 -> 735.3363913
A148: Wash-up account | E148: NPV | F148: =F78 -> 2021-06-30 | G148: 2022-06-30 | H148: 2023-06-30 | I148: 2024-06-30 | J148: 2025-06-30 | K148: 2026-06-30 | L148: 2027-06-30 | M148: 2028-06-30 | N148: 2029-06-30 | O148: 2030-06-30 | P148: =EOMONTH(O148, 12) -> 2031-06-30 | Q148: =EOMONTH(P148, 12) -> 2032-06-30 | R148: =Q148+365 -> 2033-06-30 | S148: =R148+366 -> 2034-07-01
B149: Wash-up drawdowns will usually have a 2 year delay from when the revenue is set to allow for actual CPI information to be released.
B151: Actual net allowable revenue | D151: ANAR | F151: =F91-F109 -> 621.1791323 | G151: 652.2380889 | H151: 684.8499933 | I151: 719.092493 | J151: 755.0471177 | K151: 996.0456358 | L151: 1045.847918 | M151: 1098.140314 | N151: 1153.047329 | O151: 1210.699696
B152: Forecast net allowable revenue | D152: FNAR | F152: =F13 -> 603.4311571 | G152: 615.4997802 | H152: 627.8097758 | I152: 640.3659713 | J152: 653.1732908 | K152: 967.5871891 | L152: 986.9389329 | M152: 1006.677712 | N152: 1026.811266 | O152: 1047.347491 | T152: Note
B153: Wash-up amount | F153: =F151-F152 -> 17.74797521 | G153: =G151-G152 -> 36.73830868 | H153: 57.04021752 | I153: 78.72652167 | J153: 101.8738269 | K153: 28.45844674 | L153: 58.90898475 | M153: 91.46260197 | N153: 126.2360634 | O153: 163.3522046
B155: Actual allowable revenue | D155: AAR | F155: =F151-F176 -> 621.1791323 | G155: 652.2380889 | H155: 696.2943318 | I155: 742.5649979 | J155: 791.2225201 | K155: 1045.715517 | L155: 1109.954355 | M155: 1079.821993 | N155: 1170.548147 | O155: 1267.724057
B156: Forecast allowable revenue | D156: FAR | F156: =F152-F176 -> 603.4311571 | G156: 615.4997802 | H156: 639.2541143 | I156: 663.8384762 | J156: 689.3486932 | K156: 1017.25707 | L156: 1051.04537 | M156: 988.3593907 | N156: 1044.312084 | O156: 1104.371853
B158: Actual revenue | D158: AR | F158: =F156 -> 603.4311571 | G158: =G156 -> 615.4997802 | H158: =H156 -> 639.2541143 | I158: =I156 -> 663.8384762 | J158: 689.3486932 | K158: 1017.25707 | L158: 1051.04537 | M158: 988.3593907 | N158: 1044.312084 | O158: 1104.371853 | T158: Note
B160: Cost of debt wash-up adjustment | D160: CODW | E160: =-NPV('Inputs - actual'!$F$34,F160:O160) -> 225.4447541 | F160: =F109 -> -37.98529412 | G160: -38.55507353 | H160: -38.77665441 | I160: -38.55756631 | J160: -37.77990051 | K160: -36.28940831 | L160: -32.17990055 | M160: -27.12330913 | N160: -20.85703571 | O160: -12.91419903
D161: Smoothing Y1 | F161: =F160/5 -> -7.597058824 | G161: =F161*(1+'Inputs - actual'!$F$34) -> -8.207616566 | H161: =G161*(1+'Inputs - actual'!$F$34) -> -8.867243397 | I161: =H161*(1+'Inputs - actual'!$F$34) -> -9.579882885 | J161: =I161*(1+'Inputs - actual'!$F$34) -> -10.34979553
D162: Smoothing Y2 | G162: =G160/5 -> -7.711014706 | H162: =G162*(1+'Inputs - actual'!$F$34) -> -8.330730814 | I162: =H162*(1+'Inputs - actual'!$F$34) -> -9.000252048 | J162: =I162*(1+'Inputs - actual'!$F$34) -> -9.723581128 | K162: =J162*(1+'Inputs - actual'!$F$34) -> -10.50504246
D163: Smoothing Y3 | H163: =H160/5 -> -7.755330882 | I163: =H163*(1+'Inputs - actual'!$F$34) -> -8.378608578 | J163: =I163*(1+'Inputs - actual'!$F$34) -> -9.051977635 | K163: =J163*(1+'Inputs - actual'!$F$34) -> -9.779463778 | L163: =K163*(1+'Inputs - actual'!$F$34) -> -10.56541627
D164: Smoothing Y4 | I164: =I160/5 -> -7.711513263 | J164: =I164*(1+'Inputs - actual'!$F$34) -> -8.331269439 | K164: =J164*(1+'Inputs - actual'!$F$34) -> -9.000833961 | L164: =K164*(1+'Inputs - actual'!$F$34) -> -9.724209808 | M164: =L164*(1+'Inputs - actual'!$F$34) -> -10.50572167
D165: Smoothing Y5 | J165: =J160/5 -> -7.555980102 | K165: =J165*(1+'Inputs - actual'!$F$34) -> -8.163236444 | L165: =K165*(1+'Inputs - actual'!$F$34) -> -8.819296549 | M165: =L165*(1+'Inputs - actual'!$F$34) -> -9.528082662 | N165: =M165*(1+'Inputs - actual'!$F$34) -> -10.29383225
D166: Smoothing Y6 | K166: =K160/5 -> -7.257881663 | L166: =K166*(1+'Inputs - actual'!$F$34) -> -7.841180535 | M166: =L166*(1+'Inputs - actual'!$F$34) -> -8.471357765 | N166: =M166*(1+'Inputs - actual'!$F$34) -> -9.152180856 | O166: =N166*(1+'Inputs - actual'!$F$34) -> -9.887720096
D167: Smoothing Y7 | L167: =L160/5 -> -6.435980111 | M167: =L167*(1+'Inputs - actual'!$F$34) -> -6.953224689 | N167: =M167*(1+'Inputs - actual'!$F$34) -> -7.512038996 | O167: =N167*(1+'Inputs - actual'!$F$34) -> -8.115763895 | P167: =O167*(1+'Inputs - actual'!$F$34) -> -8.768008743
D168: Smoothing Y8 | M168: =M160/5 -> -5.424661826 | N168: =M168*(1+'Inputs - actual'!$F$34) -> -5.860629134 | O168: =N168*(1+'Inputs - actual'!$F$34) -> -6.331634107 | P168: =O168*(1+'Inputs - actual'!$F$34) -> -6.840492643 | Q168: =P168*(1+'Inputs - actual'!$F$34) -> -7.390246941
D169: Smoothing Y9 | N169: =N160/5 -> -4.171407142 | O169: =N169*(1+'Inputs - actual'!$F$34) -> -4.506653319 | P169: =O169*(1+'Inputs - actual'!$F$34) -> -4.868842443 | Q169: =P169*(1+'Inputs - actual'!$F$34) -> -5.260139854 | R169: =Q169*(1+'Inputs - actual'!$F$34) -> -5.682884917
D170: Smoothing Y10 | O170: =O160/5 -> -2.582839807 | P170: =O170*(1+'Inputs - actual'!$F$34) -> -2.790416565 | Q170: =P170*(1+'Inputs - actual'!$F$34) -> -3.014675778 | R170: =Q170*(1+'Inputs - actual'!$F$34) -> -3.256958177 | S170: =R170*(1+'Inputs - actual'!$F$34) -> -3.518712243
D171: Total CODW | E171: =-NPV('Inputs - actual'!$F$34,F171:S171) -> 225.4447541 | F171: =SUM(F161:F170) -> -7.597058824 | G171: =SUM(G161:G170) -> -15.91863127 | H171: -24.95330509 | I171: -34.67025677 | J171: -45.01260384 | K171: -44.70645831 | L171: -43.38608327 | M171: -40.88304861 | N171: -36.99008837 | O171: -31.42461122 | P171: -23.26776039 | Q171: -15.66506257 | R171: -8.939843094 | S171: -3.518712243
E172: =E160-E171 -> 0
B173: Wash-up account balance | D173: WAB
B174: Wash-up account opening balance | D174: WABt-1 | F174: 0 | G174: =F177 -> 10.15091638 | H174: 31.59792043 | I174: 54.1932459 | J174: 78.12614852 | K174: 103.6401651 | L174: 44.12723507 | M174: -1.729237214 | N174: 67.06177015 | O174: 142.9513448 | P174: 226.6889696 | Q174: 140.0807186
B175: Wash-up accrual | D175: WA | F175: =F155-F158+F171 -> 10.15091638 | G175: =G155-G158+G171 -> 20.81967741 | H175: 32.08691243 | I175: 44.0562649 | J175: 56.86122306 | K175: -16.24801157 | L175: 15.52290147 | M175: 50.57955336 | N175: 89.24597504 | O175: 131.9275933
B176: Wash-up (draw-down)/ draw-up | D176: WD | F176: 0 | G176: 0 | H176: =-F175*(1+'Inputs - forecast'!H$31)^2 -> -11.44433844 | I176: =-G175*(1+'Inputs - forecast'!I$31)^2 -> -23.47250488 | J176: =-H175*(1+'Inputs - forecast'!J$31)^2 -> -36.17540242 | K176: =-I175*(1+'Inputs - forecast'!K$31)^2 -> -49.66988069 | L176: =-J175*(1+'Inputs - forecast'!L$31)^2 -> -64.10643689 | M176: =-K175*(1+'Inputs - forecast'!M$31)^2 -> 18.31832086 | N176: =-L175*(1+'Inputs - forecast'!N$31)^2 -> -17.50081778 | O176: =-M175*(1+'Inputs - forecast'!O$31)^2 -> -57.02436161 | P176: =-N175*(1+'Inputs - forecast'!P$31)^2 -> -100.6176294 | Q176: =-O175*(1+'Inputs - forecast'!Q$31)^2 -> -131.9275933 | T176: Note
B177: Wash-up account balance | D177: WABt | F177: =F174*(1+'Inputs - forecast'!F$31)+F175+F176 -> 10.15091638 | G177: =G174*(1+'Inputs - forecast'!G$31)+G175+G176 -> 31.59792043 | H177: =H174*(1+'Inputs - forecast'!H$31)+H175+H176 -> 54.1932459 | I177: =I174*(1+'Inputs - forecast'!I$31)+I175+I176 -> 78.12614852 | J177: =J174*(1+'Inputs - forecast'!J$31)+J175+J176 -> 103.6401651 | K177: =K174*(1+'Inputs - forecast'!K$31)+K175+K176 -> 44.12723507 | L177: =L174*(1+'Inputs - forecast'!L$31)+L175+L176 -> -1.729237214 | M177: =M174*(1+'Inputs - forecast'!M$31)+M175+M176 -> 67.06177015 | N177: =N174*(1+'Inputs - forecast'!N$31)+N175+N176 -> 142.9513448 | O177: =O174*(1+'Inputs - forecast'!O$31)+O175+O176 -> 226.6889696 | P177: =P174*(1+'Inputs - forecast'!P$31)+P175+P176 -> 140.0807186 | Q177: =Q174*(1+'Inputs - forecast'!Q$31)+Q175+Q176 -> 8.153125268
B179: Test NPV=0
B180: Confirm Net Present Value (NPV) of ANAR equal AR plus CODW plus the wash-up account balance remaining at end of model period
B181: Actual net allowable revenue | D181: ANAR | E181: =-NPV('Inputs - forecast'!$F$31,F181:O181) -> -6259.741636 | F181: =F151 -> 621.1791323 | G181: 652.2380889 | H181: 684.8499933 | I181: 719.092493 | J181: 755.0471177 | K181: 996.0456358 | L181: 1045.847918 | M181: 1098.140314 | N181: 1153.047329 | O181: 1210.699696
B182: Actual revenue | D182: AR | E182: =NPV('Inputs - forecast'!$F$31,F182:O182) -> 5908.711629 | F182: =F156 -> 603.4311571 | G182: 615.4997802 | H182: 639.2541143 | I182: 663.8384762 | J182: 689.3486932 | K182: 1017.25707 | L182: 1051.04537 | M182: 988.3593907 | N182: 1044.312084 | O182: 1104.371853
B183: Cost of debt wash-up adjustment | D183: CODW | E183: =-NPV('Inputs - forecast'!$F$31,F183:O183) -> 226.5776358 | F183: =F171 -> -7.597058824 | G183: -15.91863127 | H183: -24.95330509 | I183: -34.67025677 | J183: -45.01260384 | K183: -44.70645831 | L183: -43.38608327 | M183: -40.88304861 | N183: -36.99008837 | O183: -31.42461122
B184: Wash-up account balance | D184: WAB | E184: =NPV('Inputs - forecast'!$F$31,F184:O184) -> 124.452372 | F184: 0 | G184: 0 | H184: 0 | I184: 0 | J184: 0 | K184: 0 | L184: 0 | M184: 0 | N184: 0 | O184: =O177 -> 226.6889696
D185: NPV | E185: =SUM(E181:E184) -> -1.705302566e-13
B187: Actual revenue per model | E187: =-NPV('Inputs - forecast'!$F$31,F187:O187) -> -6016.541318 | F187: =F91 -> 583.1938382 | G187: 613.6830154 | H187: 646.0733389 | I187: 680.5349267 | J187: 717.2672172 | K187: 959.7562275 | L187: 1013.668017 | M187: 1071.017004 | N187: 1132.190293 | O187: 1197.785497
B188: Check to ANAR less CODW | F188: =F181-F187+F160 -> 0 | G188: 0 | H188: 0 | I188: -5.684341886e-14 | J188: 0 | K188: 0 | L188: 0 | M188: 6.394884622e-14 | N188: -7.815970093e-14 | O188: -1.776356839e-14
B190: FNAR + accrual | E190: =NPV('Inputs - forecast'!$F$31,F190:O190) -> 6033.164001 | F190: =F152+F175 -> 613.5820735 | G190: =G152+G175 -> 636.3194576 | H190: 659.8966883 | I190: 684.4222362 | J190: 710.0345138 | K190: 951.3391775 | L190: 1002.461834 | M190: 1057.257265 | N190: 1116.057241 | O190: 1179.275084 | T190: Note
B191: FNAR + draw-down | E191: =NPV('Inputs - forecast'!$F$31,F191:Q191) -> 5908.711629 | F191: =F152-F176 -> 603.4311571 | G191: =G152-G176 -> 615.4997802 | H191: 639.2541143 | I191: 663.8384762 | J191: 689.3486932 | K191: 1017.25707 | L191: 1051.04537 | M191: 988.3593907 | N191: 1044.312084 | O191: =O152-O176 -> 1104.371853 | T191: Note
B192: Closing WAB yet to receive | E192: =NPV('Inputs - forecast'!$F$31,F192:Q192) -> 124.452372 | F192: 0 | G192: 0 | H192: 0 | I192: 0 | J192: 0 | K192: 0 | L192: 0 | M192: 0 | N192: 0 | O192: =+O177 -> 226.6889696
D193: NPV | E193: =E190-E191-E192 -> -7.105427358e-13

Sheet 3 Hybrid RAB
A1: Calculation
A3: Analysis
A10: Calculation
A11: Forecast | D11: Return over forecast period | E11: ='Inputs - forecast'!E2 -> 2020-06-30 | F11: ='Inputs - forecast'!F2 -> 2021-06-30 | G11: ='Inputs - forecast'!G2 -> 2022-06-30 | H11: ='Inputs - forecast'!H2 -> 2023-06-30 | I11: ='Inputs - forecast'!I2 -> 2024-06-30 | J11: ='Inputs - forecast'!J2 -> 2025-06-30 | K11: ='Inputs - forecast'!K2 -> 2026-06-30 | L11: ='Inputs - forecast'!L2 -> 2027-06-30 | M11: ='Inputs - forecast'!M2 -> 2028-06-30 | N11: ='Inputs - forecast'!N2 -> 2029-06-30 | O11: ='Inputs - forecast'!O2 -> 2030-06-30
A12: Building blocks
B13: Revenue | F13: =K71 -> 621.8450708 | G13: =F13*(1+'Inputs - forecast'!G5) -> 634.2819723 | H13: =G13*(1+'Inputs - forecast'!H5) -> 646.9676117 | I13: =H13*(1+'Inputs - forecast'!I5) -> 659.9069639 | J13: =I13*(1+'Inputs - forecast'!J5) -> 673.1051032 | K13: =P78 -> 901.4898747 | L13: =K13*(1+'Inputs - forecast'!L5) -> 919.5196722 | M13: =L13*(1+'Inputs - forecast'!M5) -> 937.9100656 | N13: =M13*(1+'Inputs - forecast'!N5) -> 956.6682669 | O13: =N13*(1+'Inputs - forecast'!O5) -> 975.8016323
B14: Return on debt | F14: =-SUM(F$38)*'Inputs - forecast'!F$28*'Inputs - forecast'!F$26 -> -61.5 | G14: =-SUM(G$38)*'Inputs - forecast'!G$28*'Inputs - forecast'!G$26 -> -60.18513 | H14: =-SUM(H$38)*'Inputs - forecast'!H$28*'Inputs - forecast'!H$26 -> -58.39480847 | I14: =-SUM(I$38)*'Inputs - forecast'!I$28*'Inputs - forecast'!I$26 -> -56.04933661 | J14: =-SUM(J$38)*'Inputs - forecast'!J$28*'Inputs - forecast'!J$26 -> -53.04715939 | K14: =-SUM(K$38)*'Inputs - forecast'!K$28*'Inputs - forecast'!K$26 -> -54.43189384 | L14: =-SUM(L$38)*'Inputs - forecast'!L$28*'Inputs - forecast'!L$26 -> -46.67918067 | M14: =-SUM(M$38)*'Inputs - forecast'!M$28*'Inputs - forecast'!M$26 -> -38.1445751 | N14: =-SUM(N$38)*'Inputs - forecast'!N$28*'Inputs - forecast'!N$26 -> -28.50630781 | O14: =-SUM(O$38)*'Inputs - forecast'!O$28*'Inputs - forecast'!O$26 -> -17.25339195
B15: Return on equity | F15: =-SUM(F$38)*(1-'Inputs - forecast'!F$28)*'Inputs - forecast'!F$25 -> -123.9 | G15: =-SUM(G$38)*(1-'Inputs - forecast'!G$28)*'Inputs - forecast'!G$25 -> -121.251018 | H15: =-SUM(H$38)*(1-'Inputs - forecast'!H$28)*'Inputs - forecast'!H$25 -> -117.6441751 | I15: =-SUM(I$38)*(1-'Inputs - forecast'!I$28)*'Inputs - forecast'!I$25 -> -112.9189074 | J15: =-SUM(J$38)*(1-'Inputs - forecast'!J$28)*'Inputs - forecast'!J$25 -> -106.8706187 | K15: =-SUM(K$38)*(1-'Inputs - forecast'!K$28)*'Inputs - forecast'!K$25 -> -109.660352 | L15: =-SUM(L$38)*(1-'Inputs - forecast'!L$28)*'Inputs - forecast'!L$25 -> -94.04147131 | M15: =-SUM(M$38)*(1-'Inputs - forecast'!M$28)*'Inputs - forecast'!M$25 -> -76.84736349 | N15: =-SUM(N$38)*(1-'Inputs - forecast'!N$28)*'Inputs - forecast'!N$25 -> -57.42978109 | O15: =-SUM(O$38)*(1-'Inputs - forecast'!O$28)*'Inputs - forecast'!O$25 -> -34.75927256
B16: Revaluation | F16: =F39 -> 35.4 | G16: =G39 -> 34.643148 | H16: 33.61262146 | I16: 32.26254498 | J16: 30.53446248 | K16: 28.35127164 | L16: 26.8689918 | M16: 21.95638957 | N16: 16.40850888 | O16: 9.931220731
B17: Tax | F17: =F62 -> -44.33661984 | G17: =G62 -> -41.26924917 | H17: -37.45709424 | I17: -32.65290451 | J17: -26.48013096 | K17: -72.13809739 | L17: -69.51553799 | M17: -63.91774096 | N17: -52.1486852 | O17: -21.2015407
B18: Opex | F18: =-'Inputs - forecast'!F16 -> -102 | G18: =-'Inputs - forecast'!G16 -> -104.04 | H18: =-'Inputs - forecast'!H16 -> -106.1208 | I18: =-'Inputs - forecast'!I16 -> -108.243216 | J18: =-'Inputs - forecast'!J16 -> -110.4080803 | K18: =-'Inputs - forecast'!K16 -> -130.1807194 | L18: =-'Inputs - forecast'!L16 -> -132.7843338 | M18: =-'Inputs - forecast'!M16 -> -135.4400204 | N18: =-'Inputs - forecast'!N16 -> -138.1488208 | O18: =-'Inputs - forecast'!O16 -> -140.9117973
B19: Depreciation | F19: =F41 -> -303.54 | G19: =G41 -> -330.0559053 | H19: -360.267483 | I19: -395.1966466 | J19: -436.3667957 | K19: -536.7131211 | L19: -575.9755489 | M19: -627.55579 | N19: -703.4800546 | O19: -851.5600962
B20: Net revenue | F20: =SUM(F13:F19) -> 21.96845101 | G20: 12.12381776 | H20: 0.6958723202 | I20: -12.8915022 | J20: -29.5332193 | K20: 26.71696269 | L20: 27.3925914 | M20: 17.96096525 | N20: -6.636873738 | O20: -79.95324565
B21: Present value | F21: =F20/'Inputs - forecast'!F$36 -> 20.68982013 | G21: =G20/'Inputs - forecast'!G$36 -> 10.75360197 | H21: =H20/'Inputs - forecast'!H$36 -> 0.58130144 | I21: =I20/'Inputs - forecast'!I$36 -> -10.14221104 | J21: =J20/'Inputs - forecast'!J$36 -> -21.8825125 | K21: =K20/'Inputs - forecast'!K$36 -> 18.64364213 | L21: =L20/'Inputs - forecast'!L$36 -> 18.00255193 | M21: =M20/'Inputs - forecast'!M$36 -> 11.11700765 | N21: =N20/'Inputs - forecast'!N$36 -> -3.86882483 | O21: =O20/'Inputs - forecast'!O$36 -> -43.89437689
B22: Sum of present values | O22: =SUM(F21:O21) -> 4.831690603e-13
A24: Regulatory cashflows
B25: Revenue | F25: =F13 -> 621.8450708 | G25: =G13 -> 634.2819723 | H25: 646.9676117 | I25: 659.9069639 | J25: 673.1051032 | K25: 901.4898747 | L25: 919.5196722 | M25: 937.9100656 | N25: 956.6682669 | O25: 975.8016323
B26: Opex | F26: =-'Inputs - forecast'!F$16 -> -102 | G26: =-'Inputs - forecast'!G$16 -> -104.04 | H26: =-'Inputs - forecast'!H$16 -> -106.1208 | I26: =-'Inputs - forecast'!I$16 -> -108.243216 | J26: =-'Inputs - forecast'!J$16 -> -110.4080803 | K26: =-'Inputs - forecast'!K$16 -> -130.1807194 | L26: =-'Inputs - forecast'!L$16 -> -132.7843338 | M26: =-'Inputs - forecast'!M$16 -> -135.4400204 | N26: =-'Inputs - forecast'!N$16 -> -138.1488208 | O26: =-'Inputs - forecast'!O$16 -> -140.9117973
B27: Tax | F27: =F17 -> -44.33661984 | G27: =G17 -> -41.26924917 | H27: -37.45709424 | I27: -32.65290451 | J27: -26.48013096 | K27: -72.13809739 | L27: -69.51553799 | M27: -63.91774096 | N27: -52.1486852 | O27: -21.2015407
B28: Capex | F28: =-'Inputs - forecast'!F$17 -> -204 | G28: =-'Inputs - forecast'!G$17 -> -208.08 | H28: =-'Inputs - forecast'!H$17 -> -212.2416 | I28: =-'Inputs - forecast'!I$17 -> -216.486432 | J28: =-'Inputs - forecast'!J$17 -> -220.8161606 | K28: =-'Inputs - forecast'!K$17 -> -130.1807194 | L28: =-'Inputs - forecast'!L$17 -> -132.7843338 | M28: =-'Inputs - forecast'!M$17 -> -135.4400204 | N28: =-'Inputs - forecast'!N$17 -> -138.1488208 | O28: =-'Inputs - forecast'!O$17 -> 0
B29: Opening RAB | E29: =-'Inputs - forecast'!E$18 -> -3000
B30: Closing RAB | J30: =-(J45+J46-J42) -> -252.5641947 | O30: =O42 -> 0
B31: Sum | E31: =SUM(E25:E30) -> -3000 | F31: =SUM(F25:F30) -> 271.508451 | G31: 280.8927231 | H31: 291.1481175 | I31: 302.5244114 | J31: 62.83653662 | K31: 568.9903386 | L31: 584.4354667 | M31: 603.1122838 | N31: 628.2219401 | O31: 813.6882943
B32: Present value | E32: =E31/'Inputs - forecast'!E$36 -> -3000 | F32: =F31/'Inputs - forecast'!F$36 -> 255.7058307 | G32: =G31/'Inputs - forecast'!G$36 -> 249.1466467 | H32: =H31/'Inputs - forecast'!H$36 -> 243.2124616 | I32: =I31/'Inputs - forecast'!I$36 -> 238.0068961 | J32: =J31/'Inputs - forecast'!J$36 -> 46.558463 | K32: =K31/'Inputs - forecast'!K$36 -> 397.0530771 | L32: =L31/'Inputs - forecast'!L$36 -> 384.0939941 | M32: =M31/'Inputs - forecast'!M$36 -> 373.2986385 | N32: =N31/'Inputs - forecast'!N$36 -> 366.2086604 | O32: =O31/'Inputs - forecast'!O$36 -> 446.7153318
B33: Sum of present values | O33: =SUM(E32:O32) -> -9.094947018e-13
A35: Regulatory Asset Base
B36: Useful lives | F36: 10 | G36: =F36-1 -> 9 | H36: =G36-1 -> 8 | I36: 7 | J36: 6 | K36: 5 | L36: 4 | M36: 3 | N36: 2 | O36: 1
B38: Opening RAB | D38: Effective reval rate | E38: =(1-'Inputs - forecast'!F$28)*(1+'Inputs - forecast'!F$5)+'Inputs - forecast'!F$28-1 -> 0.0118 | F38: =E42 -> 3000 | G38: =F42 -> 2935.86 | H38: 2848.527243 | I38: 2734.113981 | J38: 2587.666312 | K38: =J45+J46 -> 2655.214334 | L38: 2277.033204 | M38: 1860.71098 | N38: 1390.5516 | O38: 841.6288755
B39: Revaluation | F39: =E42*(1-'Inputs - forecast'!F$28)*('Inputs - forecast'!F$5) -> 35.4 | G39: =F42*(1-'Inputs - forecast'!G$28)*('Inputs - forecast'!G$5) -> 34.643148 | H39: =G42*(1-'Inputs - forecast'!H$28)*('Inputs - forecast'!H$5) -> 33.61262146 | I39: =H42*(1-'Inputs - forecast'!I$28)*('Inputs - forecast'!I$5) -> 32.26254498 | J39: =I42*(1-'Inputs - forecast'!J$28)*('Inputs - forecast'!J$5) -> 30.53446248 | K39: =J42*(1-'Inputs - forecast'!K$28)*('Inputs - forecast'!K$5) -> 28.35127164 | L39: =K42*(1-'Inputs - forecast'!L$28)*('Inputs - forecast'!L$5) -> 26.8689918 | M39: =L42*(1-'Inputs - forecast'!M$28)*('Inputs - forecast'!M$5) -> 21.95638957 | N39: =M42*(1-'Inputs - forecast'!N$28)*('Inputs - forecast'!N$5) -> 16.40850888 | O39: =N42*(1-'Inputs - forecast'!O$28)*('Inputs - forecast'!O$5) -> 9.931220731
B40: Capex | F40: =-F28 -> 204 | G40: 208.08 | H40: 212.2416 | I40: 216.486432 | J40: 220.8161606 | K40: 130.1807194 | L40: 132.7843338 | M40: 135.4400204 | N40: 138.1488208 | O40: 0
B41: Depreciation | F41: =-SUM(F38:F39)/F36 -> -303.54 | G41: =-SUM(G38:G39)/G36 -> -330.0559053 | H41: -360.267483 | I41: -395.1966466 | J41: -436.3667957 | K41: -536.7131211 | L41: -575.9755489 | M41: -627.55579 | N41: -703.4800546 | O41: -851.5600962
B42: Closing RAB | E42: =-E29 -> 3000 | F42: =SUM(F38:F41) -> 2935.86 | G42: 2848.527243 | H42: 2734.113981 | I42: 2587.666312 | J42: 2402.650139 | K42: 2277.033204 | L42: 1860.71098 | M42: 1390.5516 | N42: 841.6288755 | O42: 0
B45: RAB adjusted for actual inflation | J45: =J42/J47*J48 -> 2620.28732 | P45: Note
J46: =J127-J45 -> 34.92701396 | P46: Note
D47: forecast index equity wash-up | E47: 1 | F47: =E47*(1+$E$38) -> 1.0118 | G47: =F47*(1+$E$38) -> 1.02373924 | H47: 1.035819363 | I47: 1.048042032 | J47: 1.060408927
D48: actual index equity wash-up | E48: 1 | F48: =E48*(1+$E$123) -> 1.0295 | G48: =F48*(1+$E$123) -> 1.05987025 | H48: =G48*(1+$E$123) -> 1.091136422 | I48: =H48*(1+$E$123) -> 1.123324947 | J48: =I48*(1+$E$123) -> 1.156463033
A50: Tax asset base | F50: =F36 -> 10 | G50: 9 | H50: 8 | I50: 7 | J50: 6 | K50: 5 | L50: 4 | M50: 3 | N50: 2 | O50: 1
B51: Opening balance | F51: =E54 -> 3000 | G51: =F54 -> 2904 | H51: =G54 -> 2789.413333 | I51: 2652.978267 | J51: 2490.467803 | K51: 2296.205997 | L51: 1967.145517 | M51: 1608.143471 | N51: 1207.535668 | O51: 741.9166549
B52: Capex | F52: =-F28 -> 204 | G52: 208.08 | H52: 212.2416 | I52: 216.486432 | J52: 220.8161606 | K52: 130.1807194 | L52: 132.7843338 | M52: 135.4400204 | N52: 138.1488208 | O52: 0
B53: Depreciation | F53: =-F51/F50 -> -300 | G53: =-G51/G50 -> -322.6666667 | H53: -348.6766667 | I53: -378.9968952 | J53: -415.0779672 | K53: -459.2411994 | L53: -491.7863792 | M53: -536.0478238 | N53: -603.767834 | O53: -741.9166549
B54: Closing balance | E54: =E42 -> 3000 | F54: =SUM(F51:F53) -> 2904 | G54: =SUM(G51:G53) -> 2789.413333 | H54: =SUM(H51:H53) -> 2652.978267 | I54: 2490.467803 | J54: 2296.205997 | K54: 1967.145517 | L54: 1608.143471 | M54: 1207.535668 | N54: 741.9166549 | O54: 0
A56: Regulatory tax
B57: Revenue | F57: =F13 -> 621.8450708 | G57: 634.2819723 | H57: 646.9676117 | I57: 659.9069639 | J57: 673.1051032 | K57: 901.4898747 | L57: 919.5196722 | M57: 937.9100656 | N57: 956.6682669 | O57: 975.8016323
B58: Depreciation | F58: =F53 -> -300 | G58: -322.6666667 | H58: -348.6766667 | I58: -378.9968952 | J58: -415.0779672 | K58: -459.2411994 | L58: -491.7863792 | M58: -536.0478238 | N58: -603.767834 | O58: -741.9166549
B59: Opex | F59: =F18 -> -102 | G59: -104.04 | H59: -106.1208 | I59: -108.243216 | J59: -110.4080803 | K59: -130.1807194 | L59: -132.7843338 | M59: -135.4400204 | N59: -138.1488208 | O59: -140.9117973
B60: Notional interest | F60: =-'Inputs - forecast'!F$26*'Inputs - forecast'!F28*F38 -> -61.5 | G60: =-'Inputs - forecast'!G$26*'Inputs - forecast'!G28*G38 -> -60.18513 | H60: =-'Inputs - forecast'!H$26*'Inputs - forecast'!H28*H38 -> -58.39480847 | I60: =-'Inputs - forecast'!I$26*'Inputs - forecast'!I28*I38 -> -56.04933661 | J60: =-'Inputs - forecast'!J$26*'Inputs - forecast'!J28*J38 -> -53.04715939 | K60: =-'Inputs - forecast'!K$26*'Inputs - forecast'!K28*K38 -> -54.43189384 | L60: =-'Inputs - forecast'!L$26*'Inputs - forecast'!L28*L38 -> -46.67918067 | M60: =-'Inputs - forecast'!M$26*'Inputs - forecast'!M28*M38 -> -38.1445751 | N60: =-'Inputs - forecast'!N$26*'Inputs - forecast'!N28*N38 -> -28.50630781 | O60: =-'Inputs - forecast'!O$26*'Inputs - forecast'!O28*O38 -> -17.25339195
B61: EBT | F61: =SUM(F57:F60) -> 158.3450708 | G61: =SUM(G57:G60) -> 147.3901756 | H61: 133.7753366 | I61: 116.6175161 | J61: 94.57189628 | K61: 257.6360621 | L61: 248.2697785 | M61: 228.2776463 | N61: 186.2453043 | O61: 75.71978821
B62: Calculated tax | F62: =-F61*'Inputs - forecast'!F29 -> -44.33661984 | G62: =-G61*'Inputs - forecast'!G29 -> -41.26924917 | H62: =-H61*'Inputs - forecast'!H29 -> -37.45709424 | I62: =-I61*'Inputs - forecast'!I29 -> -32.65290451 | J62: =-J61*'Inputs - forecast'!J29 -> -26.48013096 | K62: =-K61*'Inputs - forecast'!K29 -> -72.13809739 | L62: =-L61*'Inputs - forecast'!L29 -> -69.51553799 | M62: =-M61*'Inputs - forecast'!M29 -> -63.91774096 | N62: =-N61*'Inputs - forecast'!N29 -> -52.1486852 | O62: =-O61*'Inputs - forecast'!O29 -> -21.2015407
B63: Deferred tax | F63: =IF(F62>0,F62,0) -> 0 | G63: =IF(G62>0,G62,0) -> 0 | H63: =IF(H62>0,H62,0) -> 0 | I63: =IF(I62>0,I62,0) -> 0 | J63: =IF(J62>0,J62,0) -> 0 | K63: 0 | L63: 0 | M63: 0 | N63: 0 | O63: 0
B64: Tax | F64: =IF(F63>0,0,F62+E63) -> -44.33661984 | G64: -41.26924917 | H64: -37.45709424 | I64: -32.65290451 | J64: -26.48013096 | K64: -72.13809739 | L64: -69.51553799 | M64: -63.91774096 | N64: -52.1486852 | O64: -21.2015407
A66: Reg Period 1
A67: Calculation of revenue | K67: Sum
B68: Present value of revenue | F68: =F13/'Inputs - forecast'!F$36 -> 585.6517902 | G68: =G13/'Inputs - forecast'!G$36 -> 562.5963703 | H68: =H13/'Inputs - forecast'!H$36 -> 540.4485758 | I68: =I13/'Inputs - forecast'!I$36 -> 519.1726759 | J68: =J13/'Inputs - forecast'!J$36 -> 498.7343468 | K68: =SUM(F68:J68) -> 2706.603759
B69: Present value of cost | F69: =SUM(F14:F19)/'Inputs - forecast'!F$36 -> -564.9619701 | G69: =SUM(G14:G19)/'Inputs - forecast'!G$36 -> -551.8427684 | H69: =SUM(H14:H19)/'Inputs - forecast'!H$36 -> -539.8672743 | I69: =SUM(I14:I19)/'Inputs - forecast'!I$36 -> -529.3148869 | J69: =SUM(J14:J19)/'Inputs - forecast'!J$36 -> -520.6168593 | K69: =SUM(F69:J69) -> -2706.603759
B70: Difference | K70: =SUM(K68:K69) -> 0
B71: Revenue | K71: 621.8450708
A73: Reg Period 2
A74: Calculation of revenue | P74: Sum
B75: Present value of revenue | K75: =K13/'Inputs - forecast'!K$36 -> 629.0780431 | L75: =L13/'Inputs - forecast'!L$36 -> 604.3130571 | M75: =M13/'Inputs - forecast'!M$36 -> 580.522997 | N75: =N13/'Inputs - forecast'!N$36 -> 557.6694829 | O75: =O13/'Inputs - forecast'!O$36 -> 535.7156457 | P75: =SUM(K75:O75) -> 2907.299226
B76: Present value of cost | K76: =SUM(K14:K19)/'Inputs - forecast'!K$36 -> -610.434401 | L76: =SUM(L14:L19)/'Inputs - forecast'!L$36 -> -586.3105051 | M76: =SUM(M14:M19)/'Inputs - forecast'!M$36 -> -569.4059894 | N76: =SUM(N14:N19)/'Inputs - forecast'!N$36 -> -561.5383077 | O76: =SUM(O14:O19)/'Inputs - forecast'!O$36 -> -579.6100225 | P76: =SUM(K76:O76) -> -2907.299226
B77: Difference | P77: =SUM(P75:P76) -> 0
B78: Revenue | P78: 901.4898747
A80: Actual | D80: =D11 -> Return over forecast period | E80: 2020-06-30 | F80: 2021-06-30 | G80: 2022-06-30 | H80: 2023-06-30 | I80: 2024-06-30 | J80: 2025-06-30 | K80: 2026-06-30 | L80: 2027-06-30 | M80: 2028-06-30 | N80: 2029-06-30 | O80: 2030-06-30
A81: Actual regulatory cashflows
B82: Revenue | F82: =F$13/'Inputs - forecast'!F$7*'Inputs - actual'!F$5 -> 640.1346318 | G82: =G$13/'Inputs - forecast'!G$7*'Inputs - actual'!G$5 -> 672.1413633 | H82: =H$13/'Inputs - forecast'!H$7*'Inputs - actual'!H$5 -> 705.7484315 | I82: =I$13/'Inputs - forecast'!I$7*'Inputs - actual'!I$5 -> 741.0358531 | J82: =J$13/'Inputs - forecast'!J$7*'Inputs - actual'!J$5 -> 778.0876457 | K82: =K$13/'Inputs - forecast'!K$7*'Inputs - actual'!K$5 -> 928.0042828 | L82: =L$13/'Inputs - forecast'!L$7*'Inputs - actual'!L$5 -> 974.4044969 | M82: =M$13/'Inputs - forecast'!M$7*'Inputs - actual'!M$5 -> 1023.124722 | N82: =N$13/'Inputs - forecast'!N$7*'Inputs - actual'!N$5 -> 1074.280958 | O82: =O$13/'Inputs - forecast'!O$7*'Inputs - actual'!O$5 -> 1127.995006 | P82: Note
B83: Opex | F83: =F$18/'Inputs - forecast'!F$4*'Inputs - actual'!F$5 -> -105 | G83: =G$18/'Inputs - forecast'!G$4*'Inputs - actual'!G$5 -> -110.25 | H83: =H$18/'Inputs - forecast'!H$4*'Inputs - actual'!H$5 -> -115.7625 | I83: =I$18/'Inputs - forecast'!I$4*'Inputs - actual'!I$5 -> -121.550625 | J83: =J$18/'Inputs - forecast'!J$4*'Inputs - actual'!J$5 -> -127.6281563 | K83: =K$18/'Inputs - forecast'!K$7*'Inputs - actual'!K$5 -> -134.0095641 | L83: =L$18/'Inputs - forecast'!L$7*'Inputs - actual'!L$5 -> -140.7100423 | M83: =M$18/'Inputs - forecast'!M$7*'Inputs - actual'!M$5 -> -147.7455444 | N83: =N$18/'Inputs - forecast'!N$7*'Inputs - actual'!N$5 -> -155.1328216 | O83: =O$18/'Inputs - forecast'!O$7*'Inputs - actual'!O$5 -> -162.8894627
B84: Capex | F84: =-F116 -> -210 | G84: =-G116 -> -220.5 | H84: -231.525 | I84: -243.10125 | J84: -255.2563125 | K84: -134.0095641 | L84: -140.7100423 | M84: -147.7455444 | N84: -155.1328216 | O84: 0
B85: Tax | F85: =F138+F146 -> -45.64063807 | G85: =G138+G146 -> -43.7325521 | H85: -40.86029197 | I85: -36.66724897 | J85: -30.61017166 | K85: -74.25980614 | L85: -73.66482183 | M85: -69.72504437 | N85: -58.55983879 | O85: -24.5082927
B86: Gain on RAB | J86: =-J46 -> -34.92701396 | P86: Note
B87: Nominal IRR | D87: =IRR(E87:O87,0.05) -> 0.08677441534 | E87: =-E42+SUM(E82:E85) -> -3000 | F87: =SUM(F82:F86) -> 279.4939937 | G87: 297.6588112 | H87: 317.6006395 | I87: 339.7167291 | J87: =SUM(J82:J86) -> 329.6659914 | K87: =SUM(K82:K86) -> 585.7253485 | L87: 619.3195905 | M87: 657.9085886 | N87: 705.4554759 | O87: 940.5972504
B90: Real IRR | D90: =IRR(E90:O90,0.05) -> 0.04715358716 | E90: =E87 -> -3000 | F90: =F87/'Inputs - actual'!F39 -> 269.3044057 | G90: =G87/'Inputs - actual'!G39 -> 276.350784 | H90: =H87/'Inputs - actual'!H39 -> 284.115093 | I90: =I87/'Inputs - actual'!I39 -> 292.8200767 | J90: =J87/'Inputs - actual'!J39 -> 273.7972251 | K90: =K87/'Inputs - actual'!K39 -> 468.7269166 | L90: =L87/'Inputs - actual'!L39 -> 477.5421068 | M90: =M87/'Inputs - actual'!M39 -> 488.8024658 | N90: =N87/'Inputs - actual'!N39 -> 505.0198168 | O90: =O87/'Inputs - actual'!O39 -> 648.8039646
B91: check to inputs | D91: =D90-'Inputs - actual'!P24 -> 0.006173194999
A93: Actual return (building blocks) with fixed cost of debt
B94: Revenue | F94: =F82 -> 640.1346318 | G94: 672.1413633 | H94: 705.7484315 | I94: 741.0358531 | J94: 778.0876457 | K94: 928.0042828 | L94: 974.4044969 | M94: 1023.124722 | N94: 1074.280958 | O94: 1127.995006
B95: Opex | F95: =F83 -> -105 | G95: -110.25 | H95: -115.7625 | I95: -121.550625 | J95: -127.6281563 | K95: -134.0095641 | L95: -140.7100423 | M95: -147.7455444 | N95: -155.1328216 | O95: -162.8894627
B96: Return on debt (fixed) | F96: =-F123*'Inputs - forecast'!F$26*('Inputs - actual'!F$20) -> -61.5 | G96: =-G123*'Inputs - forecast'!G$26*('Inputs - actual'!G$20) -> -61.287825 | H96: =-H123*'Inputs - forecast'!H$26*('Inputs - actual'!H$20) -> -60.60541963 | I96: =-I123*'Inputs - forecast'!I$26*('Inputs - actual'!I$20) -> -59.34038207 | J96: =-J123*'Inputs - forecast'!J$26*('Inputs - actual'!J$20) -> -57.34722421 | K96: =-K123*'Inputs - forecast'!K$26*('Inputs - actual'!K$20) -> -54.43189384 | L96: =-L123*'Inputs - forecast'!L$26*('Inputs - actual'!L$20) -> -47.57730383 | M96: =-M123*'Inputs - forecast'!M$26*('Inputs - actual'!M$20) -> -39.62018159 | N96: =-N123*'Inputs - forecast'!N$26*('Inputs - actual'!N$20) -> -30.22143495 | O96: =-O123*'Inputs - forecast'!O$26*('Inputs - actual'!O$20) -> -18.73670649
B97: Return on equity | F97: =-F123*'Inputs - actual'!F$18*(1-'Inputs - actual'!F$20) -> -179.6029412 | G97: =-G123*'Inputs - actual'!G$18*(1-'Inputs - actual'!G$20) -> -178.983311 | H97: =-H123*'Inputs - actual'!H$18*(1-'Inputs - actual'!H$20) -> -176.9904328 | I97: =-I123*'Inputs - actual'!I$18*(1-'Inputs - actual'!I$20) -> -173.2960512 | J97: =-J123*'Inputs - actual'!J$18*(1-'Inputs - actual'!J$20) -> -167.4752868 | K97: =-K123*'Inputs - actual'!K$18*(1-'Inputs - actual'!K$20) -> -158.9614346 | L97: =-L123*'Inputs - actual'!L$18*(1-'Inputs - actual'!L$20) -> -138.9434748 | M97: =-M123*'Inputs - actual'!M$18*(1-'Inputs - actual'!M$20) -> -115.7057096 | N97: =-N123*'Inputs - actual'!N$18*(1-'Inputs - actual'!N$20) -> -88.25786349 | O97: =-O123*'Inputs - actual'!O$18*(1-'Inputs - actual'!O$20) -> -54.71817224
B98: Revaluation | F98: =F124 -> 88.5 | G98: =G124 -> 88.194675 | H98: 87.21267703 | I98: 85.39225713 | J98: 82.52405435 | K98: 78.32882284 | L98: 68.46490063 | M98: 57.01440765 | N98: 43.48938201 | O98: 26.96257763
B99: Depreciation | F99: =F126 -> -308.85 | G99: =G126 -> -341.9827417 | H99: -380.4468263 | I99: -425.7207202 | J99: -479.9916042 | K99: -546.7086313 | L99: -597.3272475 | M99: -663.2353974 | N99: -758.8528606 | O99: -940.9482599
B100: Tax | F100: =F138+F146 -> -45.64063807 | G100: =G138+G146 -> -43.7325521 | H100: -40.86029197 | I100: -36.66724897 | J100: -30.61017166 | K100: -74.25980614 | L100: -73.66482183 | M100: -69.72504437 | N100: -58.55983879 | O100: -24.5082927
B101: Gain on RAB | J101: =J86 -> -34.92701396 | P101: Note
B102: Nominal return | F102: =SUM(F94:F101) -> 28.04105251 | G102: 24.09960854 | H102: 18.29563784 | I102: 9.853082761 | J102: =SUM(J94:J101) -> -37.36775698 | K102: =SUM(K94:K101) -> 37.96177569 | L102: 44.64650733 | M102: 44.10725199 | N102: 26.74552039 | O102: -46.8433106
B103: Present value | D103: =SUM(E103:O103) -> 108.2973045 | F103: =F102/'Inputs - actual'!F$36 -> 25.95510203 | G103: =G102/'Inputs - actual'!G$36 -> 20.64747019 | H103: =H102/'Inputs - actual'!H$36 -> 14.50884511 | I103: =I102/'Inputs - actual'!I$36 -> 7.232456825 | J103: =J102/'Inputs - actual'!J$36 -> -25.38862487 | K103: =K102/'Inputs - actual'!K$36 -> 23.87355516 | L103: =L102/'Inputs - actual'!L$36 -> 25.98881624 | M103: =M102/'Inputs - actual'!M$36 -> 23.76497923 | N103: =N102/'Inputs - actual'!N$36 -> 13.33849777 | O103: =O102/'Inputs - actual'!O$36 -> -21.62379316
B105: Real return | F105: =F102/'Inputs - actual'!F39 -> 27.01875229 | G105: =G102/'Inputs - actual'!G39 -> 22.37442825 | H105: =H102/'Inputs - actual'!H39 -> 16.36667626 | I105: =I102/'Inputs - actual'!I39 -> 8.492900709 | J105: =J102/'Inputs - actual'!J39 -> -31.03501252 | K105: =K102/'Inputs - actual'!K39 -> 30.37892437 | L105: =L102/'Inputs - actual'!L39 -> 34.42582392 | M105: =M102/'Inputs - actual'!M39 -> 32.770105 | N105: =N102/'Inputs - actual'!N39 -> 19.14652061 | O105: =O102/'Inputs - actual'!O39 -> -32.31151869
B106: Present value | D106: =SUM(E106:O106) -> 108.2973045 | F106: =F105/'Inputs - actual'!F$44 -> 25.95510203 | G106: =G105/'Inputs - actual'!G$44 -> 20.64747019 | H106: =H105/'Inputs - actual'!H$44 -> 14.50884511 | I106: =I105/'Inputs - actual'!I$44 -> 7.232456825 | J106: =J105/'Inputs - actual'!J$44 -> -25.38862487 | K106: =K105/'Inputs - actual'!K$44 -> 23.87355516 | L106: =L105/'Inputs - actual'!L$44 -> 25.98881624 | M106: =M105/'Inputs - actual'!M$44 -> 23.76497923 | N106: =N105/'Inputs - actual'!N$44 -> 13.33849777 | O106: =O105/'Inputs - actual'!O$44 -> -21.62379316
B108: Actual return on RAB | F108: =-(F96+F97)/F123 -> 0.08036764706 | G108: 0.08036764706 | H108: 0.08036764706 | I108: 0.08036764706 | J108: 0.08036764706 | K108: 0.08036764706 | L108: 0.08036764706 | M108: 0.08036764706 | N108: 0.08036764706 | O108: 0.08036764706
B109: Actual Rab revaluation | F109: =F98/F123 -> 0.0295 | G109: 0.0295 | H109: 0.0295 | I109: 0.0295 | J109: 0.0295 | K109: 0.0295 | L109: 0.0295 | M109: 0.0295 | N109: 0.0295 | O109: 0.0295
B110: Annual change in revenue | G110: =G94/F94-1 -> 0.05 | H110: 0.05 | I110: 0.05 | J110: 0.05 | K110: 0.1926732006 | L110: 0.05 | M110: 0.05 | N110: 0.05 | O110: 0.05
A112: Adjustment for fixed cost of debt
A114: Actual Asset Base
B115: Opening Asset Base | F115: =E42 -> 3000 | G115: =F118 -> 2910 | H115: 2807.166667 | I115: 2687.795833 | J115: 2546.92625 | K115: 2377.694854 | L115: 2036.165447 | M115: 1667.834128 | N115: 1259.634963 | O115: 784.9503031
B116: Capex | F116: =F$40/'Inputs - forecast'!F$4*'Inputs - actual'!F$5 -> 210 | G116: =G$40/'Inputs - forecast'!G$4*'Inputs - actual'!G$5 -> 220.5 | H116: =H$40/'Inputs - forecast'!H$4*'Inputs - actual'!H$5 -> 231.525 | I116: =I$40/'Inputs - forecast'!I$4*'Inputs - actual'!I$5 -> 243.10125 | J116: =J$40/'Inputs - forecast'!J$4*'Inputs - actual'!J$5 -> 255.2563125 | K116: =K$40/'Inputs - forecast'!K$7*'Inputs - actual'!K$5 -> 134.0095641 | L116: =L$40/'Inputs - forecast'!L$7*'Inputs - actual'!L$5 -> 140.7100423 | M116: =M$40/'Inputs - forecast'!M$7*'Inputs - actual'!M$5 -> 147.7455444 | N116: =N$40/'Inputs - forecast'!N$7*'Inputs - actual'!N$5 -> 155.1328216 | O116: =O$40/'Inputs - forecast'!O$7*'Inputs - actual'!O$5 -> 0
B117: Depreciation | F117: =-F115/F36 -> -300 | G117: -323.3333333 | H117: -350.8958333 | I117: -383.9708333 | J117: -424.4877083 | K117: -475.5389708 | L117: -509.0413618 | M117: -555.9447093 | N117: -629.8174815 | O117: -784.9503031
B118: Closing Asset Base | F118: =SUM(F115:F117) -> 2910 | G118: =SUM(G115:G117) -> 2807.166667 | H118: 2687.795833 | I118: 2546.92625 | J118: 2377.694854 | K118: 2036.165447 | L118: 1667.834128 | M118: 1259.634963 | N118: 784.9503031 | O118: 0
A120: Actual RAB
B121: Useful lives | F121: =F36 -> 10 | G121: =G36 -> 9 | H121: 8 | I121: 7 | J121: 6 | K121: 5 | L121: 4 | M121: 3 | N121: 2 | O121: 1
B123: Opening RAB | D123: Effective reval rate | E123: =(1-'Inputs - actual'!E20)*(1+'Inputs - actual'!F4)+'Inputs - actual'!E20-1 -> 0.0295 | F123: =E127 -> 3000 | G123: =F127 -> 2989.65 | H123: 2956.361933 | I123: 2894.652784 | J123: 2797.425571 | K123: 2655.214334 | L123: 2320.844089 | M123: 1932.691785 | N123: 1474.216339 | O123: 913.9856822
B124: Revaluation | F124: =E127*(1-'Inputs - actual'!F20)*('Inputs - actual'!F4) -> 88.5 | G124: =F127*(1-'Inputs - actual'!G20)*('Inputs - actual'!G4) -> 88.194675 | H124: =G127*(1-'Inputs - actual'!H20)*('Inputs - actual'!H4) -> 87.21267703 | I124: =H127*(1-'Inputs - actual'!I20)*('Inputs - actual'!I4) -> 85.39225713 | J124: =I127*(1-'Inputs - actual'!J20)*('Inputs - actual'!J4) -> 82.52405435 | K124: =J127*(1-'Inputs - actual'!K20)*('Inputs - actual'!K4) -> 78.32882284 | L124: =K127*(1-'Inputs - actual'!L20)*('Inputs - actual'!L4) -> 68.46490063 | M124: =L127*(1-'Inputs - actual'!M20)*('Inputs - actual'!M4) -> 57.01440765 | N124: =M127*(1-'Inputs - actual'!N20)*('Inputs - actual'!N4) -> 43.48938201 | O124: =N127*(1-'Inputs - actual'!O20)*('Inputs - actual'!O4) -> 26.96257763
B125: Capex | F125: =F116 -> 210 | G125: =G116 -> 220.5 | H125: 231.525 | I125: 243.10125 | J125: 255.2563125 | K125: 134.0095641 | L125: 140.7100423 | M125: 147.7455444 | N125: 155.1328216 | O125: 0
B126: Depreciation | F126: =-SUM(F123+F124)/F121 -> -308.85 | G126: =-SUM(G123+G124)/G121 -> -341.9827417 | H126: -380.4468263 | I126: -425.7207202 | J126: -479.9916042 | K126: -546.7086313 | L126: -597.3272475 | M126: -663.2353974 | N126: -758.8528606 | O126: -940.9482599
B127: Closing RAB | E127: =-E29 -> 3000 | F127: =SUM(F123:F126) -> 2989.65 | G127: 2956.361933 | H127: 2894.652784 | I127: 2797.425571 | J127: =SUM(J123:J126) -> 2655.214334 | K127: 2320.844089 | L127: 1932.691785 | M127: 1474.216339 | N127: 913.9856822 | O127: 0
A130: Actual tax
B131: Revenue | F131: =F94 -> 640.1346318 | G131: 672.1413633 | H131: 705.7484315 | I131: 741.0358531 | J131: 778.0876457 | K131: 928.0042828 | L131: 974.4044969 | M131: 1023.124722 | N131: 1074.280958 | O131: 1127.995006
B132: Depreciation | F132: =F117 -> -300 | G132: -323.3333333 | H132: -350.8958333 | I132: -383.9708333 | J132: -424.4877083 | K132: -475.5389708 | L132: -509.0413618 | M132: -555.9447093 | N132: -629.8174815 | O132: -784.9503031
B133: Opex | F133: =F95 -> -105 | G133: -110.25 | H133: -115.7625 | I133: -121.550625 | J133: -127.6281563 | K133: -134.0095641 | L133: -140.7100423 | M133: -147.7455444 | N133: -155.1328216 | O133: -162.8894627
B134: Interest | F134: =F96 -> -61.5 | G134: -61.287825 | H134: -60.60541963 | I134: -59.34038207 | J134: -57.34722421 | K134: -54.43189384 | L134: -47.57730383 | M134: -39.62018159 | N134: -30.22143495 | O134: -18.73670649
B135: EBT | F135: =SUM(F131:F134) -> 173.6346318 | G135: =SUM(G131:G134) -> 177.270205 | H135: 178.4846785 | I135: 176.1740127 | J135: 168.6245569 | K135: 264.023854 | L135: 277.075789 | M135: 279.8142865 | N135: 259.1092198 | O135: 161.4185335
B136: Calculated tax | F136: =-F135*'Inputs - forecast'!F29 -> -48.61769689 | G136: =-G135*'Inputs - forecast'!G29 -> -49.6356574 | H136: =-H135*'Inputs - forecast'!H29 -> -49.97570999 | I136: =-I135*'Inputs - forecast'!I29 -> -49.32872355 | J136: =-J135*'Inputs - forecast'!J29 -> -47.21487595 | K136: =-K135*'Inputs - forecast'!K29 -> -73.92667913 | L136: =-L135*'Inputs - forecast'!L29 -> -77.58122091 | M136: =-M135*'Inputs - forecast'!M29 -> -78.34800023 | N136: =-N135*'Inputs - forecast'!N29 -> -72.55058155 | O136: =-O135*'Inputs - forecast'!O29 -> -45.19718939
B137: Deferred tax | F137: =IF(F136>0,F136+E137,0) -> 0 | G137: 0 | H137: 0 | I137: 0 | J137: 0 | K137: 0 | L137: 0 | M137: 0 | N137: 0 | O137: 0
B138: Tax | F138: =IF(F137>0,0,F136+E137) -> -48.61769689 | G138: -49.6356574 | H138: -49.97570999 | I138: -49.32872355 | J138: -47.21487595 | K138: -73.92667913 | L138: -77.58122091 | M138: -78.34800023 | N138: -72.55058155 | O138: -45.19718939
A140: Tax adjustment | E140: NPV | P140: Note
B141: Tax | F141: =F138 -> -48.61769689 | G141: =G138 -> -49.6356574 | H141: -49.97570999 | I141: -49.32872355 | J141: -47.21487595 | K141: -73.92667913 | L141: -77.58122091 | M141: -78.34800023 | N141: -72.55058155 | O141: -45.19718939
B142: NPV of actual tax | E142: =SUM(F142:O142) -> -363.7010746 | F142: =F141/'Inputs - actual'!F$28 -> -44.47977005 | G142: =G141/'Inputs - actual'!G$28 -> -41.54608274 | H142: =H141/'Inputs - actual'!H$28 -> -38.27043757 | I142: =I141/'Inputs - actual'!I$28 -> -34.55990057 | J142: =J141/'Inputs - actual'!J$28 -> -30.26353193 | K142: =K141/'Inputs - actual'!K$28 -> -43.3520968 | L142: =L141/'Inputs - actual'!L$28 -> -41.62302805 | M142: =M141/'Inputs - actual'!M$28 -> -38.45679874 | N142: =N141/'Inputs - actual'!N$28 -> -32.5802388 | O142: =O141/'Inputs - actual'!O$28 -> -18.56918939
B144: Forecast tax adjusted for inflation | F144: =F$17/'Inputs - forecast'!F$4*'Inputs - actual'!F$5 -> -45.64063807 | G144: =G$17/'Inputs - forecast'!G$4*'Inputs - actual'!G$5 -> -43.7325521 | H144: =H$17/'Inputs - forecast'!H$4*'Inputs - actual'!H$5 -> -40.86029197 | I144: =I$17/'Inputs - forecast'!I$4*'Inputs - actual'!I$5 -> -36.66724897 | J144: =J$17/'Inputs - forecast'!J$4*'Inputs - actual'!J$5 -> -30.61017166 | K144: =K$17/'Inputs - forecast'!K$7*'Inputs - actual'!K$5 -> -74.25980614 | L144: =L$17/'Inputs - forecast'!L$7*'Inputs - actual'!L$5 -> -73.66482183 | M144: =M$17/'Inputs - forecast'!M$7*'Inputs - actual'!M$5 -> -69.72504437 | N144: =N$17/'Inputs - forecast'!N$7*'Inputs - actual'!N$5 -> -58.55983879 | O144: =O$17/'Inputs - forecast'!O$7*'Inputs - actual'!O$5 -> -24.5082927
B145: NPV of forecast tax adjusted for inflation | E145: =SUM(F145:O145) -> -308.620906 | F145: =F144/'Inputs - actual'!F$28 -> -41.75609327 | G145: =G144/'Inputs - actual'!G$28 -> -36.60506021 | H145: =H144/'Inputs - actual'!H$28 -> -31.29002576 | I145: =I144/'Inputs - actual'!I$28 -> -25.68922096 | J145: =J144/'Inputs - actual'!J$28 -> -19.62033975 | K145: =K144/'Inputs - actual'!K$28 -> -43.5474492 | L145: =L144/'Inputs - actual'!L$28 -> -39.52184446 | M145: =M144/'Inputs - actual'!M$28 -> -34.22425576 | N145: =N144/'Inputs - actual'!N$28 -> -26.29742575 | O145: =O144/'Inputs - actual'!O$28 -> -10.06919092
B146: Difference | E146: =E145-E142 -> 55.0801686 | F146: =F144-F141 -> 2.977058824 | G146: =G144-G141 -> 5.9031053 | H146: 9.115418024 | I146: 12.66147458 | J146: 16.60470428 | K146: -0.333127008 | L146: 3.916399077 | M146: 8.622955858 | N146: 13.99074277 | O146: 20.68889668
A148: Real revenue | F148: =F94/'Inputs - actual'!F$5 -> 609.6520302 | G148: =G94/'Inputs - actual'!G$5 -> 609.6520302 | H148: =H94/'Inputs - actual'!H$5 -> 609.6520302 | I148: =I94/'Inputs - actual'!I$5 -> 609.6520302 | J148: =J94/'Inputs - actual'!J$5 -> 609.6520302 | K148: =K94/'Inputs - actual'!K$5 -> 692.491084 | L148: =L94/'Inputs - actual'!L$5 -> 692.491084 | M148: =M94/'Inputs - actual'!M$5 -> 692.491084 | N148: =N94/'Inputs - actual'!N$5 -> 692.491084 | O148: =O94/'Inputs - actual'!O$5 -> 692.491084
A150: Wash-up account | E150: NPV | F150: =F80 -> 2021-06-30 | G150: 2022-06-30 | H150: 2023-06-30 | I150: 2024-06-30 | J150: 2025-06-30 | K150: 2026-06-30 | L150: 2027-06-30 | M150: 2028-06-30 | N150: 2029-06-30 | O150: 2030-06-30 | P150: =EOMONTH(O150, 12) -> 2031-06-30 | Q150: =EOMONTH(P150, 12) -> 2032-06-30
B151: Wash-up drawdowns will usually have a 2 year delay from when the revenue is set to allow for actual CPI information to be released.
B153: Actual net allowable revenue | D153: ANAR | F153: =F94-F112 -> 640.1346318 | G153: 672.1413633 | H153: 705.7484315 | I153: 741.0358531 | J153: 778.0876457 | K153: 928.0042828 | L153: 974.4044969 | M153: 1023.124722 | N153: 1074.280958 | O153: 1127.995006
B154: Forecast net allowable revenue | D154: FNAR | F154: =F13 -> 621.8450708 | G154: 634.2819723 | H154: 646.9676117 | I154: 659.9069639 | J154: 673.1051032 | K154: 901.4898747 | L154: 919.5196722 | M154: 937.9100656 | N154: 956.6682669 | O154: 975.8016323 | R154: Note
B155: Wash-up amount | F155: =F153-F154 -> 18.28956091 | G155: =G153-G154 -> 37.85939108 | H155: 58.7808198 | I155: 81.12888914 | J155: 104.9825425 | K155: 26.51440808 | L155: 54.88482472 | M155: 85.21465613 | N155: 117.6126909 | O155: 152.1933735
B157: Actual allowable revenue | D157: AAR | F157: =F153-F167 -> 640.1346318 | G157: 672.1413633 | H157: 726.3684344 | I157: 783.719259 | J157: 844.3582729 | K157: 1019.470553 | L157: 1092.763835 | M157: 1053.017576 | N157: 1136.159165 | O157: 1224.067649
B158: Forecast allowable revenue | D158: FAR | F158: =F154-F167 -> 621.8450708 | G158: 634.2819723 | H158: 667.5876146 | I158: 702.5903699 | J158: 739.3757304 | K158: 992.9561452 | L158: 1037.87901 | M158: 967.8029194 | N158: 1018.546474 | O158: 1071.874275
B160: Actual revenue | D160: AR | F160: =F158 -> 621.8450708 | G160: =G158 -> 634.2819723 | H160: =H158 -> 667.5876146 | I160: =I158 -> 702.5903699 | J160: 739.3757304 | K160: 992.9561452 | L160: 1037.87901 | M160: 967.8029194 | N160: 1018.546474 | O160: 1071.874275 | R160: Note
B162: Cost of debt wash-up adjustment | D162: CODW | F162: =F112 -> 0 | G162: 0 | H162: 0 | I162: 0 | J162: 0 | K162: 0 | L162: 0 | M162: 0 | N162: 0 | O162: 0
B164: Wash-up account balance | D164: WAB
B165: Wash-up account opening balance | D165: WABt-1 | F165: 0 | G165: =F168 -> 18.28956091 | H165: 57.27924685 | I165: 98.97992125 | J165: 143.5423636 | K165: 191.125197 | L165: 137.9848717 | M165: 83.03782322 | N165: 143.491363 | O165: 208.0936128 | P165: 277.0745287 | Q165: 161.5989239
B166: Wash-up accrual | D166: WA | F166: =F157-F160+F162 -> 18.28956091 | G166: 37.85939108 | H166: 58.7808198 | I166: 81.12888914 | J166: 104.9825425 | K166: 26.51440808 | L166: 54.88482472 | M166: 85.21465613 | N166: 117.6126909 | O166: 152.1933735 | P166: 0 | Q166: 0
B167: Wash-up (draw-down)/ draw-up | D167: WD | F167: 0 | G167: 0 | H167: =-F166*(1+'Inputs - forecast'!H$31)^2 -> -20.62000286 | I167: =-G166*(1+'Inputs - forecast'!I$31)^2 -> -42.68340592 | J167: =-H166*(1+'Inputs - forecast'!J$31)^2 -> -66.27062719 | K167: =-I166*(1+'Inputs - forecast'!K$31)^2 -> -91.46627054 | L167: =-J166*(1+'Inputs - forecast'!L$31)^2 -> -118.3593383 | M167: =-K166*(1+'Inputs - forecast'!M$31)^2 -> -29.89285381 | N167: =-L166*(1+'Inputs - forecast'!N$31)^2 -> -61.87820738 | O167: =-M166*(1+'Inputs - forecast'!O$31)^2 -> -96.07264285 | P167: =-N166*(1+'Inputs - forecast'!P$31)^2 -> -132.5988106 | Q167: =-O166*(1+'Inputs - forecast'!Q$31)^2 -> -152.1933735 | R167: Note
B168: Wash-up account balance | D168: WABt | F168: =F165*(1+'Inputs - forecast'!F$31)+F166+F167 -> 18.28956091 | G168: =G165*(1+'Inputs - forecast'!G$31)+G166+G167 -> 57.27924685 | H168: =H165*(1+'Inputs - forecast'!H$31)+H166+H167 -> 98.97992125 | I168: =I165*(1+'Inputs - forecast'!I$31)+I166+I167 -> 143.5423636 | J168: =J165*(1+'Inputs - forecast'!J$31)+J166+J167 -> 191.125197 | K168: =K165*(1+'Inputs - forecast'!K$31)+K166+K167 -> 137.9848717 | L168: =L165*(1+'Inputs - forecast'!L$31)+L166+L167 -> 83.03782322 | M168: =M165*(1+'Inputs - forecast'!M$31)+M166+M167 -> 143.491363 | N168: =N165*(1+'Inputs - forecast'!N$31)+N166+N167 -> 208.0936128 | O168: =O165*(1+'Inputs - forecast'!O$31)+O166+O167 -> 277.0745287 | P168: =P165*(1+'Inputs - forecast'!P$31)+P166+P167 -> 161.5989239 | Q168: =Q165*(1+'Inputs - forecast'!Q$31)+Q166+Q167 -> 9.40555048
B170: Test NPV=0
B171: Confirm Net Present Value (NPV) of ANAR equal AR plus CODW plus the wash-up account balance remaining at end of model period
B172: Actual net allowable revenue | D172: ANAR | E172: =-NPV('Inputs - forecast'!$F$31,F172:O172) -> -6114.855843 | F172: =F153 -> 640.1346318 | G172: 672.1413633 | H172: 705.7484315 | I172: 741.0358531 | J172: 778.0876457 | K172: 928.0042828 | L172: 974.4044969 | M172: 1023.124722 | N172: 1074.280958 | O172: 1127.995006
B173: Actual revenue | D173: AR | E173: =NPV('Inputs - forecast'!$F$31,F173:O173) -> 5962.741771 | F173: =F158 -> 621.8450708 | G173: 634.2819723 | H173: 667.5876146 | I173: 702.5903699 | J173: 739.3757304 | K173: 992.9561452 | L173: 1037.87901 | M173: 967.8029194 | N173: 1018.546474 | O173: 1071.874275
B174: Cost of debt wash-up adjustment | D174: CODW | E174: =-NPV('Inputs - forecast'!$F$31,F174:O174) -> 0 | F174: =F162 -> 0 | G174: 0 | H174: 0 | I174: 0 | J174: 0 | K174: 0 | L174: 0 | M174: 0 | N174: 0 | O174: 0
B175: Wash-up account balance | D175: WAB | E175: =NPV('Inputs - forecast'!$F$31,F175:O175) -> 152.1140723 | F175: 0 | G175: 0 | H175: 0 | I175: 0 | J175: 0 | K175: 0 | L175: 0 | M175: 0 | N175: 0 | O175: =O168 -> 277.0745287
D176: NPV | E176: =SUM(E172:E175) -> -9.094947018e-13
B178: Actual revenue per model | E178: =-NPV('Inputs - forecast'!$F$31,F178:O178) -> -6114.855843 | F178: =F94 -> 640.1346318 | G178: 672.1413633 | H178: 705.7484315 | I178: 741.0358531 | J178: 778.0876457 | K178: 928.0042828 | L178: 974.4044969 | M178: 1023.124722 | N178: 1074.280958 | O178: 1127.995006
B179: Check to ANAR less CODW | F179: =F172+F174-F178 -> 0 | G179: =G172+G174-G178 -> 0 | H179: 0 | I179: 0 | J179: 0 | K179: 0 | L179: 0 | M179: 0 | N179: 0 | O179: 0
B181: FNAR + accrual | E181: =NPV('Inputs - forecast'!$F$31,F181:O181) -> 6114.855843 | F181: =F154+F166 -> 640.1346318 | G181: 672.1413633 | H181: 705.7484315 | I181: 741.0358531 | J181: 778.0876457 | K181: 928.0042828 | L181: 974.4044969 | M181: 1023.124722 | N181: 1074.280958 | O181: 1127.995006 | R181: Note
B182: FNAR + draw-down | E182: =NPV('Inputs - forecast'!$F$31,F182:Q182) -> 5962.741771 | F182: =F154-F167 -> 621.8450708 | G182: 634.2819723 | H182: 667.5876146 | I182: 702.5903699 | J182: 739.3757304 | K182: 992.9561452 | L182: 1037.87901 | M182: 967.8029194 | N182: 1018.546474 | O182: 1071.874275 | R182: Note
B183: Closing WAB yet to receive | E183: =NPV('Inputs - forecast'!$F$31,F183:Q183) -> 152.1140723 | F183: 0 | G183: 0 | H183: 0 | I183: 0 | J183: 0 | K183: 0 | L183: 0 | M183: 0 | N183: 0 | O183: =+O168 -> 277.0745287
D184: NPV | E184: =E181-E182-E183 -> 9.094947018e-13

Sheet 4 Debt forecast
A1: Calculation
A3: Analysis
A10: Calculation
A11: Forecast | D11: Return over forecast period | E11: ='Inputs - forecast'!E2 -> 2020-06-30 | F11: ='Inputs - forecast'!F2 -> 2021-06-30 | G11: ='Inputs - forecast'!G2 -> 2022-06-30 | H11: ='Inputs - forecast'!H2 -> 2023-06-30 | I11: ='Inputs - forecast'!I2 -> 2024-06-30 | J11: ='Inputs - forecast'!J2 -> 2025-06-30 | K11: ='Inputs - forecast'!K2 -> 2026-06-30 | L11: ='Inputs - forecast'!L2 -> 2027-06-30 | M11: ='Inputs - forecast'!M2 -> 2028-06-30 | N11: ='Inputs - forecast'!N2 -> 2029-06-30 | O11: ='Inputs - forecast'!O2 -> 2030-06-30
A12: Building blocks
B13: Revenue | F13: =K69 -> 603.4311571 | G13: =F13*(1+'Inputs - forecast'!G5) -> 615.4997802 | H13: =G13*(1+'Inputs - forecast'!H5) -> 627.8097758 | I13: =H13*(1+'Inputs - forecast'!I5) -> 640.3659713 | J13: =I13*(1+'Inputs - forecast'!J5) -> 653.1732908 | K13: =P76 -> 927.2636233 | L13: =K13*(1+'Inputs - forecast'!L5) -> 945.8088958 | M13: =L13*(1+'Inputs - forecast'!M5) -> 964.7250737 | N13: =M13*(1+'Inputs - forecast'!N5) -> 984.0195751 | O13: =N13*(1+'Inputs - forecast'!O5) -> 1003.699967
B14: Return on debt | F14: =-SUM(F$38)*'Inputs - forecast'!F$28*'Inputs - forecast'!F$26 -> -61.5 | G14: =-SUM(G$38)*'Inputs - forecast'!G$28*'Inputs - forecast'!G$26 -> -60.639 | H14: =-SUM(H$38)*'Inputs - forecast'!H$28*'Inputs - forecast'!H$26 -> -59.245 | I14: =-SUM(I$38)*'Inputs - forecast'!I$28*'Inputs - forecast'!I$26 -> -57.2271153 | J14: =-SUM(J$38)*'Inputs - forecast'!J$28*'Inputs - forecast'!J$26 -> -54.47082123 | K14: =-SUM(K$38)*'Inputs - forecast'!K$28*'Inputs - forecast'!K$26 -> -56.12326062 | L14: =-SUM(L$38)*'Inputs - forecast'!L$28*'Inputs - forecast'!L$26 -> -48.46528541 | M14: =-SUM(M$38)*'Inputs - forecast'!M$28*'Inputs - forecast'!M$26 -> -39.79802218 | N14: =-SUM(N$38)*'Inputs - forecast'!N$28*'Inputs - forecast'!N$26 -> -29.8391755 | O14: =-SUM(O$38)*'Inputs - forecast'!O$28*'Inputs - forecast'!O$26 -> -18.05003033
B15: Return on equity | F15: =-SUM(F$38)*(1-'Inputs - forecast'!F$28)*'Inputs - forecast'!F$25 -> -123.9 | G15: =-SUM(G$38)*(1-'Inputs - forecast'!G$28)*'Inputs - forecast'!G$25 -> -122.1654 | H15: =-SUM(H$38)*(1-'Inputs - forecast'!H$28)*'Inputs - forecast'!H$25 -> -119.357 | I15: =-SUM(I$38)*(1-'Inputs - forecast'!I$28)*'Inputs - forecast'!I$25 -> -115.2917006 | J15: =-SUM(J$38)*(1-'Inputs - forecast'!J$28)*'Inputs - forecast'!J$25 -> -109.7387764 | K15: =-SUM(K$38)*(1-'Inputs - forecast'!K$28)*'Inputs - forecast'!K$25 -> -113.0678372 | L15: =-SUM(L$38)*(1-'Inputs - forecast'!L$28)*'Inputs - forecast'!L$25 -> -97.6398189 | M15: =-SUM(M$38)*(1-'Inputs - forecast'!M$28)*'Inputs - forecast'!M$25 -> -80.17845444 | N15: =-SUM(N$38)*(1-'Inputs - forecast'!N$28)*'Inputs - forecast'!N$25 -> -60.11502187 | O15: =-SUM(O$38)*(1-'Inputs - forecast'!O$28)*'Inputs - forecast'!O$25 -> -36.36420745
B16: Revaluation | F16: =F39 -> 60 | G16: =G39 -> 59.16 | H16: 57.8 | I16: 55.831332 | J16: 53.14226462 | K16: 54.7544006 | L16: 47.28320528 | M16: 38.82733871 | N16: 29.11139073 | O16: 17.60978569
B17: Tax | F17: =F60 -> -39.18072398 | G17: =G60 -> -35.8831518 | H17: -31.85484656 | I17: -26.85164855 | J17: -20.50059815 | K17: -78.8811643 | L17: -76.37641126 | M17: -70.96297803 | N17: -59.43384854 | O17: -28.79001557
B18: Opex | F18: =-'Inputs - forecast'!F16 -> -102 | G18: =-'Inputs - forecast'!G16 -> -104.04 | H18: =-'Inputs - forecast'!H16 -> -106.1208 | I18: =-'Inputs - forecast'!I16 -> -108.243216 | J18: =-'Inputs - forecast'!J16 -> -110.4080803 | K18: =-'Inputs - forecast'!K16 -> -130.1807194 | L18: =-'Inputs - forecast'!L16 -> -132.7843338 | M18: =-'Inputs - forecast'!M16 -> -135.4400204 | N18: =-'Inputs - forecast'!N16 -> -138.1488208 | O18: =-'Inputs - forecast'!O16 -> -140.9117973
B19: Depreciation | F19: =F41 -> -306 | G19: =G41 -> -335.24 | H19: -368.475 | I19: -406.7711331 | J19: -451.7092492 | K19: -558.4948861 | L19: -602.8608673 | M19: -660.0647581 | N19: -742.3404637 | O19: -898.0990702
B20: Net revenue | F20: =SUM(F13:F19) -> 30.8504331 | G20: 16.69222843 | H20: 0.5571292615 | I20: -18.18751023 | J20: -40.51197 | K20: 45.27015622 | L20: 34.9653844 | M20: 17.10817916 | N20: -16.74636459 | O20: -100.9053685
B21: Present value | F21: =F20/'Inputs - forecast'!F$36 -> 29.05484375 | G21: =G20/'Inputs - forecast'!G$36 -> 14.80569768 | H21: =H20/'Inputs - forecast'!H$36 -> 0.4654015293 | I21: =I20/'Inputs - forecast'!I$36 -> -14.3087721 | J21: =J20/'Inputs - forecast'!J$36 -> -30.01717087 | K21: =K20/'Inputs - forecast'!K$36 -> 31.59043943 | L21: =L20/'Inputs - forecast'!L$36 -> 22.97943043 | M21: =M20/'Inputs - forecast'!M$36 -> 10.58917247 | N21: =N20/'Inputs - forecast'!N$36 -> -9.761938179 | O21: =O20/'Inputs - forecast'!O$36 -> -55.39710415
B22: Sum of present values | O22: =SUM(F21:O21) -> -3.339550858e-13
A24: Regulatory cashflows
B25: Revenue | F25: =F13 -> 603.4311571 | G25: =G13 -> 615.4997802 | H25: 627.8097758 | I25: 640.3659713 | J25: 653.1732908 | K25: 927.2636233 | L25: 945.8088958 | M25: 964.7250737 | N25: 984.0195751 | O25: 1003.699967
B26: Opex | F26: =-'Inputs - forecast'!F$16 -> -102 | G26: =-'Inputs - forecast'!G$16 -> -104.04 | H26: =-'Inputs - forecast'!H$16 -> -106.1208 | I26: =-'Inputs - forecast'!I$16 -> -108.243216 | J26: =-'Inputs - forecast'!J$16 -> -110.4080803 | K26: =-'Inputs - forecast'!K$16 -> -130.1807194 | L26: =-'Inputs - forecast'!L$16 -> -132.7843338 | M26: =-'Inputs - forecast'!M$16 -> -135.4400204 | N26: =-'Inputs - forecast'!N$16 -> -138.1488208 | O26: =-'Inputs - forecast'!O$16 -> -140.9117973
B27: Tax | F27: =F17 -> -39.18072398 | G27: =G17 -> -35.8831518 | H27: -31.85484656 | I27: -26.85164855 | J27: -20.50059815 | K27: -78.8811643 | L27: -76.37641126 | M27: -70.96297803 | N27: -59.43384854 | O27: -28.79001557
B28: Capex | F28: =-'Inputs - forecast'!F$17 -> -204 | G28: =-'Inputs - forecast'!G$17 -> -208.08 | H28: =-'Inputs - forecast'!H$17 -> -212.2416 | I28: =-'Inputs - forecast'!I$17 -> -216.486432 | J28: =-'Inputs - forecast'!J$17 -> -220.8161606 | K28: =-'Inputs - forecast'!K$17 -> -130.1807194 | L28: =-'Inputs - forecast'!L$17 -> -132.7843338 | M28: =-'Inputs - forecast'!M$17 -> -135.4400204 | N28: =-'Inputs - forecast'!N$17 -> -138.1488208 | O28: =-'Inputs - forecast'!O$17 -> 0
B29: Opening RAB | E29: =-'Inputs - forecast'!E$18 -> -3000
B30: Closing RAB | J30: =-(J45+J46-J42) -> -258.3576232 | O30: =O42 -> 0
B31: Sum | E31: =SUM(E25:E30) -> -3000 | F31: =SUM(F25:F30) -> 258.2504331 | G31: 267.4966284 | H31: 277.5925293 | I31: 288.7846748 | J31: 43.09082844 | K31: 588.0210202 | L31: 603.863817 | M31: 622.8820548 | N31: 648.2880849 | O31: 833.9981538
B32: Present value | E32: =E31/'Inputs - forecast'!E$36 -> -3000 | F32: =F31/'Inputs - forecast'!F$36 -> 243.2194699 | G32: =G31/'Inputs - forecast'!G$36 -> 237.2645587 | H32: =H31/'Inputs - forecast'!H$36 -> 231.8887134 | I32: =I31/'Inputs - forecast'!I$36 -> 227.1973484 | J32: =J31/'Inputs - forecast'!J$36 -> 31.927965 | K32: =K31/'Inputs - forecast'!K$36 -> 410.3330754 | L32: =L31/'Inputs - forecast'!L$36 -> 396.8624058 | M32: =M31/'Inputs - forecast'!M$36 -> 385.5352133 | N32: =N31/'Inputs - forecast'!N$36 -> 377.9057941 | O32: =O31/'Inputs - forecast'!O$36 -> 457.8654561
B33: Sum of present values | O33: =SUM(E32:O32) -> -1.818989404e-12
A35: Regulatory Asset Base
B36: Useful lives | F36: 10 | G36: =F36-1 -> 9 | H36: =G36-1 -> 8 | I36: 7 | J36: 6 | K36: 5 | L36: 4 | M36: 3 | N36: 2 | O36: 1
B38: Opening RAB | F38: =E42 -> 3000 | G38: =F42 -> 2958 | H38: 2890 | I38: 2791.5666 | J38: 2657.113231 | K38: =J45+J46 -> 2737.72003 | L38: =K42 -> 2364.160264 | M38: =L42 -> 1941.366936 | N38: 1455.569537 | O38: 880.4892846
B39: Revaluation | F39: =F38*('Inputs - forecast'!F$5) -> 60 | G39: =G38*('Inputs - forecast'!G$5) -> 59.16 | H39: =H38*('Inputs - forecast'!H$5) -> 57.8 | I39: =I38*('Inputs - forecast'!I$5) -> 55.831332 | J39: =J38*('Inputs - forecast'!J$5) -> 53.14226462 | K39: =K38*('Inputs - forecast'!K$5) -> 54.7544006 | L39: =L38*('Inputs - forecast'!L$5) -> 47.28320528 | M39: =M38*('Inputs - forecast'!M$5) -> 38.82733871 | N39: =N38*('Inputs - forecast'!N$5) -> 29.11139073 | O39: =O38*('Inputs - forecast'!O$5) -> 17.60978569
B40: Capex | F40: =-F28 -> 204 | G40: 208.08 | H40: 212.2416 | I40: 216.486432 | J40: 220.8161606 | K40: 130.1807194 | L40: 132.7843338 | M40: 135.4400204 | N40: 138.1488208 | O40: 0
B41: Depreciation | F41: =-SUM(F38:F39)/F36 -> -306 | G41: =-SUM(G38:G39)/G36 -> -335.24 | H41: -368.475 | I41: -406.7711331 | J41: -451.7092492 | K41: -558.4948861 | L41: -602.8608673 | M41: -660.0647581 | N41: -742.3404637 | O41: -898.0990702
B42: Closing RAB | E42: =-E29 -> 3000 | F42: =SUM(F38:F41) -> 2958 | G42: 2890 | H42: 2791.5666 | I42: 2657.113231 | J42: 2479.362407 | K42: 2364.160264 | L42: 1941.366936 | M42: 1455.569537 | N42: 880.4892846 | O42: 0
B45: RAB adjusted for actual inflation | J45: =J42*(1-'Inputs - forecast'!J$28)/'Inputs - forecast'!J4*'Inputs - actual'!J5+J42*'Inputs - forecast'!J$28 -> 2707.51543 | P45: Note
B46: Check to actual RAB | J46: =J125-J45 -> 30.20460053 | P46: Note
A48: Tax asset base | F48: =F36 -> 10 | G48: 9 | H48: 8 | I48: 7 | J48: 6 | K48: 5 | L48: 4 | M48: 3 | N48: 2 | O48: 1
B49: Opening balance | F49: =E52 -> 3000 | G49: =F52 -> 2904 | H49: =G52 -> 2789.413333 | I49: 2652.978267 | J49: 2490.467803 | K49: 2296.205997 | L49: 1967.145517 | M49: 1608.143471 | N49: 1207.535668 | O49: 741.9166549
B50: Capex | F50: =-F28 -> 204 | G50: 208.08 | H50: 212.2416 | I50: 216.486432 | J50: 220.8161606 | K50: 130.1807194 | L50: 132.7843338 | M50: 135.4400204 | N50: 138.1488208 | O50: 0
B51: Depreciation | F51: =-F49/F48 -> -300 | G51: =-G49/G48 -> -322.6666667 | H51: -348.6766667 | I51: -378.9968952 | J51: -415.0779672 | K51: -459.2411994 | L51: -491.7863792 | M51: -536.0478238 | N51: -603.767834 | O51: -741.9166549
B52: Closing balance | E52: =E42 -> 3000 | F52: =SUM(F49:F51) -> 2904 | G52: =SUM(G49:G51) -> 2789.413333 | H52: =SUM(H49:H51) -> 2652.978267 | I52: 2490.467803 | J52: 2296.205997 | K52: 1967.145517 | L52: 1608.143471 | M52: 1207.535668 | N52: 741.9166549 | O52: 0
A54: Regulatory tax
B55: Revenue | F55: =F13 -> 603.4311571 | G55: 615.4997802 | H55: 627.8097758 | I55: 640.3659713 | J55: 653.1732908 | K55: 927.2636233 | L55: 945.8088958 | M55: 964.7250737 | N55: 984.0195751 | O55: 1003.699967
B56: Depreciation | F56: =F51 -> -300 | G56: -322.6666667 | H56: -348.6766667 | I56: -378.9968952 | J56: -415.0779672 | K56: -459.2411994 | L56: -491.7863792 | M56: -536.0478238 | N56: -603.767834 | O56: -741.9166549
B57: Opex | F57: =F18 -> -102 | G57: -104.04 | H57: -106.1208 | I57: -108.243216 | J57: -110.4080803 | K57: -130.1807194 | L57: -132.7843338 | M57: -135.4400204 | N57: -138.1488208 | O57: -140.9117973
B58: Notional interest | F58: =-'Inputs - forecast'!F$26*'Inputs - forecast'!F28*F38 -> -61.5 | G58: =-'Inputs - forecast'!G$26*'Inputs - forecast'!G28*G38 -> -60.639 | H58: =-'Inputs - forecast'!H$26*'Inputs - forecast'!H28*H38 -> -59.245 | I58: =-'Inputs - forecast'!I$26*'Inputs - forecast'!I28*I38 -> -57.2271153 | J58: =-'Inputs - forecast'!J$26*'Inputs - forecast'!J28*J38 -> -54.47082123 | K58: =-'Inputs - forecast'!K$26*'Inputs - forecast'!K28*K38 -> -56.12326062 | L58: =-'Inputs - forecast'!L$26*'Inputs - forecast'!L28*L38 -> -48.46528541 | M58: =-'Inputs - forecast'!M$26*'Inputs - forecast'!M28*M38 -> -39.79802218 | N58: =-'Inputs - forecast'!N$26*'Inputs - forecast'!N28*N38 -> -29.8391755 | O58: =-'Inputs - forecast'!O$26*'Inputs - forecast'!O28*O38 -> -18.05003033
B59: EBT | F59: =SUM(F55:F58) -> 139.9311571 | G59: =SUM(G55:G58) -> 128.1541136 | H59: 113.7673092 | I59: 95.8987448 | J59: 73.21642198 | K59: 281.7184439 | L59: 272.7728974 | M59: 253.4392073 | N59: 212.2637448 | O59: 102.8214842
B60: Calculated tax | F60: =-F59*'Inputs - forecast'!F29 -> -39.18072398 | G60: =-G59*'Inputs - forecast'!G29 -> -35.8831518 | H60: =-H59*'Inputs - forecast'!H29 -> -31.85484656 | I60: =-I59*'Inputs - forecast'!I29 -> -26.85164855 | J60: =-J59*'Inputs - forecast'!J29 -> -20.50059815 | K60: =-K59*'Inputs - forecast'!K29 -> -78.8811643 | L60: =-L59*'Inputs - forecast'!L29 -> -76.37641126 | M60: =-M59*'Inputs - forecast'!M29 -> -70.96297803 | N60: =-N59*'Inputs - forecast'!N29 -> -59.43384854 | O60: =-O59*'Inputs - forecast'!O29 -> -28.79001557
B61: Deferred tax | F61: =IF(F60>0,F60,0) -> 0 | G61: =IF(G60>0,G60,0) -> 0 | H61: =IF(H60>0,H60,0) -> 0 | I61: =IF(I60>0,I60,0) -> 0 | J61: =IF(J60>0,J60,0) -> 0 | K61: 0 | L61: 0 | M61: 0 | N61: 0 | O61: 0
B62: Tax | F62: =IF(F61>0,0,F60+E61) -> -39.18072398 | G62: -35.8831518 | H62: -31.85484656 | I62: -26.85164855 | J62: -20.50059815 | K62: -78.8811643 | L62: -76.37641126 | M62: -70.96297803 | N62: -59.43384854 | O62: -28.79001557
A64: Reg Period 1
A65: Calculation of revenue | K65: Sum
B66: Present value of revenue | F66: =F13/'Inputs - forecast'!F$36 -> 568.3096224 | G66: =G13/'Inputs - forecast'!G$36 -> 545.9369136 | H66: =H13/'Inputs - forecast'!H$36 -> 524.4449537 | I66: =I13/'Inputs - forecast'!I$36 -> 503.7990703 | J66: =J13/'Inputs - forecast'!J$36 -> 483.9659556 | K66: =SUM(F66:J66) -> 2626.456516
B67: Present value of cost | F67: =SUM(F14:F19)/'Inputs - forecast'!F$36 -> -539.2547787 | G67: =SUM(G14:G19)/'Inputs - forecast'!G$36 -> -531.1312159 | H67: =SUM(H14:H19)/'Inputs - forecast'!H$36 -> -523.9795522 | I67: =SUM(I14:I19)/'Inputs - forecast'!I$36 -> -518.1078424 | J67: =SUM(J14:J19)/'Inputs - forecast'!J$36 -> -513.9831265 | K67: =SUM(F67:J67) -> -2626.456516
B68: Difference | K68: =SUM(K66:K67) -> 0
B69: Revenue | K69: 603.4311571
A71: Reg Period 2
A72: Calculation of revenue | P72: Sum
B73: Present value of revenue | K73: =K13/'Inputs - forecast'!K$36 -> 647.0634912 | L73: =L13/'Inputs - forecast'!L$36 -> 621.59047 | M73: =M13/'Inputs - forecast'!M$36 -> 597.1202481 | N73: =N13/'Inputs - forecast'!N$36 -> 573.6133481 | O73: =O13/'Inputs - forecast'!O$36 -> 551.0318469 | P73: =SUM(K73:O73) -> 2990.419404
B74: Present value of cost | K74: =SUM(K14:K19)/'Inputs - forecast'!K$36 -> -615.4730518 | L74: =SUM(L14:L19)/'Inputs - forecast'!L$36 -> -598.6110396 | M74: =SUM(M14:M19)/'Inputs - forecast'!M$36 -> -586.5310756 | N74: =SUM(N14:N19)/'Inputs - forecast'!N$36 -> -583.3752863 | O74: =SUM(O14:O19)/'Inputs - forecast'!O$36 -> -606.4289511 | P74: =SUM(K74:O74) -> -2990.419404
B75: Difference | P75: =SUM(P73:P74) -> 0
B76: Revenue | P76: 927.2636233
A78: Actual | D78: =D11 -> Return over forecast period | E78: 2020-06-30 | F78: 2021-06-30 | G78: 2022-06-30 | H78: 2023-06-30 | I78: 2024-06-30 | J78: 2025-06-30 | K78: 2026-06-30 | L78: 2027-06-30 | M78: 2028-06-30 | N78: 2029-06-30 | O78: 2030-06-30
A79: Actual regulatory cashflows
B80: Revenue (no delay in wash-ups) | F80: =F$13/'Inputs - forecast'!F$4*'Inputs - actual'!F$5+F110 -> 621.1791323 | G80: =G$13/'Inputs - forecast'!G$4*'Inputs - actual'!G$5+G110 -> 652.2380889 | H80: =H$13/'Inputs - forecast'!H$4*'Inputs - actual'!H$5+H110 -> 684.8499933 | I80: =I$13/'Inputs - forecast'!I$4*'Inputs - actual'!I$5+I110 -> 719.092493 | J80: =J$13/'Inputs - forecast'!J$4*'Inputs - actual'!J$5+J110 -> 755.0471177 | K80: =K$13/'Inputs - forecast'!K$7*'Inputs - actual'!K$5 -> 954.5360828 | L80: =L$13/'Inputs - forecast'!L$7*'Inputs - actual'!L$5 -> 1002.262887 | M80: =M$13/'Inputs - forecast'!M$7*'Inputs - actual'!M$5 -> 1052.376031 | N80: =N$13/'Inputs - forecast'!N$7*'Inputs - actual'!N$5 -> 1104.994833 | O80: =O$13/'Inputs - forecast'!O$7*'Inputs - actual'!O$5 -> 1160.244574 | P80: Note
B81: Opex | F81: =F$18/'Inputs - forecast'!F$4*'Inputs - actual'!F$5 -> -105 | G81: =G$18/'Inputs - forecast'!G$4*'Inputs - actual'!G$5 -> -110.25 | H81: =H$18/'Inputs - forecast'!H$4*'Inputs - actual'!H$5 -> -115.7625 | I81: =I$18/'Inputs - forecast'!I$4*'Inputs - actual'!I$5 -> -121.550625 | J81: =J$18/'Inputs - forecast'!J$4*'Inputs - actual'!J$5 -> -127.6281563 | K81: =K$18/'Inputs - forecast'!K$7*'Inputs - actual'!K$5 -> -134.0095641 | L81: =L$18/'Inputs - forecast'!L$7*'Inputs - actual'!L$5 -> -140.7100423 | M81: =M$18/'Inputs - forecast'!M$7*'Inputs - actual'!M$5 -> -147.7455444 | N81: =N$18/'Inputs - forecast'!N$7*'Inputs - actual'!N$5 -> -155.1328216 | O81: =O$18/'Inputs - forecast'!O$7*'Inputs - actual'!O$5 -> -162.8894627
B82: Capex | F82: =-F114 -> -210 | G82: =-G114 -> -220.5 | H82: -231.525 | I82: -243.10125 | J82: -255.2563125 | K82: -134.0095641 | L82: -140.7100423 | M82: -147.7455444 | N82: -155.1328216 | O82: 0
B83: Tax | F83: =F136+F144 -> -40.33309822 | G83: =G136+G144 -> -38.02496622 | H83: -34.74904708 | I83: -30.15278725 | J83: -23.69802588 | K83: -81.20119854 | L83: -80.9352109 | M83: -77.41038274 | N83: -66.7406393 | O83: -33.28032328
B84: Gain on RAB | J84: =-J46 -> -30.20460053 | P84: Note
B85: Nominal IRR | D85: =IRR(E85:O85,0.05) -> 0.08681385682 | E85: =-E42+SUM(E80:E83) -> -3000 | F85: =SUM(F80:F84) -> 265.8460341 | G85: 283.4631227 | H85: 302.8134463 | I85: 324.2878308 | J85: =SUM(J80:J84) -> 318.2600225 | K85: =SUM(K80:K84) -> 605.3157561 | L85: 639.9075915 | M85: 679.4745598 | N85: 727.9885504 | O85: 964.0747885
B88: Real IRR | D88: =IRR(E88:O88,0.05) -> 0.04719159071 | E88: =E85 -> -3000 | F88: =F85/'Inputs - actual'!F$39 -> 256.1540135 | G88: =G85/'Inputs - actual'!G$39 -> 263.1712996 | H88: =H85/'Inputs - actual'!H$39 -> 270.886956 | I88: =I85/'Inputs - actual'!I$39 -> 279.5210813 | J88: =J85/'Inputs - actual'!J$39 -> 264.3242352 | K88: =K85/'Inputs - actual'!K$39 -> 484.4041472 | L88: =L85/'Inputs - actual'!L$39 -> 493.4170081 | M88: =M85/'Inputs - actual'!M$39 -> 504.8252082 | N88: =N85/'Inputs - actual'!N$39 -> 521.1507415 | O88: =O85/'Inputs - actual'!O$39 -> 664.9982707
B89: check to inputs | D89: =D88-'Inputs - actual'!P24 -> 0.006211198552
A91: Actual return (building blocks) with fixed cost of debt
B92: Revenue | F92: =F80 -> 621.1791323 | G92: =G80 -> 652.2380889 | H92: 684.8499933 | I92: 719.092493 | J92: 755.0471177 | K92: 954.5360828 | L92: 1002.262887 | M92: 1052.376031 | N92: 1104.994833 | O92: 1160.244574
B93: Opex | F93: =F81 -> -105 | G93: =G81 -> -110.25 | H93: -115.7625 | I93: -121.550625 | J93: -127.6281563 | K93: -134.0095641 | L93: -140.7100423 | M93: -147.7455444 | N93: -155.1328216 | O93: -162.8894627
B94: Return on debt (fixed) | F94: =-F121*'Inputs - forecast'!F$26*('Inputs - actual'!F$20) -> -61.5 | G94: =-G121*'Inputs - forecast'!G$26*('Inputs - actual'!G$20) -> -61.741695 | H94: =-H121*'Inputs - forecast'!H$26*('Inputs - actual'!H$20) -> -61.47078947 | I94: =-I121*'Inputs - forecast'!I$26*('Inputs - actual'!I$20) -> -60.56097095 | J94: =-J121*'Inputs - forecast'!J$26*('Inputs - actual'!J$20) -> -58.84996382 | K94: =-K121*'Inputs - forecast'!K$26*('Inputs - actual'!K$20) -> -56.12326062 | L94: =-L121*'Inputs - forecast'!L$26*('Inputs - actual'!L$20) -> -49.3384821 | M94: =-M121*'Inputs - forecast'!M$26*('Inputs - actual'!M$20) -> -41.28346302 | N94: =-N121*'Inputs - forecast'!N$26*('Inputs - actual'!N$20) -> -31.58868338 | O94: =-O121*'Inputs - forecast'!O$26*('Inputs - actual'!O$20) -> -19.57001121
B95: Return on equity | F95: =-F121*'Inputs - actual'!F$18*(1-'Inputs - actual'!F$20) -> -179.6029412 | G95: =-G121*'Inputs - actual'!G$18*(1-'Inputs - actual'!G$20) -> -180.3087807 | H95: =-H121*'Inputs - actual'!H$18*(1-'Inputs - actual'!H$20) -> -179.5176355 | I95: =-I121*'Inputs - actual'!I$18*(1-'Inputs - actual'!I$20) -> -176.8606261 | J95: =-J121*'Inputs - actual'!J$18*(1-'Inputs - actual'!J$20) -> -171.863847 | K95: =-K121*'Inputs - actual'!K$18*(1-'Inputs - actual'!K$20) -> -163.9008565 | L95: =-L121*'Inputs - actual'!L$18*(1-'Inputs - actual'!L$20) -> -144.0867723 | M95: =-M121*'Inputs - actual'!M$18*(1-'Inputs - actual'!M$20) -> -120.5631119 | N95: =-N121*'Inputs - actual'!N$18*(1-'Inputs - actual'!N$20) -> -92.2507389 | O95: =-O121*'Inputs - actual'!O$18*(1-'Inputs - actual'!O$20) -> -57.15173289
B96: Revaluation | F96: =F122 -> 113.1 | G96: =G122 -> 113.544483 | H96: =H122 -> 113.0462811 | I96: 111.3731027 | J96: 108.2265188 | K96: 103.2120451 | L96: 90.73467195 | M96: 75.92129541 | N96: 58.09235919 | O96: 35.98972794
B97: Depreciation | F97: =F124 -> -311.31 | G97: =G124 -> -347.259387 | H97: -388.9526721 | I97: -437.9381154 | J97: -496.4927435 | K97: -568.186415 | L97: -624.372474 | M97: -696.5829199 | N97: -799.5018717 | O97: -990.6244213
B98: Tax | F98: =F136+F144 -> -40.33309822 | G98: =G136+G144 -> -38.02496622 | H98: -34.74904708 | I98: -30.15278725 | J98: -23.69802588 | K98: -81.20119854 | L98: -80.9352109 | M98: -77.41038274 | N98: -66.7406393 | O98: -33.28032328
B99: Gain on RAB | J99: =J84 -> -30.20460053 | P99: Note
B100: Nominal return | F100: =SUM(F92:F99) -> 36.53309289 | G100: 28.19774295 | H100: 17.44363025 | I100: 3.402471041 | J100: =SUM(J92:J99) -> -45.46370049 | K100: =SUM(K92:K99) -> 54.32683316 | L100: 53.55457726 | M100: 44.71190474 | N100: 17.87243713 | O100: -67.28164889
B101: Present value | D101: =SUM(E101:O101) -> 110.7005324 | F101: =F100/'Inputs - actual'!F$36 -> 33.81542662 | G101: =G100/'Inputs - actual'!G$36 -> 24.15856905 | H101: =H100/'Inputs - actual'!H$36 -> 13.83318426 | I101: =I100/'Inputs - actual'!I$36 -> 2.497515296 | J101: =J100/'Inputs - actual'!J$36 -> -30.88921922 | K101: =K100/'Inputs - actual'!K$36 -> 34.16527874 | L101: =L100/'Inputs - actual'!L$36 -> 31.17422057 | M101: =M100/'Inputs - actual'!M$36 -> 24.09076602 | N101: =N100/'Inputs - actual'!N$36 -> 8.913323028 | O101: =O100/'Inputs - actual'!O$36 -> -31.05853195
B103: Real return | F103: =F100/'Inputs - actual'!F39 -> 35.20119607 | G103: =G100/'Inputs - actual'!G39 -> 26.17919604 | H103: =H100/'Inputs - actual'!H39 -> 15.60449827 | I103: =I100/'Inputs - actual'!I39 -> 2.932772354 | J103: =J100/'Inputs - actual'!J39 -> -37.75892984 | K103: =K100/'Inputs - actual'!K39 -> 43.47506738 | L103: =L100/'Inputs - actual'!L39 -> 41.29461759 | M103: =M100/'Inputs - actual'!M39 -> 33.21934029 | N103: =N100/'Inputs - actual'!N39 -> 12.79447851 | O103: =O100/'Inputs - actual'!O39 -> -46.40944945
B104: Present value | D104: =SUM(E104:O104) -> 110.7005324 | F104: =F103/'Inputs - actual'!F$44 -> 33.81542662 | G104: =G103/'Inputs - actual'!G$44 -> 24.15856905 | H104: =H103/'Inputs - actual'!H$44 -> 13.83318426 | I104: =I103/'Inputs - actual'!I$44 -> 2.497515296 | J104: =J103/'Inputs - actual'!J$44 -> -30.88921922 | K104: =K103/'Inputs - actual'!K$44 -> 34.16527874 | L104: =L103/'Inputs - actual'!L$44 -> 31.17422057 | M104: =M103/'Inputs - actual'!M$44 -> 24.09076602 | N104: =N103/'Inputs - actual'!N$44 -> 8.913323028 | O104: =O103/'Inputs - actual'!O$44 -> -31.05853195
B106: Actual return on RAB | F106: =-(F94+F95)/F121 -> 0.08036764706 | G106: 0.08036764706 | H106: 0.08036764706 | I106: 0.08036764706 | J106: 0.08036764706 | K106: 0.08036764706 | L106: 0.08036764706 | M106: 0.08036764706 | N106: 0.08036764706 | O106: 0.08036764706
B107: Actual Rab revaluation | F107: =F96/F121 -> 0.0377 | G107: =G96/G121 -> 0.0377 | H107: 0.0377 | I107: 0.0377 | J107: 0.0377 | K107: 0.0377 | L107: 0.0377 | M107: 0.0377 | N107: 0.0377 | O107: 0.0377
B108: Annual change in revenue | G108: =G92/F92-1 -> 0.05 | H108: 0.05 | I108: 0.05 | J108: 0.05 | K108: 0.2642073064 | L108: 0.05 | M108: 0.05 | N108: 0.05 | O108: 0.05
A110: Adjustment for fixed cost of debt
A112: Actual Asset Base
B113: Opening Asset Base | F113: =E42 -> 3000 | G113: =F116 -> 2910 | H113: 2807.166667 | I113: 2687.795833 | J113: 2546.92625 | K113: 2377.694854 | L113: 2036.165447 | M113: 1667.834128 | N113: 1259.634963 | O113: 784.9503031
B114: Capex | F114: =F$40/'Inputs - forecast'!F$4*'Inputs - actual'!F$5 -> 210 | G114: =G$40/'Inputs - forecast'!G$4*'Inputs - actual'!G$5 -> 220.5 | H114: =H$40/'Inputs - forecast'!H$4*'Inputs - actual'!H$5 -> 231.525 | I114: =I$40/'Inputs - forecast'!I$4*'Inputs - actual'!I$5 -> 243.10125 | J114: =J$40/'Inputs - forecast'!J$4*'Inputs - actual'!J$5 -> 255.2563125 | K114: =K$40/'Inputs - forecast'!K$7*'Inputs - actual'!K$5 -> 134.0095641 | L114: =L$40/'Inputs - forecast'!L$7*'Inputs - actual'!L$5 -> 140.7100423 | M114: =M$40/'Inputs - forecast'!M$7*'Inputs - actual'!M$5 -> 147.7455444 | N114: =N$40/'Inputs - forecast'!N$7*'Inputs - actual'!N$5 -> 155.1328216 | O114: =O$40/'Inputs - forecast'!O$7*'Inputs - actual'!O$5 -> 0
B115: Depreciation | F115: =-F113/F36 -> -300 | G115: -323.3333333 | H115: -350.8958333 | I115: -383.9708333 | J115: -424.4877083 | K115: -475.5389708 | L115: -509.0413618 | M115: -555.9447093 | N115: -629.8174815 | O115: -784.9503031
B116: Closing Asset Base | F116: =SUM(F113:F115) -> 2910 | G116: =SUM(G113:G115) -> 2807.166667 | H116: 2687.795833 | I116: 2546.92625 | J116: 2377.694854 | K116: 2036.165447 | L116: 1667.834128 | M116: 1259.634963 | N116: 784.9503031 | O116: 0
A118: Actual RAB
B119: Useful lives | F119: =F36 -> 10 | G119: =G36 -> 9 | H119: 8 | I119: 7 | J119: 6 | K119: 5 | L119: 4 | M119: 3 | N119: 2 | O119: 1
B121: Opening RAB | F121: =E125 -> 3000 | G121: =F125 -> 3011.79 | H121: 2998.575096 | I121: 2954.193705 | J121: 2870.729942 | K121: 2737.72003 | L121: 2406.755224 | M121: 2013.827464 | N121: 1540.911384 | O121: 954.6346933
B122: Revaluation | F122: =E125*(1-'Inputs - actual'!F20)*('Inputs - actual'!F4)+E125*'Inputs - actual'!F20*('Inputs - forecast'!F5) -> 113.1 | G122: =F125*(1-'Inputs - actual'!G20)*('Inputs - actual'!G4)+F125*'Inputs - actual'!G20*('Inputs - forecast'!G5) -> 113.544483 | H122: =G125*(1-'Inputs - actual'!H20)*('Inputs - actual'!H4)+G125*'Inputs - actual'!H20*('Inputs - forecast'!H5) -> 113.0462811 | I122: =H125*(1-'Inputs - actual'!I20)*('Inputs - actual'!I4)+H125*'Inputs - actual'!I20*('Inputs - forecast'!I5) -> 111.3731027 | J122: =I125*(1-'Inputs - actual'!J20)*('Inputs - actual'!J4)+I125*'Inputs - actual'!J20*('Inputs - forecast'!J5) -> 108.2265188 | K122: =J125*(1-'Inputs - actual'!K20)*('Inputs - actual'!K4)+J125*'Inputs - actual'!K20*('Inputs - forecast'!K5) -> 103.2120451 | L122: =K125*(1-'Inputs - actual'!L20)*('Inputs - actual'!L4)+K125*'Inputs - actual'!L20*('Inputs - forecast'!L5) -> 90.73467195 | M122: =L125*(1-'Inputs - actual'!M20)*('Inputs - actual'!M4)+L125*'Inputs - actual'!M20*('Inputs - forecast'!M5) -> 75.92129541 | N122: =M125*(1-'Inputs - actual'!N20)*('Inputs - actual'!N4)+M125*'Inputs - actual'!N20*('Inputs - forecast'!N5) -> 58.09235919 | O122: =N125*(1-'Inputs - actual'!O20)*('Inputs - actual'!O4)+N125*'Inputs - actual'!O20*('Inputs - forecast'!O5) -> 35.98972794
B123: Capex | F123: =F114 -> 210 | G123: =G114 -> 220.5 | H123: 231.525 | I123: 243.10125 | J123: 255.2563125 | K123: 134.0095641 | L123: 140.7100423 | M123: 147.7455444 | N123: 155.1328216 | O123: 0
B124: Depreciation | F124: =-SUM(F121:F122)/F119 -> -311.31 | G124: =-SUM(G121:G122)/G119 -> -347.259387 | H124: -388.9526721 | I124: -437.9381154 | J124: -496.4927435 | K124: -568.186415 | L124: -624.372474 | M124: -696.5829199 | N124: -799.5018717 | O124: -990.6244213
B125: Closing RAB | E125: =-E29 -> 3000 | F125: =SUM(F121:F124) -> 3011.79 | G125: 2998.575096 | H125: 2954.193705 | I125: 2870.729942 | J125: =SUM(J121:J124) -> 2737.72003 | K125: 2406.755224 | L125: 2013.827464 | M125: 1540.911384 | N125: 954.6346933 | O125: 0
A128: Actual tax
B129: Revenue | F129: =F92 -> 621.1791323 | G129: 652.2380889 | H129: 684.8499933 | I129: 719.092493 | J129: 755.0471177 | K129: 954.5360828 | L129: 1002.262887 | M129: 1052.376031 | N129: 1104.994833 | O129: 1160.244574
B130: Depreciation | F130: =F115 -> -300 | G130: =G115 -> -323.3333333 | H130: -350.8958333 | I130: -383.9708333 | J130: -424.4877083 | K130: -475.5389708 | L130: -509.0413618 | M130: -555.9447093 | N130: -629.8174815 | O130: -784.9503031
B131: Opex | F131: =F93 -> -105 | G131: -110.25 | H131: -115.7625 | I131: -121.550625 | J131: -127.6281563 | K131: -134.0095641 | L131: -140.7100423 | M131: -147.7455444 | N131: -155.1328216 | O131: -162.8894627
B132: Interest | F132: =F94 -> -61.5 | G132: -61.741695 | H132: -61.47078947 | I132: -60.56097095 | J132: -58.84996382 | K132: -56.12326062 | L132: -49.3384821 | M132: -41.28346302 | N132: -31.58868338 | O132: -19.57001121
B133: EBT | F133: =SUM(F129:F132) -> 154.6791323 | G133: =SUM(G129:G132) -> 156.9130606 | H133: 156.7208705 | I133: 153.0100637 | J133: 144.0812893 | K133: 288.8642873 | L133: 303.1730007 | M133: 307.4023146 | N133: 288.4558464 | O133: 192.8347975
B134: Calculated tax | F134: =-F133*'Inputs - forecast'!F29 -> -43.31015704 | G134: =-G133*'Inputs - forecast'!G29 -> -43.93565696 | H134: =-H133*'Inputs - forecast'!H29 -> -43.88184375 | I134: =-I133*'Inputs - forecast'!I29 -> -42.84281784 | J134: =-J133*'Inputs - forecast'!J29 -> -40.34276099 | K134: =-K133*'Inputs - forecast'!K29 -> -80.88200044 | L134: =-L133*'Inputs - forecast'!L29 -> -84.8884402 | M134: =-M133*'Inputs - forecast'!M29 -> -86.07264809 | N134: =-N133*'Inputs - forecast'!N29 -> -80.767637 | O134: =-O133*'Inputs - forecast'!O29 -> -53.99374331
B135: Deferred tax | F135: =IF(F134>0,F134+E135,0) -> 0 | G135: 0 | H135: 0 | I135: 0 | J135: 0 | K135: 0 | L135: 0 | M135: 0 | N135: 0 | O135: 0
B136: Tax | F136: =IF(F135>0,0,F134+E135) -> -43.31015704 | G136: -43.93565696 | H136: -43.88184375 | I136: -42.84281784 | J136: -40.34276099 | K136: -80.88200044 | L136: -84.8884402 | M136: -86.07264809 | N136: -80.767637 | O136: -53.99374331
A138: Tax adjustment | E138: NPV | P138: Note
B139: Tax | F139: =F136 -> -43.31015704 | G139: -43.93565696 | H139: -43.88184375 | I139: -42.84281784 | J139: -40.34276099 | K139: -80.88200044 | L139: -84.8884402 | M139: -86.07264809 | N139: -80.767637 | O139: -53.99374331
B140: NPV of actual tax | E140: =SUM(F140:O140) -> -359.5535997 | F140: =F139/'Inputs - actual'!F$28 -> -39.62396307 | G140: =G139/'Inputs - actual'!G$28 -> -36.77506323 | H140: =H139/'Inputs - actual'!H$28 -> -33.603872 | I140: =I139/'Inputs - actual'!I$28 -> -30.01584915 | J140: =J139/'Inputs - actual'!J$28 -> -25.85868143 | K140: =K139/'Inputs - actual'!K$28 -> -47.43083761 | L140: =L139/'Inputs - actual'!L$28 -> -45.54341742 | M140: =M139/'Inputs - actual'!M$28 -> -42.24841087 | N140: =N139/'Inputs - actual'!N$28 -> -36.27026613 | O140: =O139/'Inputs - actual'!O$28 -> -22.1832388
B142: Forecast tax adjusted for inflation | F142: =F$17/'Inputs - forecast'!F$4*'Inputs - actual'!F$5 -> -40.33309822 | G142: =G$17/'Inputs - forecast'!G$4*'Inputs - actual'!G$5 -> -38.02496622 | H142: =H$17/'Inputs - forecast'!H$4*'Inputs - actual'!H$5 -> -34.74904708 | I142: =I$17/'Inputs - forecast'!I$4*'Inputs - actual'!I$5 -> -30.15278725 | J142: =J$17/'Inputs - forecast'!J$4*'Inputs - actual'!J$5 -> -23.69802588 | K142: =K$17/'Inputs - forecast'!K$7*'Inputs - actual'!K$5 -> -81.20119854 | L142: =L$17/'Inputs - forecast'!L$7*'Inputs - actual'!L$5 -> -80.9352109 | M142: =M$17/'Inputs - forecast'!M$7*'Inputs - actual'!M$5 -> -77.41038274 | N142: =N$17/'Inputs - forecast'!N$7*'Inputs - actual'!N$5 -> -66.7406393 | O142: =O$17/'Inputs - forecast'!O$7*'Inputs - actual'!O$5 -> -33.28032328
B143: NPV of forecast tax adjusted for inflation | E143: =SUM(F143:O143) -> -304.3345293 | F143: =F142/'Inputs - actual'!F$28 -> -36.90028629 | G143: =G142/'Inputs - actual'!G$28 -> -31.82769153 | H143: =H142/'Inputs - actual'!H$28 -> -26.61015195 | I143: =I142/'Inputs - actual'!I$28 -> -21.12516307 | J143: =J142/'Inputs - actual'!J$28 -> -15.1898305 | K143: =K142/'Inputs - actual'!K$28 -> -47.61802182 | L143: =L142/'Inputs - actual'!L$28 -> -43.42247407 | M143: =M142/'Inputs - actual'!M$28 -> -37.99657299 | N143: =N142/'Inputs - actual'!N$28 -> -29.97117211 | O143: =O142/'Inputs - actual'!O$28 -> -13.67316495
B144: Difference | E144: =E143-E140 -> 55.21907041 | F144: =F142-F139 -> 2.977058824 | G144: =G142-G139 -> 5.91069074 | H144: 9.132796672 | I144: 12.6900306 | J144: 16.64473512 | K144: -0.3191981051 | L144: 3.953229305 | M144: 8.662265355 | N144: 14.02699769 | O144: 20.71342003
A146: Real revenue | F146: =F92/'Inputs - actual'!F$5 -> 591.5991736 | G146: =G92/'Inputs - actual'!G$5 -> 591.5991736 | H146: =H92/'Inputs - actual'!H$5 -> 591.5991736 | I146: =I92/'Inputs - actual'!I$5 -> 591.5991736 | J146: =J92/'Inputs - actual'!J$5 -> 591.5991736 | K146: =K92/'Inputs - actual'!K$5 -> 712.2895216 | L146: =L92/'Inputs - actual'!L$5 -> 712.2895216 | M146: =M92/'Inputs - actual'!M$5 -> 712.2895216 | N146: =N92/'Inputs - actual'!N$5 -> 712.2895216 | O146: =O92/'Inputs - actual'!O$5 -> 712.2895216
A148: Wash-up account | E148: NPV | F148: =F78 -> 2021-06-30 | G148: 2022-06-30 | H148: 2023-06-30 | I148: 2024-06-30 | J148: 2025-06-30 | K148: 2026-06-30 | L148: 2027-06-30 | M148: 2028-06-30 | N148: 2029-06-30 | O148: 2030-06-30 | P148: =EOMONTH(O148, 12) -> 2031-06-30 | Q148: =EOMONTH(P148, 12) -> 2032-06-30
B149: Wash-up drawdowns will usually have a 2 year delay from when the revenue is set to allow for actual CPI information to be released.
B151: Actual net allowable revenue | D151: ANAR | F151: =F92-F110 -> 621.1791323 | G151: 652.2380889 | H151: 684.8499933 | I151: 719.092493 | J151: 755.0471177 | K151: 954.5360828 | L151: 1002.262887 | M151: 1052.376031 | N151: 1104.994833 | O151: 1160.244574
B152: Forecast net allowable revenue | D152: FNAR | F152: =F13 -> 603.4311571 | G152: 615.4997802 | H152: 627.8097758 | I152: 640.3659713 | J152: 653.1732908 | K152: 927.2636233 | L152: 945.8088958 | M152: 964.7250737 | N152: 984.0195751 | O152: 1003.699967 | R152: Note
B153: Wash-up amount | F153: =F151-F152 -> 17.74797521 | G153: =G151-G152 -> 36.73830868 | H153: 57.04021752 | I153: 78.72652167 | J153: 101.8738269 | K153: 27.27245951 | L153: 56.45399118 | M153: 87.65095761 | N153: 120.9752577 | O153: 156.5446078
B155: Actual allowable revenue | D155: AAR | F155: =F151-F165 -> 621.1791323 | G155: 652.2380889 | H155: 704.8594021 | I155: 760.5119691 | J155: 819.3553564 | K155: 1043.293878 | L155: 1117.117399 | M155: 1083.123527 | N155: 1168.642149 | O155: 1259.063951
B156: Forecast allowable revenue | D156: FAR | F156: =F152-F165 -> 603.4311571 | G156: 615.4997802 | H156: 647.8191845 | I156: 681.7854474 | J156: 717.4815295 | K156: 1016.021419 | L156: 1060.663408 | M156: 995.4725692 | N156: 1047.666891 | O156: 1102.519343
B158: Actual revenue | D158: AR | F158: =F156 -> 603.4311571 | G158: =G156 -> 615.4997802 | H158: =H156 -> 647.8191845 | I158: =I156 -> 681.7854474 | J158: 717.4815295 | K158: 1016.021419 | L158: 1060.663408 | M158: 995.4725692 | N158: 1047.666891 | O158: 1102.519343 | R158: Note
B160: Cost of debt wash-up adjustment | D160: CODW | F160: =F110 -> 0 | G160: 0 | H160: 0 | I160: 0 | J160: 0 | K160: 0 | L160: 0 | M160: 0 | N160: 0 | O160: 0
B162: Wash-up account balance | D162: WAB
B163: Wash-up account opening balance | D163: WABt-1 | F163: 0 | G163: =F166 -> 17.74797521 | H163: 55.58310876 | I163: 96.04895368 | J163: 139.2918246 | K163: 185.4656476 | L163: 135.4420889 | M163: 85.41188869 | N163: 147.5938055 | O163: 214.0430445 | P163: 284.9961365 | Q163: 166.2190646
B164: Wash-up accrual | D164: WA | F164: =F155-F158+F160 -> 17.74797521 | G164: 36.73830868 | H164: 57.04021752 | I164: 78.72652167 | J164: 101.8738269 | K164: 27.27245951 | L164: 56.45399118 | M164: 87.65095761 | N164: 120.9752577 | O164: 156.5446078 | P164: 0 | Q164: 0
B165: Wash-up (draw-down)/ draw-up | D165: WD | F165: 0 | G165: 0 | H165: =-F164*(1+'Inputs - forecast'!H$31)^2 -> -20.00940872 | I165: =-G164*(1+'Inputs - forecast'!I$31)^2 -> -41.41947605 | J165: =-H164*(1+'Inputs - forecast'!J$31)^2 -> -64.30823869 | K165: =-I164*(1+'Inputs - forecast'!K$31)^2 -> -88.75779523 | L165: =-J164*(1+'Inputs - forecast'!L$31)^2 -> -114.8545125 | M165: =-K164*(1+'Inputs - forecast'!M$31)^2 -> -30.74749557 | N165: =-L164*(1+'Inputs - forecast'!N$31)^2 -> -63.64731583 | O165: =-M164*(1+'Inputs - forecast'!O$31)^2 -> -98.81937602 | P165: =-N164*(1+'Inputs - forecast'!P$31)^2 -> -136.3898331 | Q165: =-O164*(1+'Inputs - forecast'!Q$31)^2 -> -156.5446078 | R165: Note
B166: Wash-up account balance | D166: WABt | F166: =F163*(1+'Inputs - forecast'!F$31)+F164+F165 -> 17.74797521 | G166: =G163*(1+'Inputs - forecast'!G$31)+G164+G165 -> 55.58310876 | H166: =H163*(1+'Inputs - forecast'!H$31)+H164+H165 -> 96.04895368 | I166: =I163*(1+'Inputs - forecast'!I$31)+I164+I165 -> 139.2918246 | J166: =J163*(1+'Inputs - forecast'!J$31)+J164+J165 -> 185.4656476 | K166: =K163*(1+'Inputs - forecast'!K$31)+K164+K165 -> 135.4420889 | L166: =L163*(1+'Inputs - forecast'!L$31)+L164+L165 -> 85.41188869 | M166: =M163*(1+'Inputs - forecast'!M$31)+M164+M165 -> 147.5938055 | N166: =N163*(1+'Inputs - forecast'!N$31)+N164+N165 -> 214.0430445 | O166: =O163*(1+'Inputs - forecast'!O$31)+O164+O165 -> 284.9961365 | P166: =P163*(1+'Inputs - forecast'!P$31)+P164+P165 -> 166.2190646 | Q166: =Q163*(1+'Inputs - forecast'!Q$31)+Q164+Q165 -> 9.674456765
B168: Test NPV=0
B169: Confirm Net Present Value (NPV) of ANAR equal AR plus CODW plus the wash-up account balance remaining at end of model period
B170: Actual net allowable revenue | D170: ANAR | E170: =-NPV('Inputs - forecast'!$F$31,F170:O170) -> -6118.094066 | F170: =F151 -> 621.1791323 | G170: 652.2380889 | H170: 684.8499933 | I170: 719.092493 | J170: 755.0471177 | K170: 954.5360828 | L170: 1002.262887 | M170: 1052.376031 | N170: 1104.994833 | O170: 1160.244574
B171: Actual revenue | D171: AR | E171: =NPV('Inputs - forecast'!$F$31,F171:O171) -> 5961.631027 | F171: =F156 -> 603.4311571 | G171: 615.4997802 | H171: 647.8191845 | I171: 681.7854474 | J171: 717.4815295 | K171: 1016.021419 | L171: 1060.663408 | M171: 995.4725692 | N171: 1047.666891 | O171: 1102.519343
B172: Cost of debt wash-up adjustment | D172: CODW | E172: =-NPV('Inputs - forecast'!$F$31,F172:O172) -> 0 | F172: =F160 -> 0 | G172: 0 | H172: 0 | I172: 0 | J172: 0 | K172: 0 | L172: 0 | M172: 0 | N172: 0 | O172: 0
B173: Wash-up account balance | D173: WAB | E173: =NPV('Inputs - forecast'!$F$31,F173:O173) -> 156.4630394 | F173: 0 | G173: 0 | H173: 0 | I173: 0 | J173: 0 | K173: 0 | L173: 0 | M173: 0 | N173: 0 | O173: =O166 -> 284.9961365
D174: NPV | E174: =SUM(E170:E173) -> -9.663381206e-13
B176: Actual revenue per model | E176: =-NPV('Inputs - forecast'!$F$31,F176:O176) -> -6118.094066 | F176: =F92 -> 621.1791323 | G176: 652.2380889 | H176: 684.8499933 | I176: 719.092493 | J176: 755.0471177 | K176: 954.5360828 | L176: 1002.262887 | M176: 1052.376031 | N176: 1104.994833 | O176: 1160.244574
B177: Check to ANAR less CODW | F177: =F170+F172-F176 -> 0 | G177: =G170+G172-G176 -> 0 | H177: 0 | I177: 0 | J177: 0 | K177: 0 | L177: 0 | M177: 0 | N177: 0 | O177: 0
B179: FNAR + accrual | E179: =NPV('Inputs - forecast'!$F$31,F179:O179) -> 6118.094066 | F179: =F152+F164 -> 621.1791323 | G179: 652.2380889 | H179: 684.8499933 | I179: 719.092493 | J179: 755.0471177 | K179: 954.5360828 | L179: 1002.262887 | M179: 1052.376031 | N179: 1104.994833 | O179: 1160.244574 | R179: Note
B180: FNAR + draw-down | E180: =NPV('Inputs - forecast'!$F$31,F180:Q180) -> 5961.631027 | F180: =F152-F165 -> 603.4311571 | G180: 615.4997802 | H180: 647.8191845 | I180: 681.7854474 | J180: 717.4815295 | K180: 1016.021419 | L180: 1060.663408 | M180: 995.4725692 | N180: 1047.666891 | O180: 1102.519343 | R180: Note
B181: Closing WAB yet to receive | E181: =NPV('Inputs - forecast'!$F$31,F181:Q181) -> 156.4630394 | F181: 0 | G181: 0 | H181: 0 | I181: 0 | J181: 0 | K181: 0 | L181: 0 | M181: 0 | N181: 0 | O181: =+O166 -> 284.9961365
D182: NPV | E182: =E179-E180-E181 -> 0

Sheet 5 Blended CPI
A1: Calculation
A3: Analysis
A10: Calculation
A11: Forecast | D11: Return over forecast period | E11: ='Inputs - forecast'!E2 -> 2020-06-30 | F11: ='Inputs - forecast'!F2 -> 2021-06-30 | G11: ='Inputs - forecast'!G2 -> 2022-06-30 | H11: ='Inputs - forecast'!H2 -> 2023-06-30 | I11: ='Inputs - forecast'!I2 -> 2024-06-30 | J11: ='Inputs - forecast'!J2 -> 2025-06-30 | K11: ='Inputs - forecast'!K2 -> 2026-06-30 | L11: ='Inputs - forecast'!L2 -> 2027-06-30 | M11: ='Inputs - forecast'!M2 -> 2028-06-30 | N11: ='Inputs - forecast'!N2 -> 2029-06-30 | O11: ='Inputs - forecast'!O2 -> 2030-06-30
A12: Building blocks
B13: Revenue | F13: =K69 -> 603.4311571 | G13: =F13*(1+'Inputs - forecast'!G5) -> 615.4997802 | H13: =G13*(1+'Inputs - forecast'!H5) -> 627.8097758 | I13: =H13*(1+'Inputs - forecast'!I5) -> 640.3659713 | J13: =I13*(1+'Inputs - forecast'!J5) -> 653.1732908 | K13: =P76 -> 927.7021777 | L13: =K13*(1+'Inputs - forecast'!L5) -> 946.2562213 | M13: =L13*(1+'Inputs - forecast'!M5) -> 965.1813457 | N13: =M13*(1+'Inputs - forecast'!N5) -> 984.4849726 | O13: =N13*(1+'Inputs - forecast'!O5) -> 1004.174672
B14: Return on debt | F14: =-SUM(F$38)*'Inputs - forecast'!F$28*'Inputs - forecast'!F$26 -> -61.5 | G14: =-SUM(G$38)*'Inputs - forecast'!G$28*'Inputs - forecast'!G$26 -> -60.639 | H14: =-SUM(H$38)*'Inputs - forecast'!H$28*'Inputs - forecast'!H$26 -> -59.245 | I14: =-SUM(I$38)*'Inputs - forecast'!I$28*'Inputs - forecast'!I$26 -> -57.2271153 | J14: =-SUM(J$38)*'Inputs - forecast'!J$28*'Inputs - forecast'!J$26 -> -54.47082123 | K14: =-SUM(K$38)*'Inputs - forecast'!K$28*'Inputs - forecast'!K$26 -> -56.15187528 | L14: =-SUM(L$38)*'Inputs - forecast'!L$28*'Inputs - forecast'!L$26 -> -48.48863498 | M14: =-SUM(M$38)*'Inputs - forecast'!M$28*'Inputs - forecast'!M$26 -> -39.8158846 | N14: =-SUM(N$38)*'Inputs - forecast'!N$28*'Inputs - forecast'!N$26 -> -29.85132195 | O14: =-SUM(O$38)*'Inputs - forecast'!O$28*'Inputs - forecast'!O$26 -> -18.05622502
B15: Return on equity | F15: =-SUM(F$38)*(1-'Inputs - forecast'!F$28)*'Inputs - forecast'!F$25 -> -123.9 | G15: =-SUM(G$38)*(1-'Inputs - forecast'!G$28)*'Inputs - forecast'!G$25 -> -122.1654 | H15: =-SUM(H$38)*(1-'Inputs - forecast'!H$28)*'Inputs - forecast'!H$25 -> -119.357 | I15: =-SUM(I$38)*(1-'Inputs - forecast'!I$28)*'Inputs - forecast'!I$25 -> -115.2917006 | J15: =-SUM(J$38)*(1-'Inputs - forecast'!J$28)*'Inputs - forecast'!J$25 -> -109.7387764 | K15: =-SUM(K$38)*(1-'Inputs - forecast'!K$28)*'Inputs - forecast'!K$25 -> -113.1254853 | L15: =-SUM(L$38)*(1-'Inputs - forecast'!L$28)*'Inputs - forecast'!L$25 -> -97.68685973 | M15: =-SUM(M$38)*(1-'Inputs - forecast'!M$28)*'Inputs - forecast'!M$25 -> -80.21444068 | N15: =-SUM(N$38)*(1-'Inputs - forecast'!N$28)*'Inputs - forecast'!N$25 -> -60.13949251 | O15: =-SUM(O$38)*(1-'Inputs - forecast'!O$28)*'Inputs - forecast'!O$25 -> -36.37668748
B16: Revaluation | F16: =F39 -> 60 | G16: =G39 -> 59.16 | H16: 57.8 | I16: 55.831332 | J16: 53.14226462 | K16: 54.78231735 | L16: 47.30598534 | M16: 38.84476546 | N16: 29.12324092 | O16: 17.61582929
B17: Tax | F17: =F60 -> -39.18072398 | G17: -35.8831518 | H17: -31.85484656 | I17: -26.85164855 | J17: -20.50059815 | K17: -78.99594744 | L17: -76.49512453 | M17: -71.08573272 | N17: -59.56075883 | O17: -28.92119858
B18: Opex | F18: =-'Inputs - forecast'!F16 -> -102 | G18: =-'Inputs - forecast'!G16 -> -104.04 | H18: =-'Inputs - forecast'!H16 -> -106.1208 | I18: =-'Inputs - forecast'!I16 -> -108.243216 | J18: =-'Inputs - forecast'!J16 -> -110.4080803 | K18: =-'Inputs - forecast'!K16 -> -130.1807194 | L18: =-'Inputs - forecast'!L16 -> -132.7843338 | M18: =-'Inputs - forecast'!M16 -> -135.4400204 | N18: =-'Inputs - forecast'!N16 -> -138.1488208 | O18: =-'Inputs - forecast'!O16 -> -140.9117973
B19: Depreciation | F19: =F41 -> -306 | G19: -335.24 | H19: -368.475 | I19: -406.7711331 | J19: -451.7092492 | K19: -558.7796369 | L19: -603.1513131 | M19: -660.3610129 | N19: -742.6426435 | O19: -898.4072937
B20: Net revenue | F20: =SUM(F13:F19) -> 30.8504331 | G20: 16.69222843 | H20: 0.5571292615 | I20: -18.18751023 | J20: -40.51197 | K20: 45.25083072 | L20: 34.9559405 | M20: 17.10901987 | N20: -16.73482412 | O20: -100.8827007
B21: Present value | F21: =F20/'Inputs - forecast'!F$36 -> 29.05484375 | G21: =G20/'Inputs - forecast'!G$36 -> 14.80569768 | H21: =H20/'Inputs - forecast'!H$36 -> 0.4654015293 | I21: =I20/'Inputs - forecast'!I$36 -> -14.3087721 | J21: =J20/'Inputs - forecast'!J$36 -> -30.01717087 | K21: =K20/'Inputs - forecast'!K$36 -> 31.57695371 | L21: =L20/'Inputs - forecast'!L$36 -> 22.97322385 | M21: =M20/'Inputs - forecast'!M$36 -> 10.58969282 | N21: =N20/'Inputs - forecast'!N$36 -> -9.75521091 | O21: =O20/'Inputs - forecast'!O$36 -> -55.38465947
B22: Sum of present values | O22: =SUM(F21:O21) -> -1.399769189e-12
A24: Regulatory cashflows
B25: Revenue | F25: =F13 -> 603.4311571 | G25: 615.4997802 | H25: 627.8097758 | I25: 640.3659713 | J25: 653.1732908 | K25: 927.7021777 | L25: 946.2562213 | M25: 965.1813457 | N25: 984.4849726 | O25: 1004.174672
B26: Opex | F26: =-'Inputs - forecast'!F$16 -> -102 | G26: =-'Inputs - forecast'!G$16 -> -104.04 | H26: =-'Inputs - forecast'!H$16 -> -106.1208 | I26: =-'Inputs - forecast'!I$16 -> -108.243216 | J26: =-'Inputs - forecast'!J$16 -> -110.4080803 | K26: =-'Inputs - forecast'!K$16 -> -130.1807194 | L26: =-'Inputs - forecast'!L$16 -> -132.7843338 | M26: =-'Inputs - forecast'!M$16 -> -135.4400204 | N26: =-'Inputs - forecast'!N$16 -> -138.1488208 | O26: =-'Inputs - forecast'!O$16 -> -140.9117973
B27: Tax | F27: =F17 -> -39.18072398 | G27: -35.8831518 | H27: -31.85484656 | I27: -26.85164855 | J27: -20.50059815 | K27: -78.99594744 | L27: -76.49512453 | M27: -71.08573272 | N27: -59.56075883 | O27: -28.92119858
B28: Capex | F28: =-'Inputs - forecast'!F$17 -> -204 | G28: =-'Inputs - forecast'!G$17 -> -208.08 | H28: =-'Inputs - forecast'!H$17 -> -212.2416 | I28: =-'Inputs - forecast'!I$17 -> -216.486432 | J28: =-'Inputs - forecast'!J$17 -> -220.8161606 | K28: =-'Inputs - forecast'!K$17 -> -130.1807194 | L28: =-'Inputs - forecast'!L$17 -> -132.7843338 | M28: =-'Inputs - forecast'!M$17 -> -135.4400204 | N28: =-'Inputs - forecast'!N$17 -> -138.1488208 | O28: =-'Inputs - forecast'!O$17 -> 0
B29: Opening RAB | E29: =-'Inputs - forecast'!E$18 -> -3000
B30: Closing RAB | J30: =-(J44+J45-J42) -> -259.7534605 | O30: =O42 -> 0
B31: Sum | E31: =SUM(E25:E30) -> -3000 | F31: 258.2504331 | G31: 267.4966284 | H31: 277.5925293 | I31: 288.7846748 | J31: 41.69499119 | K31: 588.3447915 | L31: 604.1924292 | M31: 623.2155721 | N31: 648.6265721 | O31: 834.3416762
B32: Present value | E32: =E31/'Inputs - forecast'!E$36 -> -3000 | F32: =F31/'Inputs - forecast'!F$36 -> 243.2194699 | G32: =G31/'Inputs - forecast'!G$36 -> 237.2645587 | H32: =H31/'Inputs - forecast'!H$36 -> 231.8887134 | I32: =I31/'Inputs - forecast'!I$36 -> 227.1973484 | J32: =J31/'Inputs - forecast'!J$36 -> 30.89372536 | K32: =K31/'Inputs - forecast'!K$36 -> 410.5590096 | L32: =L31/'Inputs - forecast'!L$36 -> 397.0783715 | M32: =M31/'Inputs - forecast'!M$36 -> 385.7416451 | N32: =N31/'Inputs - forecast'!N$36 -> 378.103108 | O32: =O31/'Inputs - forecast'!O$36 -> 458.0540501
B33: Sum of present values | O33: =SUM(E32:O32) -> -3.0127012e-12
A35: Regulatory Asset Base
B36: Useful lives | F36: 10 | G36: =F36-1 -> 9 | H36: 8 | I36: 7 | J36: 6 | K36: 5 | L36: 4 | M36: 3 | N36: 2 | O36: 1
B38: Opening RAB | F38: =E42 -> 3000 | G38: =F42 -> 2958 | H38: 2890 | I38: 2791.5666 | J38: 2657.113231 | K38: =J44+J45 -> 2739.115867 | L38: =K42 -> 2365.299267 | M38: =L42 -> 1942.238273 | N38: 1456.162046 | O38: 880.7914644
B39: Revaluation | F39: =F38*('Inputs - forecast'!F$5) -> 60 | G39: =G38*('Inputs - forecast'!G$5) -> 59.16 | H39: =H38*('Inputs - forecast'!H$5) -> 57.8 | I39: =I38*('Inputs - forecast'!I$5) -> 55.831332 | J39: =J38*('Inputs - forecast'!J$5) -> 53.14226462 | K39: =K38*('Inputs - forecast'!K$5) -> 54.78231735 | L39: =L38*('Inputs - forecast'!L$5) -> 47.30598534 | M39: =M38*('Inputs - forecast'!M$5) -> 38.84476546 | N39: =N38*('Inputs - forecast'!N$5) -> 29.12324092 | O39: =O38*('Inputs - forecast'!O$5) -> 17.61582929
B40: Capex | F40: =-F28 -> 204 | G40: 208.08 | H40: 212.2416 | I40: 216.486432 | J40: 220.8161606 | K40: 130.1807194 | L40: 132.7843338 | M40: 135.4400204 | N40: 138.1488208 | O40: 0
B41: Depreciation | F41: =-SUM(F38:F39)/F36 -> -306 | G41: =-SUM(G38:G39)/G36 -> -335.24 | H41: -368.475 | I41: -406.7711331 | J41: -451.7092492 | K41: -558.7796369 | L41: -603.1513131 | M41: -660.3610129 | N41: -742.6426435 | O41: -898.4072937
B42: Closing RAB | E42: =-E29 -> 3000 | F42: =SUM(F38:F41) -> 2958 | G42: 2890 | H42: 2791.5666 | I42: 2657.113231 | J42: 2479.362407 | K42: 2365.299267 | L42: 1942.238273 | M42: 1456.162046 | N42: 880.7914644 | O42: 0
B44: RAB adjusted for actual inflation | J44: =J42/'Inputs - actual'!J40*'Inputs - actual'!J39 -> 2703.860355 | P44: Note
B45: Difference to actual RAB | J45: =J125-J44 -> 35.25551219 | P45: Note
A48: Tax asset base | F48: =F36 -> 10 | G48: 9 | H48: 8 | I48: 7 | J48: 6 | K48: 5 | L48: 4 | M48: 3 | N48: 2 | O48: 1
B49: Opening balance | F49: =E52 -> 3000 | G49: 2904 | H49: 2789.413333 | I49: 2652.978267 | J49: 2490.467803 | K49: 2296.205997 | L49: 1967.145517 | M49: 1608.143471 | N49: 1207.535668 | O49: 741.9166549
B50: Capex | F50: =-F28 -> 204 | G50: 208.08 | H50: 212.2416 | I50: 216.486432 | J50: 220.8161606 | K50: 130.1807194 | L50: 132.7843338 | M50: 135.4400204 | N50: 138.1488208 | O50: 0
B51: Depreciation | F51: =-F49/F48 -> -300 | G51: -322.6666667 | H51: -348.6766667 | I51: -378.9968952 | J51: -415.0779672 | K51: -459.2411994 | L51: -491.7863792 | M51: -536.0478238 | N51: -603.767834 | O51: -741.9166549
B52: Closing balance | E52: =E42 -> 3000 | F52: =SUM(F49:F51) -> 2904 | G52: 2789.413333 | H52: 2652.978267 | I52: 2490.467803 | J52: 2296.205997 | K52: 1967.145517 | L52: 1608.143471 | M52: 1207.535668 | N52: 741.9166549 | O52: 0
A54: Regulatory tax
B55: Revenue | F55: =F13 -> 603.4311571 | G55: 615.4997802 | H55: 627.8097758 | I55: 640.3659713 | J55: 653.1732908 | K55: 927.7021777 | L55: 946.2562213 | M55: 965.1813457 | N55: 984.4849726 | O55: 1004.174672
B56: Depreciation | F56: =F51 -> -300 | G56: -322.6666667 | H56: -348.6766667 | I56: -378.9968952 | J56: -415.0779672 | K56: -459.2411994 | L56: -491.7863792 | M56: -536.0478238 | N56: -603.767834 | O56: -741.9166549
B57: Opex | F57: =F18 -> -102 | G57: -104.04 | H57: -106.1208 | I57: -108.243216 | J57: -110.4080803 | K57: -130.1807194 | L57: -132.7843338 | M57: -135.4400204 | N57: -138.1488208 | O57: -140.9117973
B58: Notional interest | F58: =-'Inputs - forecast'!F$26*'Inputs - forecast'!F28*F38 -> -61.5 | G58: =-'Inputs - forecast'!G$26*'Inputs - forecast'!G28*G38 -> -60.639 | H58: =-'Inputs - forecast'!H$26*'Inputs - forecast'!H28*H38 -> -59.245 | I58: =-'Inputs - forecast'!I$26*'Inputs - forecast'!I28*I38 -> -57.2271153 | J58: =-'Inputs - forecast'!J$26*'Inputs - forecast'!J28*J38 -> -54.47082123 | K58: =-'Inputs - forecast'!K$26*'Inputs - forecast'!K28*K38 -> -56.15187528 | L58: =-'Inputs - forecast'!L$26*'Inputs - forecast'!L28*L38 -> -48.48863498 | M58: =-'Inputs - forecast'!M$26*'Inputs - forecast'!M28*M38 -> -39.8158846 | N58: =-'Inputs - forecast'!N$26*'Inputs - forecast'!N28*N38 -> -29.85132195 | O58: =-'Inputs - forecast'!O$26*'Inputs - forecast'!O28*O38 -> -18.05622502
B59: EBT | F59: =SUM(F55:F58) -> 139.9311571 | G59: 128.1541136 | H59: 113.7673092 | I59: 95.8987448 | J59: 73.21642198 | K59: 282.1283837 | L59: 273.1968733 | M59: 253.8776169 | N59: 212.7169958 | O59: 103.2899949
B60: Calculated tax | F60: =-F59*'Inputs - forecast'!F29 -> -39.18072398 | G60: =-G59*'Inputs - forecast'!G29 -> -35.8831518 | H60: =-H59*'Inputs - forecast'!H29 -> -31.85484656 | I60: =-I59*'Inputs - forecast'!I29 -> -26.85164855 | J60: =-J59*'Inputs - forecast'!J29 -> -20.50059815 | K60: =-K59*'Inputs - forecast'!K29 -> -78.99594744 | L60: =-L59*'Inputs - forecast'!L29 -> -76.49512453 | M60: =-M59*'Inputs - forecast'!M29 -> -71.08573272 | N60: =-N59*'Inputs - forecast'!N29 -> -59.56075883 | O60: =-O59*'Inputs - forecast'!O29 -> -28.92119858
B61: Deferred tax | F61: =IF(F60>0,F60,0) -> 0 | G61: =IF(G60>0,G60,0) -> 0 | H61: =IF(H60>0,H60,0) -> 0 | I61: =IF(I60>0,I60,0) -> 0 | J61: =IF(J60>0,J60,0) -> 0 | K61: 0 | L61: 0 | M61: 0 | N61: 0 | O61: 0
B62: Tax | F62: =IF(F61>0,0,F60+E61) -> -39.18072398 | G62: -35.8831518 | H62: -31.85484656 | I62: -26.85164855 | J62: -20.50059815 | K62: -78.99594744 | L62: -76.49512453 | M62: -71.08573272 | N62: -59.56075883 | O62: -28.92119858
A64: Reg Period 1
A65: Calculation of revenue | K65: Sum
B66: Present value of revenue | F66: =F13/'Inputs - forecast'!F$36 -> 568.3096224 | G66: =G13/'Inputs - forecast'!G$36 -> 545.9369136 | H66: =H13/'Inputs - forecast'!H$36 -> 524.4449537 | I66: =I13/'Inputs - forecast'!I$36 -> 503.7990703 | J66: =J13/'Inputs - forecast'!J$36 -> 483.9659556 | K66: =SUM(F66:J66) -> 2626.456516
B67: Present value of cost | F67: =SUM(F14:F19)/'Inputs - forecast'!F$36 -> -539.2547787 | G67: =SUM(G14:G19)/'Inputs - forecast'!G$36 -> -531.1312159 | H67: =SUM(H14:H19)/'Inputs - forecast'!H$36 -> -523.9795522 | I67: =SUM(I14:I19)/'Inputs - forecast'!I$36 -> -518.1078424 | J67: =SUM(J14:J19)/'Inputs - forecast'!J$36 -> -513.9831265 | K67: =SUM(F67:J67) -> -2626.456516
B68: Difference | K68: =SUM(K66:K67) -> 0
B69: Revenue | K69: 603.4311571
A71: Reg Period 2
A72: Calculation of revenue | P72: Sum
B73: Present value of revenue | K73: =K13/'Inputs - forecast'!K$36 -> 647.3695235 | L73: =L13/'Inputs - forecast'!L$36 -> 621.8844546 | M73: =M13/'Inputs - forecast'!M$36 -> 597.4026594 | N73: =N13/'Inputs - forecast'!N$36 -> 573.8846417 | O73: =O13/'Inputs - forecast'!O$36 -> 551.2924605 | P73: =SUM(K73:O73) -> 2991.83374
B74: Present value of cost | K74: =SUM(K14:K19)/'Inputs - forecast'!K$36 -> -615.7925698 | L74: =SUM(L14:L19)/'Inputs - forecast'!L$36 -> -598.9112308 | M74: =SUM(M14:M19)/'Inputs - forecast'!M$36 -> -586.8129666 | N74: =SUM(N14:N19)/'Inputs - forecast'!N$36 -> -583.6398526 | O74: =SUM(O14:O19)/'Inputs - forecast'!O$36 -> -606.67712 | P74: =SUM(K74:O74) -> -2991.83374
B75: Difference | P75: =SUM(P73:P74) -> 0
B76: Revenue | P76: 927.7021777
A78: Actual | D78: =D11 -> Return over forecast period | E78: =E11 -> 2020-06-30 | F78: 2021-06-30 | G78: 2022-06-30 | H78: 2023-06-30 | I78: 2024-06-30 | J78: 2025-06-30 | K78: 2026-06-30 | L78: 2027-06-30 | M78: 2028-06-30 | N78: 2029-06-30 | O78: 2030-06-30
A79: Actual regulatory cashflows
B80: Revenue (no delay in wash-ups) | F80: =F$13/'Inputs - actual'!F40*'Inputs - actual'!F39 -F81+(F$18/'Inputs - actual'!F40*'Inputs - actual'!F39) -F82+(F$28/'Inputs - actual'!F40*'Inputs - actual'!F39) -> 617.6323218 | G80: =G$13/'Inputs - actual'!G40*'Inputs - actual'!G39 -G81+(G$18/'Inputs - actual'!G40*'Inputs - actual'!G39) -G82+(G$28/'Inputs - actual'!G40*'Inputs - actual'!G39) -> 644.8329279 | H80: =H$13/'Inputs - actual'!H40*'Inputs - actual'!H39 -H81+(H$18/'Inputs - actual'!H40*'Inputs - actual'!H39) -H82+(H$28/'Inputs - actual'!H40*'Inputs - actual'!H39) -> 673.2542871 | I80: =I$13/'Inputs - actual'!I40*'Inputs - actual'!I39 -I81+(I$18/'Inputs - actual'!I40*'Inputs - actual'!I39) -I82+(I$28/'Inputs - actual'!I40*'Inputs - actual'!I39) -> 702.9521671 | J80: =J$13/'Inputs - actual'!J40*'Inputs - actual'!J39 -J81+(J$18/'Inputs - actual'!J40*'Inputs - actual'!J39) -J82+(J$28/'Inputs - actual'!J40*'Inputs - actual'!J39) -> 733.984925 | K80: =K$13/'Inputs - actual'!K40*'Inputs - actual'!K39 -K81+(K$18/'Inputs - actual'!K40*'Inputs - actual'!K39) -K82+(K$28/'Inputs - actual'!K40*'Inputs - actual'!K39) -> 947.0296235 | L80: =L$13/'Inputs - actual'!L40*'Inputs - actual'!L39 -L81+(L$18/'Inputs - actual'!L40*'Inputs - actual'!L39) -L82+(L$28/'Inputs - actual'!L40*'Inputs - actual'!L39) -> 986.1220911 | M80: =M$13/'Inputs - actual'!M40*'Inputs - actual'!M39 -M81+(M$18/'Inputs - actual'!M40*'Inputs - actual'!M39) -M82+(M$28/'Inputs - actual'!M40*'Inputs - actual'!M39) -> 1026.856688 | N80: =N$13/'Inputs - actual'!N40*'Inputs - actual'!N39 -N81+(N$18/'Inputs - actual'!N40*'Inputs - actual'!N39) -N82+(N$28/'Inputs - actual'!N40*'Inputs - actual'!N39) -> 1069.303698 | O80: =O$13/'Inputs - actual'!O40*'Inputs - actual'!O39 -O81+(O$18/'Inputs - actual'!O40*'Inputs - actual'!O39) -O82+(O$28/'Inputs - actual'!O40*'Inputs - actual'!O39) -> 1104.317895 | P80: Note
B81: Opex | F81: =F$18/'Inputs - forecast'!F7*'Inputs - actual'!F5 -> -105 | G81: =G$18/'Inputs - forecast'!G7*'Inputs - actual'!G5 -> -110.25 | H81: =H$18/'Inputs - forecast'!H7*'Inputs - actual'!H5 -> -115.7625 | I81: =I$18/'Inputs - forecast'!I7*'Inputs - actual'!I5 -> -121.550625 | J81: =J$18/'Inputs - forecast'!J7*'Inputs - actual'!J5 -> -127.6281563 | K81: =K$18/'Inputs - forecast'!K7*'Inputs - actual'!K5 -> -134.0095641 | L81: =L$18/'Inputs - forecast'!L7*'Inputs - actual'!L5 -> -140.7100423 | M81: =M$18/'Inputs - forecast'!M7*'Inputs - actual'!M5 -> -147.7455444 | N81: =N$18/'Inputs - forecast'!N7*'Inputs - actual'!N5 -> -155.1328216 | O81: =O$18/'Inputs - forecast'!O7*'Inputs - actual'!O5 -> -162.8894627
B82: Capex | F82: =-F114 -> -210 | G82: =-G114 -> -220.5 | H82: -231.525 | I82: -243.10125 | J82: -255.2563125 | K82: -134.0095641 | L82: -140.7100423 | M82: -147.7455444 | N82: -155.1328216 | O82: 0
B83: Tax | F83: =F136+F144 -> -39.86587547 | G83: =G136+G144 -> -37.14909863 | H83: -33.55537257 | I83: -28.77970587 | J83: -22.35685854 | K83: -80.37734588 | L83: -79.19384959 | M83: -74.88054419 | N83: -63.83746299 | O83: -31.53991609
B84: Gain on RAB | J84: =-J45 -> -35.25551219 | P84: Note
B85: Nominal IRR | D85: =IRR(E85:O85,0.05) -> 0.08036764706 | E85: =-E42+SUM(E80:E83) -> -3000 | F85: =SUM(F80:F84) -> 262.7664464 | G85: 276.9338293 | H85: 292.4114145 | I85: 309.5205862 | J85: =SUM(J80:J84) -> 293.4880855 | K85: =SUM(K80:K84) -> 598.6331495 | L85: 625.508157 | M85: 656.4850555 | N85: 695.2005919 | O85: 909.888516
B88: Real IRR | D88: =IRR(E88:O88,0.05) -> 0.04098039216 | E88: =E85/'Inputs - actual'!E44 -> -3000 | F88: =F85/'Inputs - actual'!F39 -> 253.1866991 | G88: =G85/'Inputs - actual'!G39 -> 257.1094083 | H88: =H85/'Inputs - actual'!H39 -> 261.5816402 | I88: =I85/'Inputs - actual'!I39 -> 266.7924009 | J88: =J85/'Inputs - actual'!J39 -> 243.7504187 | K88: =K85/'Inputs - actual'!K39 -> 479.0563889 | L88: =L85/'Inputs - actual'!L39 -> 482.3139582 | M88: =M85/'Inputs - actual'!M39 -> 487.7448317 | N88: =N85/'Inputs - actual'!N39 -> 497.6785745 | O88: =O85/'Inputs - actual'!O39 -> 627.6217332
B89: check to inputs | D89: =D88-'Inputs - actual'!F42 -> -2.136069099e-13
A91: Actual return (building blocks)
B92: Revenue | F92: =F80 -> 617.6323218 | G92: =G80 -> 644.8329279 | H92: 673.2542871 | I92: 702.9521671 | J92: 733.984925 | K92: 947.0296235 | L92: 986.1220911 | M92: 1026.856688 | N92: 1069.303698 | O92: 1104.317895
B93: Opex | F93: =F81 -> -105 | G93: =G81 -> -110.25 | H93: -115.7625 | I93: -121.550625 | J93: -127.6281563 | K93: -134.0095641 | L93: -140.7100423 | M93: -147.7455444 | N93: -155.1328216 | O93: -162.8894627
B94: Return on debt (fixed) | F94: =-F121*'Inputs - forecast'!F$26*('Inputs - actual'!F$20) -> -61.5 | G94: =-G121*'Inputs - forecast'!G$26*('Inputs - actual'!G$20) -> -61.74926092 | H94: =-H121*'Inputs - forecast'!H$26*('Inputs - actual'!H$20) -> -61.48527108 | I94: =-I121*'Inputs - forecast'!I$26*('Inputs - actual'!I$20) -> -60.58147407 | J94: =-J121*'Inputs - forecast'!J$26*('Inputs - actual'!J$20) -> -58.87529849 | K94: =-K121*'Inputs - forecast'!K$26*('Inputs - actual'!K$20) -> -56.15187528 | L94: =-L121*'Inputs - forecast'!L$26*('Inputs - actual'!L$20) -> -49.36837727 | M94: =-M121*'Inputs - forecast'!M$26*('Inputs - actual'!M$20) -> -41.3117909 | N94: =-N121*'Inputs - forecast'!N$26*('Inputs - actual'!N$20) -> -31.61204528 | O94: =-O121*'Inputs - forecast'!O$26*('Inputs - actual'!O$20) -> -19.5842931
B95: Return on equity | F95: =-F121*'Inputs - actual'!F$18*(1-'Inputs - actual'!F$20) -> -179.6029412 | G95: =-G121*'Inputs - actual'!G$18*(1-'Inputs - actual'!G$20) -> -180.3308761 | H95: =-H121*'Inputs - actual'!H$18*(1-'Inputs - actual'!H$20) -> -179.5599272 | I95: =-I121*'Inputs - actual'!I$18*(1-'Inputs - actual'!I$20) -> -176.9205028 | J95: =-J121*'Inputs - actual'!J$18*(1-'Inputs - actual'!J$20) -> -171.9378337 | K95: =-K121*'Inputs - actual'!K$18*(1-'Inputs - actual'!K$20) -> -163.984422 | L95: =-L121*'Inputs - actual'!L$18*(1-'Inputs - actual'!L$20) -> -144.1740774 | M95: =-M121*'Inputs - actual'!M$18*(1-'Inputs - actual'!M$20) -> -120.6458399 | N95: =-N121*'Inputs - actual'!N$18*(1-'Inputs - actual'!N$20) -> -92.31896436 | O95: =-O121*'Inputs - actual'!O$18*(1-'Inputs - actual'!O$20) -> -57.19344132
B96: Revaluation | F96: =F122 -> 113.5100772 | G96: =G122 -> 113.9701362 | H96: 113.4828922 | I96: 111.814761 | J96: 108.6656858 | K96: 103.6390845 | L96: 91.11883442 | M96: 76.24885489 | N96: 58.34610896 | O96: 36.14657922
B97: Depreciation | F97: =F124 -> -311.3510077 | G97: =G124 -> -347.3476895 | H97: -389.095551 | I97: -438.1440883 | J97: -496.771911 | K97: -568.5509904 | L97: -624.83309 | M97: -697.1527224 | N97: -800.198549 | O97: -991.4779499
B98: Tax | F98: =F136+F144 -> -39.86587547 | G98: =G136+G144 -> -37.14909863 | H98: -33.55537257 | I98: -28.77970587 | J98: -22.35685854 | K98: -80.37734588 | L98: -79.19384959 | M98: -74.88054419 | N98: -63.83746299 | O98: -31.53991609
B99: Gain on RAB | J99: =J84 -> -35.25551219 | P99: Note
B100: Nominal return | F100: =SUM(F92:F99) -> 33.8225747 | G100: 21.97613898 | H100: 7.278557294 | I100: -11.20946801 | J100: =SUM(J92:J99) -> -70.17495933 | K100: =SUM(K92:K99) -> 47.59451041 | L100: 38.96148903 | M100: 21.36910159 | N100: -15.45003624 | O100: -122.2205891
B101: Present value | D101: =SUM(E101:O101) -> -3.886668765e-12 | F101: =F100/'Inputs - actual'!F$36 -> 31.30654161 | G101: =G100/'Inputs - actual'!G$36 -> 18.82817614 | H101: =H100/'Inputs - actual'!H$36 -> 5.772056776 | I101: =I100/'Inputs - actual'!I$36 -> -8.22808408 | J101: =J100/'Inputs - actual'!J$36 -> -47.67869045 | K101: =K100/'Inputs - actual'!K$36 -> 29.93142836 | L101: =L100/'Inputs - actual'!L$36 -> 22.67955635 | M101: =M100/'Inputs - actual'!M$36 -> 11.51366799 | N101: =N100/'Inputs - actual'!N$36 -> -7.705225803 | O101: =O100/'Inputs - actual'!O$36 -> -56.4194269
D102: =IRR(F100:O100,0.09) -> 0.08036764706
B103: Real return | F103: =F100/'Inputs - actual'!F39 -> 32.58949597 | G103: =G100/'Inputs - actual'!G39 -> 20.40296812 | H103: =H100/'Inputs - actual'!H39 -> 6.511158119 | I103: =I100/'Inputs - actual'!I39 -> -9.662041932 | J103: =J100/'Inputs - actual'!J39 -> -58.28235135 | K103: =K100/'Inputs - actual'!K39 -> 38.08752373 | L103: =L100/'Inputs - actual'!L39 -> 30.0422461 | M103: =M100/'Inputs - actual'!M39 -> 15.87647544 | N103: =N100/'Inputs - actual'!N39 -> -11.06033582 | O103: =O100/'Inputs - actual'!O39 -> -84.30516112
B104: Present value | D104: =SUM(E104:O104) -> -3.922195901e-12 | F104: =F103/'Inputs - actual'!F$44 -> 31.30654161 | G104: =G103/'Inputs - actual'!G$44 -> 18.82817614 | H104: =H103/'Inputs - actual'!H$44 -> 5.772056776 | I104: =I103/'Inputs - actual'!I$44 -> -8.22808408 | J104: =J103/'Inputs - actual'!J$44 -> -47.67869045 | K104: =K103/'Inputs - actual'!K$44 -> 29.93142836 | L104: =L103/'Inputs - actual'!L$44 -> 22.67955635 | M104: =M103/'Inputs - actual'!M$44 -> 11.51366799 | N104: =N103/'Inputs - actual'!N$44 -> -7.705225803 | O104: =O103/'Inputs - actual'!O$44 -> -56.4194269
B106: Actual return on RAB | F106: =-(F94+F95)/F121 -> 0.08036764706 | G106: 0.08036764706 | H106: 0.08036764706 | I106: 0.08036764706 | J106: 0.08036764706 | K106: 0.08036764706 | L106: 0.08036764706 | M106: 0.08036764706 | N106: 0.08036764706 | O106: 0.08036764706
B107: Actual Rab revaluation | F107: =F96/F121 -> 0.03783669241 | G107: 0.03783669241 | H107: 0.03783669241 | I107: 0.03783669241 | J107: 0.03783669241 | K107: 0.03783669241 | L107: 0.03783669241 | M107: 0.03783669241 | N107: 0.03783669241 | O107: 0.03783669241
B108: Annual change in revenue | G108: =G92/F92-1 -> 0.04404012729 | H108: 0.04407553942 | I108: 0.04411094089 | J108: 0.04414632929 | K108: 0.2902575942 | L108: 0.04127903361 | M108: 0.04130786406 | N108: 0.04133683906 | O108: 0.03274485699
A110: Adjustment for fixed cost of debt
A112: Actual Asset Base
B113: Opening Asset Base | F113: =E42 -> 3000 | G113: =F116 -> 2910 | H113: 2807.166667 | I113: 2687.795833 | J113: 2546.92625 | K113: 2377.694854 | L113: 2036.165447 | M113: 1667.834128 | N113: 1259.634963 | O113: 784.9503031
B114: Capex | F114: =F$40/'Inputs - forecast'!F7*'Inputs - actual'!F5 -> 210 | G114: =G$40/'Inputs - forecast'!G7*'Inputs - actual'!G5 -> 220.5 | H114: =H$40/'Inputs - forecast'!H7*'Inputs - actual'!H5 -> 231.525 | I114: =I$40/'Inputs - forecast'!I7*'Inputs - actual'!I5 -> 243.10125 | J114: =J$40/'Inputs - forecast'!J7*'Inputs - actual'!J5 -> 255.2563125 | K114: =K$40/'Inputs - forecast'!K7*'Inputs - actual'!K5 -> 134.0095641 | L114: =L$40/'Inputs - forecast'!L7*'Inputs - actual'!L5 -> 140.7100423 | M114: =M$40/'Inputs - forecast'!M7*'Inputs - actual'!M5 -> 147.7455444 | N114: =N$40/'Inputs - forecast'!N7*'Inputs - actual'!N5 -> 155.1328216 | O114: =O$40/'Inputs - forecast'!O7*'Inputs - actual'!O5 -> 0
B115: Depreciation | F115: =-F113/F36 -> -300 | G115: -323.3333333 | H115: -350.8958333 | I115: -383.9708333 | J115: -424.4877083 | K115: -475.5389708 | L115: -509.0413618 | M115: -555.9447093 | N115: -629.8174815 | O115: -784.9503031
B116: Closing Asset Base | F116: =SUM(F113:F115) -> 2910 | G116: =SUM(G113:G115) -> 2807.166667 | H116: 2687.795833 | I116: 2546.92625 | J116: 2377.694854 | K116: 2036.165447 | L116: 1667.834128 | M116: 1259.634963 | N116: 784.9503031 | O116: 0
A118: Actual RAB
B119: Useful lives | F119: =F36 -> 10 | G119: =G36 -> 9 | H119: 8 | I119: 7 | J119: 6 | K119: 5 | L119: 4 | M119: 3 | N119: 2 | O119: 1
B121: Opening RAB | F121: =E125 -> 3000 | G121: =F125 -> 3012.15907 | H121: =G125 -> 2999.281516 | I121: 2955.193857 | J121: 2871.96578 | K121: 2739.115867 | L121: 2408.213526 | M121: 2015.209312 | N121: 1542.050989 | O121: 955.3313706
B122: Revaluation | F122: =F121*('Inputs - actual'!F38) -> 113.5100772 | G122: =G121*('Inputs - actual'!G38) -> 113.9701362 | H122: =H121*('Inputs - actual'!H38) -> 113.4828922 | I122: =I121*('Inputs - actual'!I38) -> 111.814761 | J122: =J121*('Inputs - actual'!J38) -> 108.6656858 | K122: =K121*('Inputs - actual'!K38) -> 103.6390845 | L122: =L121*('Inputs - actual'!L38) -> 91.11883442 | M122: =M121*('Inputs - actual'!M38) -> 76.24885489 | N122: =N121*('Inputs - actual'!N38) -> 58.34610896 | O122: =O121*('Inputs - actual'!O38) -> 36.14657922
B123: Capex | F123: =F114 -> 210 | G123: =G114 -> 220.5 | H123: 231.525 | I123: 243.10125 | J123: 255.2563125 | K123: 134.0095641 | L123: 140.7100423 | M123: 147.7455444 | N123: 155.1328216 | O123: 0
B124: Depreciation | F124: =-SUM(F121:F122)/F119 -> -311.3510077 | G124: =-SUM(G121:G122)/G119 -> -347.3476895 | H124: -389.095551 | I124: -438.1440883 | J124: -496.771911 | K124: -568.5509904 | L124: -624.83309 | M124: -697.1527224 | N124: -800.198549 | O124: -991.4779499
B125: Closing RAB | E125: =-E29 -> 3000 | F125: =SUM(F121:F124) -> 3012.15907 | G125: 2999.281516 | H125: 2955.193857 | I125: 2871.96578 | J125: =SUM(J121:J124) -> 2739.115867 | K125: 2408.213526 | L125: 2015.209312 | M125: 1542.050989 | N125: 955.3313706 | O125: 0
F126: =F121-E125 -> 0 | G126: =G121-F125 -> 0 | H126: =H121-G125 -> 0 | I126: =I121-H125 -> 0 | J126: 0 | K126: 0 | L126: 0 | M126: 0 | N126: 0 | O126: 0
A128: Actual tax
B129: Revenue | F129: =F92 -> 617.6323218 | G129: 644.8329279 | H129: 673.2542871 | I129: 702.9521671 | J129: 733.984925 | K129: 947.0296235 | L129: 986.1220911 | M129: 1026.856688 | N129: 1069.303698 | O129: 1104.317895
B130: Depreciation | F130: =F115 -> -300 | G130: -323.3333333 | H130: -350.8958333 | I130: -383.9708333 | J130: -424.4877083 | K130: -475.5389708 | L130: -509.0413618 | M130: -555.9447093 | N130: -629.8174815 | O130: -784.9503031
B131: Opex | F131: =F93 -> -105 | G131: -110.25 | H131: -115.7625 | I131: -121.550625 | J131: -127.6281563 | K131: -134.0095641 | L131: -140.7100423 | M131: -147.7455444 | N131: -155.1328216 | O131: -162.8894627
B132: Interest | F132: =F94 -> -61.5 | G132: -61.74926092 | H132: -61.48527108 | I132: -60.58147407 | J132: -58.87529849 | K132: -56.15187528 | L132: -49.36837727 | M132: -41.3117909 | N132: -31.61204528 | O132: -19.5842931
B133: EBT | F133: =SUM(F129:F132) -> 151.1323218 | G133: =SUM(G129:G132) -> 149.5003337 | H133: 145.1106826 | I133: 136.8492347 | J133: 122.9937619 | K133: 281.3292133 | L133: 287.0023097 | M133: 281.8546439 | N133: 252.7413497 | O133: 136.8938359
B134: Calculated tax | F134: =-F133*'Inputs - forecast'!F29 -> -42.31705012 | G134: =-G133*'Inputs - forecast'!G29 -> -41.86009343 | H134: =-H133*'Inputs - forecast'!H29 -> -40.63099114 | I134: =-I133*'Inputs - forecast'!I29 -> -38.31778572 | J134: =-J133*'Inputs - forecast'!J29 -> -34.43825333 | K134: =-K133*'Inputs - forecast'!K29 -> -78.77217972 | L134: =-L133*'Inputs - forecast'!L29 -> -80.36064673 | M134: =-M133*'Inputs - forecast'!M29 -> -78.91930028 | N134: =-N133*'Inputs - forecast'!N29 -> -70.76757793 | O134: =-O133*'Inputs - forecast'!O29 -> -38.33027406
B135: Deferred tax | F135: =IF(F134>0,F134+E135,0) -> 0 | G135: 0 | H135: 0 | I135: 0 | J135: 0 | K135: 0 | L135: 0 | M135: 0 | N135: 0 | O135: 0
B136: Tax | F136: =IF(F135>0,0,F134+E135) -> -42.31705012 | G136: -41.86009343 | H136: -40.63099114 | I136: -38.31778572 | J136: -34.43825333 | K136: -78.77217972 | L136: -80.36064673 | M136: -78.91930028 | N136: -70.76757793 | O136: -38.33027406
A138: Tax adjustment | E138: NPV | P138: Note
B139: Tax | F139: =F136 -> -42.31705012 | G139: -41.86009343 | H139: -40.63099114 | I139: -38.31778572 | J139: -34.43825333 | K139: -78.77217972 | L139: -80.36064673 | M139: -78.91930028 | N139: -70.76757793 | O139: -38.33027406
B140: NPV of actual tax | E140: =SUM(F140:O140) -> -350.6043941 | F140: =F139/'Inputs - actual'!F$36 -> -39.1691201 | G140: =G139/'Inputs - actual'!G$36 -> -35.86386184 | H140: =H139/'Inputs - actual'!H$36 -> -32.22127384 | I140: =I139/'Inputs - actual'!I$36 -> -28.12639836 | J140: =J139/'Inputs - actual'!J$36 -> -23.39824398 | K140: =K139/'Inputs - actual'!K$36 -> -49.53856724 | L140: =L139/'Inputs - actual'!L$36 -> -46.77808424 | M140: =M139/'Inputs - actual'!M$36 -> -42.52170442 | N140: =N139/'Inputs - actual'!N$36 -> -35.29313195 | O140: =O139/'Inputs - actual'!O$36 -> -17.69400812
B142: Forecast tax adjusted for inflation | F142: =F$17/'Inputs - actual'!F$40*'Inputs - actual'!F39 -> -39.86587547 | G142: =G$17/'Inputs - actual'!G$40*'Inputs - actual'!G39 -> -37.14909863 | H142: =H$17/'Inputs - actual'!H$40*'Inputs - actual'!H39 -> -33.55537257 | I142: =I$17/'Inputs - actual'!I$40*'Inputs - actual'!I39 -> -28.77970587 | J142: =J$17/'Inputs - actual'!J$40*'Inputs - actual'!J39 -> -22.35685854 | K142: =K$17/'Inputs - actual'!K$40*'Inputs - actual'!K39 -> -80.37734588 | L142: =L$17/'Inputs - actual'!L$40*'Inputs - actual'!L39 -> -79.19384959 | M142: =M$17/'Inputs - actual'!M$40*'Inputs - actual'!M39 -> -74.88054419 | N142: =N$17/'Inputs - actual'!N$40*'Inputs - actual'!N39 -> -63.83746299 | O142: =O$17/'Inputs - actual'!O$40*'Inputs - actual'!O39 -> -31.53991609
B143: NPV of forecast tax adjusted for inflation | E143: =SUM(F143:O143) -> -315.0420645 | F143: =F142/'Inputs - actual'!F$36 -> -36.90028629 | G143: =G142/'Inputs - actual'!G$36 -> -31.82769153 | H143: =H142/'Inputs - actual'!H$36 -> -26.61015195 | I143: =I142/'Inputs - actual'!I$36 -> -21.12516307 | J143: =J142/'Inputs - actual'!J$36 -> -15.1898305 | K143: =K142/'Inputs - actual'!K$36 -> -50.54803063 | L143: =L142/'Inputs - actual'!L$36 -> -46.09888942 | M143: =M142/'Inputs - actual'!M$36 -> -40.34562338 | N143: =N142/'Inputs - actual'!N$36 -> -31.83695232 | O143: =O142/'Inputs - actual'!O$36 -> -14.55944537
B144: Difference | E144: =E143-E140 -> 35.5623296 | F144: =F142-F139 -> 2.451174642 | G144: =G142-G139 -> 4.710994792 | H144: 7.075618569 | I144: 9.538079851 | J144: 12.08139479 | K144: -1.605166163 | L144: 1.166797132 | M144: 4.038756088 | N144: 6.930114941 | O144: 6.790357972
A146: Real revenue | F146: =F92/'Inputs - actual'!F39 -> 595.1151336 | G146: =G92/'Inputs - actual'!G39 -> 598.6723002 | H146: =H92/'Inputs - actual'!H39 -> 602.2711562 | I146: =I92/'Inputs - actual'!I39 -> 605.9121904 | J146: =J92/'Inputs - actual'!J39 -> 609.5958971 | K146: =K92/'Inputs - actual'!K39 -> 757.86079 | L146: =L92/'Inputs - actual'!L39 -> 760.3744951 | M146: =M92/'Inputs - actual'!M39 -> 762.9176605 | N146: =N92/'Inputs - actual'!N39 -> 765.4906315 | O146: =O92/'Inputs - actual'!O39 -> 761.7349806
A148: Wash-up account | E148: NPV | F148: =F78 -> 2021-06-30 | G148: 2022-06-30 | H148: 2023-06-30 | I148: 2024-06-30 | J148: 2025-06-30 | K148: 2026-06-30 | L148: 2027-06-30 | M148: 2028-06-30 | N148: 2029-06-30 | O148: 2030-06-30 | P148: =EOMONTH(O148, 12) -> 2031-06-30 | Q148: =EOMONTH(P148, 12) -> 2032-06-30
B149: Wash-up drawdowns will usually have a 2 year delay from when the revenue is set to allow for actual CPI information to be released.
B151: Actual net allowable revenue | D151: ANAR | F151: =F92-F110 -> 617.6323218 | G151: 644.8329279 | H151: 673.2542871 | I151: 702.9521671 | J151: 733.984925 | K151: 947.0296235 | L151: 986.1220911 | M151: 1026.856688 | N151: 1069.303698 | O151: 1104.317895
B152: Forecast net allowable revenue | D152: FNAR | F152: =F13 -> 603.4311571 | G152: 615.4997802 | H152: 627.8097758 | I152: 640.3659713 | J152: 653.1732908 | K152: 927.7021777 | L152: 946.2562213 | M152: 965.1813457 | N152: 984.4849726 | O152: 1004.174672 | R152: Note
B153: Wash-up amount | F153: =F151-F152 -> 14.20116477 | G153: =G151-G152 -> 29.3331477 | H153: 45.44451123 | I153: 62.58619577 | J153: 80.81163419 | K153: 19.32744574 | L153: 39.86586985 | M153: 61.67534271 | N153: 84.81872547 | O153: 100.1432227
B155: Actual allowable revenue | D155: AAR | F155: =F151-F165 -> 617.6323218 | G155: 644.8329279 | H155: 689.2649534 | I155: 736.0229222 | J155: 785.2199413 | K155: 1017.590505 | L155: 1077.230682 | M155: 1048.646823 | N155: 1114.249247 | O155: 1173.851863
B156: Forecast allowable revenue | D156: FAR | F156: =F152-F165 -> 603.4311571 | G156: 615.4997802 | H156: 643.8204422 | I156: 673.4367264 | J156: 704.4083071 | K156: 998.263059 | L156: 1037.364812 | M156: 986.9714799 | N156: 1029.430521 | O156: 1073.70864
B158: Actual revenue | D158: AR | F158: =F156 -> 603.4311571 | G158: =G156 -> 615.4997802 | H158: =H156 -> 643.8204422 | I158: =I156 -> 673.4367264 | J158: 704.4083071 | K158: 998.263059 | L158: 1037.364812 | M158: 986.9714799 | N158: 1029.430521 | O158: 1073.70864 | R158: Note
B160: Cost of debt wash-up adjustment | D160: CODW | F160: =F110 -> 0 | G160: 0 | H160: 0 | I160: 0 | J160: 0 | K160: 0 | L160: 0 | M160: 0 | N160: 0 | O160: 0
B162: Wash-up account balance | D162: WAB
B163: Wash-up account opening balance | D163: WABt-1 | F163: 0 | G163: =F166 -> 14.20116477 | H163: 44.41194445 | I163: 76.59044746 | J163: 110.8391778 | K163: 147.2656569 | L163: 105.1332389 | M163: 60.38775173 | N163: 104.0049233 | O163: 150.3056044 | P163: 190.2037454 | Q163: 106.3320739
B164: Wash-up accrual | D164: WA | F164: =F155-F158+F160 -> 14.20116477 | G164: 29.3331477 | H164: 45.44451123 | I164: 62.58619577 | J164: 80.81163419 | K164: 19.32744574 | L164: 39.86586985 | M164: 61.67534271 | N164: 84.81872547 | O164: 100.1432227 | P164: 0 | Q164: 0
B165: Wash-up (draw-down)/ draw-up | D165: WD | F165: 0 | G165: 0 | H165: =-F164*(1+'Inputs - forecast'!H$31)^2 -> -16.01066639 | I165: =-G164*(1+'Inputs - forecast'!I$31)^2 -> -33.07075509 | J165: =-H164*(1+'Inputs - forecast'!J$31)^2 -> -51.23501631 | K165: =-I164*(1+'Inputs - forecast'!K$31)^2 -> -70.56088127 | L165: =-J164*(1+'Inputs - forecast'!L$31)^2 -> -91.1085912 | M165: =-K164*(1+'Inputs - forecast'!M$31)^2 -> -21.79013419 | N165: =-L164*(1+'Inputs - forecast'!N$31)^2 -> -44.94554869 | O165: =-M164*(1+'Inputs - forecast'!O$31)^2 -> -69.53396801 | P165: =-N164*(1+'Inputs - forecast'!P$31)^2 -> -95.62626301 | Q165: =-O164*(1+'Inputs - forecast'!Q$31)^2 -> -100.1432227 | R165: Note
B166: Wash-up account balance | D166: WABt | F166: =F163*(1+'Inputs - forecast'!F$31)+F164+F165 -> 14.20116477 | G166: =G163*(1+'Inputs - forecast'!G$31)+G164+G165 -> 44.41194445 | H166: =H163*(1+'Inputs - forecast'!H$31)+H164+H165 -> 76.59044746 | I166: =I163*(1+'Inputs - forecast'!I$31)+I164+I165 -> 110.8391778 | J166: =J163*(1+'Inputs - forecast'!J$31)+J164+J165 -> 147.2656569 | K166: =K163*(1+'Inputs - forecast'!K$31)+K164+K165 -> 105.1332389 | L166: =L163*(1+'Inputs - forecast'!L$31)+L164+L165 -> 60.38775173 | M166: =M163*(1+'Inputs - forecast'!M$31)+M164+M165 -> 104.0049233 | N166: =N163*(1+'Inputs - forecast'!N$31)+N164+N165 -> 150.3056044 | O166: =O163*(1+'Inputs - forecast'!O$31)+O164+O165 -> 190.2037454 | P166: =P163*(1+'Inputs - forecast'!P$31)+P164+P165 -> 106.3320739 | Q166: =Q163*(1+'Inputs - forecast'!Q$31)+Q164+Q165 -> 6.188851162
B168: Test NPV=0
B169: Confirm Net Present Value (NPV) of ANAR equal AR plus CODW plus the wash-up account balance remaining at end of model period
B170: Actual net allowable revenue | D170: ANAR | E170: =-NPV('Inputs - forecast'!$F$31,F170:O170) -> -5987.044345 | F170: =F151 -> 617.6323218 | G170: 644.8329279 | H170: 673.2542871 | I170: 702.9521671 | J170: 733.984925 | K170: 947.0296235 | L170: 986.1220911 | M170: 1026.856688 | N170: 1069.303698 | O170: 1104.317895
B171: Actual revenue | D171: AR | E171: =NPV('Inputs - forecast'!$F$31,F171:O171) -> 5882.622381 | F171: =F156 -> 603.4311571 | G171: 615.4997802 | H171: 643.8204422 | I171: 673.4367264 | J171: 704.4083071 | K171: 998.263059 | L171: 1037.364812 | M171: 986.9714799 | N171: 1029.430521 | O171: 1073.70864
B172: Cost of debt wash-up adjustment | D172: CODW | E172: =-NPV('Inputs - forecast'!$F$31,F172:O172) -> 0 | F172: =F160 -> 0 | G172: 0 | H172: 0 | I172: 0 | J172: 0 | K172: 0 | L172: 0 | M172: 0 | N172: 0 | O172: 0
B173: Wash-up account balance | D173: WAB | E173: =NPV('Inputs - forecast'!$F$31,F173:O173) -> 104.4219633 | F173: 0 | G173: 0 | H173: 0 | I173: 0 | J173: 0 | K173: 0 | L173: 0 | M173: 0 | N173: 0 | O173: =O166 -> 190.2037454
D174: NPV | E174: =SUM(E170:E173) -> 1.492139745e-12
B176: Actual revenue per model | E176: =-NPV('Inputs - forecast'!$F$31,F176:O176) -> -5987.044345 | F176: =F92 -> 617.6323218 | G176: 644.8329279 | H176: 673.2542871 | I176: 702.9521671 | J176: 733.984925 | K176: 947.0296235 | L176: 986.1220911 | M176: 1026.856688 | N176: 1069.303698 | O176: 1104.317895
B177: Check to ANAR less CODW | F177: =F170+F172-F176 -> 0 | G177: =G170+G172-G176 -> 0 | H177: 0 | I177: 0 | J177: 0 | K177: 0 | L177: 0 | M177: 0 | N177: 0 | O177: 0
B179: FNAR + accrual | E179: =NPV('Inputs - forecast'!$F$31,F179:O179) -> 5987.044345 | F179: =F152+F164 -> 617.6323218 | G179: 644.8329279 | H179: 673.2542871 | I179: 702.9521671 | J179: 733.984925 | K179: 947.0296235 | L179: 986.1220911 | M179: 1026.856688 | N179: 1069.303698 | O179: 1104.317895 | R179: Note
B180: FNAR + draw-down | E180: =NPV('Inputs - forecast'!$F$31,F180:Q180) -> 5882.622381 | F180: =F152-F165 -> 603.4311571 | G180: 615.4997802 | H180: 643.8204422 | I180: 673.4367264 | J180: 704.4083071 | K180: 998.263059 | L180: 1037.364812 | M180: 986.9714799 | N180: 1029.430521 | O180: 1073.70864 | R180: Note
B181: Closing WAB yet to receive | E181: =NPV('Inputs - forecast'!$F$31,F181:Q181) -> 104.4219633 | F181: 0 | G181: 0 | H181: 0 | I181: 0 | J181: 0 | K181: 0 | L181: 0 | M181: 0 | N181: 0 | O181: =+O166 -> 190.2037454
D182: NPV | E182: =E179-E180-E181 -> -1.492139745e-12
